Local authority department which incurred the expenditure,Service Division,Cost Centre,Summary of the Purpose of Expenditure,Expense Type,Expense Code,Detailed Expense Type,Date of Transaction,Transaction Number,Beneficiary,Merchant Category Number,Merchant Category,Gross Amount,VAT,Net Amount
Resources,Financial Services,65180,Collections,Income,720130,Fees and Charges,01-Dec-16,5531985187,COUNTY COURT,9222,Fees-legal,44,0,44
Children and Young Peoples Services,Childrens Services,71746,Newton Aycliffe Childrens Centre,Supplies and Services,328041,Clothing Uniforms and Laundry,01-Dec-16,5531985193,WWW.CHARLESCLINKARD.CO,5661,Clothing uniforms and laundry,26,0,26
Children and Young Peoples Services,Childrens Services,85957,Secure Management,Supplies and Services,324117,Provisions,01-Dec-16,5531985219,TESCO STORES 6329,5411,Catering costs - provisions,80.62,0,80.62
Resources,Financial Services,52865,SF-Financial Services Team,Supplies and Services,308011,Furniture,01-Dec-16,5531985251,EDS BEDS LTD,5712,Furniture repair and replacement,71,0,71
Resources,Financial Services,52865,SF-Financial Services Team,Supplies and Services,304403,Equipment and Materials,01-Dec-16,5531985253,TESCO DIRECT,5999,Other consumables,76.95,0,76.95
Regeneration and Local Services,Direct Services,21242,Catering - County Hall,Supplies and Services,324117,Provisions,01-Dec-16,5531985295,JR HOLLAND FOODSERVICE,5422,Catering costs - provisions,95.36,0,95.36
Regeneration and Local Services,Direct Services,21242,Catering - County Hall,Supplies and Services,324117,Provisions,01-Dec-16,5531985299,JR HOLLAND FOODSERVICE,5422,Catering costs - provisions,13.16,0,13.16
Regeneration and Local Services,Direct Services,21242,Catering - County Hall,Supplies and Services,324117,Provisions,01-Dec-16,5531985301,BRAKE BROS LTD,5811,Catering costs - provisions,371.81,0,371.81
Children and Young Peoples Services,Education,70169,Durham SSP,Supplies and Services,328041,Clothing Uniforms and Laundry,01-Dec-16,5531985303,WORKWEAR EXPRESS LIMIT,5699,Clothing uniforms and laundry,249.98,0,249.98
Regeneration and Local Services,Direct Services,10367,C&G - South Grounds Maintenance,Supplies and Services,304259,Equipment and Materials,01-Dec-16,5531985305,HOMEBASE LTD 822,5211,Equipment-purchase and rental,147.96,24.66,123.3
Regeneration and Local Services,Direct Services,10367,C&G - South Grounds Maintenance,Supplies and Services,304259,Equipment and Materials,01-Dec-16,5531985307,SCREWFIX,5211,Equipment-purchase and rental,17.98,3,14.98
Regeneration and Local Services,Culture & Sport,54812,Gala Theatre - Catering etc,Supplies and Services,324117,Provisions,01-Dec-16,5531985309,JR HOLLAND FOODSERVICE,5422,Catering costs - provisions,72.74,0,72.74
Children and Young Peoples Services,Childrens Services,88093,Newton Aycliffe 0 - 5,Supplies and Services,304403,Equipment and Materials,01-Dec-16,5531985329,TESCO STORES 2916,5411,Other consumables,33.55,0,33.55
Children and Young Peoples Services,Education,78100,Curric and Professional Development,Employees,40149,Recruitment Instruction and Training,01-Dec-16,5531985391,EB TEACHER SUBJECT SP,7399,Training-all costs,270.9,0,270.9
Regeneration and Local Services,Culture & Sport,11191,Wellbeing4Life,Supplies and Services,324117,Provisions,01-Dec-16,5531985403,CO-OP GROUP 108247,5411,Catering costs - provisions,20.1,0,20.1
Regeneration and Local Services,Culture & Sport,11060,Hardwick Park Catering,Supplies and Services,324117,Provisions,01-Dec-16,5531985445,JR HOLLAND FOODSERVICE,5422,Catering costs - provisions,18.37,0,18.37
Regeneration and Local Services,Economic Development and Housing,30750,Durham Employment & Skills - General,Employees,40149,Recruitment Instruction and Training,01-Dec-16,5531985475,CITB,8220,Training-all costs,30,5,25
Regeneration and Local Services,Economic Development and Housing,30750,Durham Employment & Skills - General,Employees,40149,Recruitment Instruction and Training,01-Dec-16,5531985479,CITB,8220,Training-all costs,30,5,25
Regeneration and Local Services,Economic Development and Housing,30750,Durham Employment & Skills - General,Employees,40149,Recruitment Instruction and Training,01-Dec-16,5531985481,CITB,8220,Training-all costs,30,5,25
Regeneration and Local Services,Economic Development and Housing,30750,Durham Employment & Skills - General,Employees,40149,Recruitment Instruction and Training,01-Dec-16,5531985483,CITB,8220,Training-all costs,30,5,25
Regeneration and Local Services,Direct Services,21234,Catering - Locomotion,Supplies and Services,324117,Provisions,01-Dec-16,5531985505,JR HOLLAND FOODSERVICE,5422,Catering costs - provisions,50.98,0,50.98
Regeneration and Local Services,Direct Services,21234,Catering - Locomotion,Supplies and Services,324117,Provisions,01-Dec-16,5531985507,JR HOLLAND FOODSERVICE,5422,Catering costs - provisions,47.33,0,47.33
Regeneration and Local Services,Direct Services,21234,Catering - Locomotion,Supplies and Services,324117,Provisions,01-Dec-16,5531985509,JR HOLLAND FOODSERVICE,5422,Catering costs - provisions,40.03,0,40.03
Regeneration and Local Services,Direct Services,21234,Catering - Locomotion,Supplies and Services,324117,Provisions,01-Dec-16,5531985511,JR HOLLAND FOODSERVICE,5422,Catering costs - provisions,36.37,0,36.37
Regeneration and Local Services,Direct Services,21234,Catering - Locomotion,Supplies and Services,324117,Provisions,01-Dec-16,5531985513,JR HOLLAND FOODSERVICE,5422,Catering costs - provisions,24.13,0,24.13
Regeneration and Local Services,Direct Services,21234,Catering - Locomotion,Supplies and Services,324117,Provisions,01-Dec-16,5531985515,JR HOLLAND FOODSERVICE,5422,Catering costs - provisions,20.52,0,20.52
Regeneration and Local Services,Direct Services,21234,Catering - Locomotion,Supplies and Services,324117,Provisions,01-Dec-16,5531985517,JR HOLLAND FOODSERVICE,5422,Catering costs - provisions,16.36,0,16.36
Regeneration and Local Services,Culture & Sport,11204,Events,Supplies and Services,348037,Subsistence,01-Dec-16,5531985521,BRENDAS CAFE,5812,Subsistence,11.98,0,11.98
Regeneration and Local Services,Culture & Sport,11204,Events,Supplies and Services,348037,Subsistence,01-Dec-16,5531985527,COSTA COFFEE,5814,Subsistence,10.1,0,10.1
Regeneration and Local Services,Culture & Sport,11058,Wharton Park,Supplies and Services,384999,Miscellaneous Expenses,01-Dec-16,5531985531,HOMEBASE LTD 822,5211,Other expenses,60,0,60
Regeneration and Local Services,Culture & Sport,11058,Wharton Park,Supplies and Services,304259,Equipment and Materials,01-Dec-16,5531985535,HOMEBASE LTD,5211,Equipment-purchase and rental,51.95,0,51.95
Regeneration and Local Services,Culture & Sport,11058,Wharton Park,Supplies and Services,328041,Clothing Uniforms and Laundry,01-Dec-16,5531985539,B&M RETAIL LTD,5310,Clothing uniforms and laundry,51.32,0,51.32
Children and Young Peoples Services,Childrens Services,85957,Secure Management,Supplies and Services,336005,Advertising,01-Dec-16,5531985595,NEWTON PRESS,7338,Advertising other than for staff,106.8,17.8,89
Children and Young Peoples Services,Childrens Services,88063,Bishop Auckland 0 - 5,Supplies and Services,324117,Provisions,01-Dec-16,5531985613,LIDL UK,5411,Catering costs - provisions,15.24,0,15.24
Children and Young Peoples Services,Childrens Services,85333,Coxhoe Satelite Home,Supplies and Services,324117,Provisions,01-Dec-16,5531985669,CO-OP GROUP 310016,5411,Catering costs - provisions,9.9,0,9.9
Regeneration and Local Services,Direct Services,10367,C&G - South Grounds Maintenance,Supplies and Services,324117,Provisions,01-Dec-16,5531985681,TESCO STORES 2916,5411,Catering costs - provisions,10.46,0,10.46
Regeneration and Local Services,Direct Services,20074,Bldg Serv - R&M Div 74 - Mechanical,Supplies and Services,344033,Telephones,01-Dec-16,5531985715,Amazon UK Marketplace,5942,Telephones general-all costs,7.99,0,7.99
Adult and Health Services,EnvironmentHealth & Consumer Protection,10827,Health Protection,Supplies and Services,338064,Services,01-Dec-16,5531985719,DISCLOSURE SCOT,9399,Disclosure & Barring (DBS) Fees,25,0,25
Resources,I.C.T. Services,65230,IT Renewals Fund,Supplies and Services,304335,Equipment and Materials,01-Dec-16,5531985721,Amazon UK Marketplace,5942,ICT supplies etc,15.95,0,15.95
Regeneration and Local Services,Culture & Sport,54399,Local Delivery-Libraries,Supplies and Services,312011,Newspapers Books and Periodicals,01-Dec-16,5531985739,Amazon EU,5969,Books-school library,14.5,0,14.5
Regeneration and Local Services,Direct Services,10301,C&G - North Grounds Maintenance,Supplies and Services,304999,Equipment and Materials,01-Dec-16,5531985775,NEW ROW FARM NURSERIES,5193,Misc equipment tools and materials,203.96,33.99,169.97
Regeneration and Local Services,Direct Services,10301,C&G - North Grounds Maintenance,Supplies and Services,304999,Equipment and Materials,01-Dec-16,5531985777,NEW ROW FARM NURSERIES,5193,Misc equipment tools and materials,77.76,12.96,64.8
Children and Young Peoples Services,Childrens Services,88003,Peterlee 0 - 5,Supplies and Services,384999,Miscellaneous Expenses,01-Dec-16,5531985825,PETERLEE LEISURE C,7997,Other expenses,45,0,45
Children and Young Peoples Services,Childrens Services,85801,CDYOS - Support,Supplies and Services,304259,Equipment and Materials,01-Dec-16,5531985831,AXMINSTER.CO.UK,5211,Equipment-purchase and rental,8.46,0,8.46
Regeneration and Local Services,Culture & Sport,11086,Positive Futures,Supplies and Services,328041,Clothing Uniforms and Laundry,01-Dec-16,5531985867,POUNDWORLD RETAIL,5310,Clothing uniforms and laundry,5.05,0.84,4.21
Regeneration and Local Services,Culture & Sport,11086,Positive Futures,Supplies and Services,324117,Provisions,01-Dec-16,5531985869,ASDA STORES LTD,5411,Catering costs - provisions,15.01,0,15.01
Regeneration and Local Services,Culture & Sport,11191,Wellbeing4Life,Supplies and Services,328041,Clothing Uniforms and Laundry,01-Dec-16,5531985903,THE WORKS,5310,Clothing uniforms and laundry,25.2,0,25.2
Children and Young Peoples Services,Childrens Services,88083,Ferryhill 0 - 5,Supplies and Services,312011,Newspapers Books and Periodicals,01-Dec-16,5531985905,Amazon UK Marketplace,5942,Books-school library,90.88,0,90.88
Regeneration and Local Services,Culture & Sport,10605,Woodhouse Close Leisure Complex,Supplies and Services,324117,Provisions,01-Dec-16,5531985919,BRAKE BROS LTD,5811,Catering costs - provisions,35.82,5.97,29.85
Regeneration and Local Services,Culture & Sport,10605,Woodhouse Close Leisure Complex,Supplies and Services,324117,Provisions,01-Dec-16,5531985919 - 1,BRAKE BROS LTD,5811,Catering costs - provisions,74.37,,74.37
Resources,Financial Services,65180,Collections,Supplies and Services,372009,Subscriptions,01-Dec-16,5531985923,WWW.IRRV.ORG.UK,2741,Subscriptions,57,0,57
Children and Young Peoples Services,Childrens Services,88033,Durham 0 - 5,Supplies and Services,304259,Equipment and Materials,01-Dec-16,5531985945,WILKO DURHAM 426,5722,Equipment-purchase and rental,38.35,0,38.35
Dedicated Schools Grant,Dedicated Schools Grant,79075,Learning Difficulties Team,Supplies and Services,312009,Newspapers Books and Periodicals,01-Dec-16,5537555679,AMAZON UK RETAIL AMAZO,5999,Newspapers books and periodicals,20.47,0,20.47
Adult and Health Services,EnvironmentHealth & Consumer Protection,10934,Works in Default Holding Code,Income,720130,Fees and Charges,02-Dec-16,5537555565,WWW.MONEYCLAIM.GOV,9399,Fees-legal,60,0,60
Children and Young Peoples Services,Childrens Services,85957,Secure Management,Supplies and Services,324117,Provisions,02-Dec-16,5537555607,TESCO STORES 6329,5411,Catering costs - provisions,75.71,0,75.71
Regeneration and Local Services,Economic Development and Housing,30699,Business Growth and Innovation General,Supplies and Services,304403,Equipment and Materials,02-Dec-16,5537555619,ADOBE CREATIVE CLOUD,5734,Other consumables,45.73,7.62,38.11
Regeneration and Local Services,Economic Development and Housing,30699,Business Growth and Innovation General,Supplies and Services,312011,Newspapers Books and Periodicals,02-Dec-16,5537555625,FASTHOSTS INTERNET,4816,Books-school library,59.99,10,49.99
Regeneration and Local Services,Spatial Policy Planning Assets & Environment,31222,North Pennines Allen Valleys Landscape Partnership,Supplies and Services,308011,Furniture,02-Dec-16,5537555639,IKEA LIMITED,5712,Furniture repair and replacement,8.75,1.46,7.29
Regeneration and Local Services,Direct Services,21242,Catering - County Hall,Supplies and Services,324117,Provisions,02-Dec-16,5537555695,JR HOLLAND FOODSERVICE,5422,Catering costs - provisions,47.35,0,47.35
Regeneration and Local Services,Direct Services,21242,Catering - County Hall,Supplies and Services,324117,Provisions,02-Dec-16,5537555699,JR HOLLAND FOODSERVICE,5422,Catering costs - provisions,13.16,0,13.16
Regeneration and Local Services,Economic Development and Housing,30554,International Relations,Supplies and Services,324117,Provisions,02-Dec-16,5537555715,LIDL UK,5411,Catering costs - provisions,7.26,0,7.26
Regeneration and Local Services,Direct Services,21242,Catering - County Hall,Supplies and Services,324117,Provisions,02-Dec-16,5537555731,ASDA SUPERSTORE 4987,5411,Catering costs - provisions,48.85,0,48.85
Regeneration and Local Services,Culture & Sport,11219,Office Services,Third Party Payments,430100,Rendered by Private Contractors,02-Dec-16,5537555749,MAILCHIMP,7399,Payments to sub-contractors,52.53,0,52.53
Children and Young Peoples Services,Childrens Services,88093,Newton Aycliffe 0 - 5,Supplies and Services,304403,Equipment and Materials,02-Dec-16,5537555751,SAINSBURYS SACAT 2199,5411,Other consumables,15,0,15
Adult and Health Services,EnvironmentHealth & Consumer Protection,11035,Consumer Protection,Supplies and Services,372009,Subscriptions,02-Dec-16,5537555783,WWW.APEA.ORG.UK,5169,Subscriptions,50,0,50
Adult and Health Services,EnvironmentHealth & Consumer Protection,11035,Consumer Protection,Supplies and Services,372009,Subscriptions,02-Dec-16,5537555785,WWW.APEA.ORG.UK,5169,Subscriptions,50,0,50
Regeneration and Local Services,Culture & Sport,11060,Hardwick Park Catering,Supplies and Services,324117,Provisions,02-Dec-16,5537555821,JR HOLLAND FOODSERVICE,5422,Catering costs - provisions,12.75,0,12.75
Regeneration and Local Services,Culture & Sport,11060,Hardwick Park Catering,Supplies and Services,324117,Provisions,02-Dec-16,5537555825,BRAKE BROS LTD,5811,Catering costs - provisions,54.78,9.13,45.65
Regeneration and Local Services,Culture & Sport,11060,Hardwick Park Catering,Supplies and Services,324117,Provisions,02-Dec-16,5537555825 - 1,BRAKE BROS LTD,5811,Catering costs - provisions,193.49,,193.49
Regeneration and Local Services,Culture & Sport,11060,Hardwick Park Catering,Supplies and Services,324117,Provisions,02-Dec-16,5537555837,BRAKE BROS LTD,5811,Catering costs - provisions,42.06,7.01,35.05
Regeneration and Local Services,Culture & Sport,11060,Hardwick Park Catering,Supplies and Services,324117,Provisions,02-Dec-16,5537555837 - 1,BRAKE BROS LTD,5811,Catering costs - provisions,78.47,,78.47
Resources,I.C.T. Services,70204,Operations - System & Repairs Team,Supplies and Services,304259,Equipment and Materials,02-Dec-16,5537555859,PAYPAL RAPIDSPARES,5732,Equipment-purchase and rental,8.29,0,8.29
Resources,I.C.T. Services,70204,Operations - System & Repairs Team,Supplies and Services,304403,Equipment and Materials,02-Dec-16,5537555863,THE REPLACE BASE LTD,5999,Other consumables,13.38,2.23,11.15
Resources,I.C.T. Services,70204,Operations - System & Repairs Team,Supplies and Services,304403,Equipment and Materials,02-Dec-16,5537555863 - 1,THE REPLACE BASE LTD,5999,Other consumables,1.18,,1.18
Regeneration and Local Services,Culture & Sport,54815,Gala Theatre Stage School,Supplies and Services,324117,Provisions,02-Dec-16,5537555873,SAINSBURYS SACAT 0776,5411,Catering costs - provisions,9.05,0,9.05
Regeneration and Local Services,Economic Development and Housing,30750,Durham Employment & Skills - General,Employees,40149,Recruitment Instruction and Training,02-Dec-16,5537555905,NCS VUE CITB HS&E REV,8299,Training-all costs,487.5,0,487.5
Regeneration and Local Services,Economic Development and Housing,30750,Durham Employment & Skills - General,Employees,40149,Recruitment Instruction and Training,02-Dec-16,5537555913,CITB,8220,Training-all costs,30,5,25
Regeneration and Local Services,Economic Development and Housing,30750,Durham Employment & Skills - General,Employees,40149,Recruitment Instruction and Training,02-Dec-16,5537555917,CITB,8220,Training-all costs,30,5,25
Regeneration and Local Services,Direct Services,21234,Catering - Locomotion,Supplies and Services,324117,Provisions,02-Dec-16,5537555935,BRAKE BROS LTD,5811,Catering costs - provisions,189.96,31.66,158.3
Regeneration and Local Services,Direct Services,21234,Catering - Locomotion,Supplies and Services,324117,Provisions,02-Dec-16,5537555935 - 1,BRAKE BROS LTD,5811,Catering costs - provisions,74.42,,74.42
Regeneration and Local Services,Direct Services,21234,Catering - Locomotion,Supplies and Services,324117,Provisions,02-Dec-16,5537555939,BRAKE BROS LTD,5811,Catering costs - provisions,117.36,0,117.36
Regeneration and Local Services,Direct Services,10525,Catering - Green Lane,Supplies and Services,324117,Provisions,02-Dec-16,5537555967,JR HOLLAND FOODSERVICE,5422,Catering costs - provisions,58.24,0,58.24
Regeneration and Local Services,Direct Services,10525,Catering - Green Lane,Supplies and Services,324117,Provisions,02-Dec-16,5537555973,JR HOLLAND FOODSERVICE,5422,Catering costs - provisions,2.08,0,2.08
Regeneration and Local Services,Direct Services,10525,Catering - Green Lane,Supplies and Services,324117,Provisions,02-Dec-16,5537555979,BRAKE BROS LTD,5811,Catering costs - provisions,126.48,0,126.48
Children and Young Peoples Services,Childrens Services,88063,Bishop Auckland 0 - 5,Supplies and Services,324117,Provisions,02-Dec-16,5537556055,ASDA STORES,5411,Catering costs - provisions,86.32,0,86.32
Children and Young Peoples Services,Childrens Services,85623,Families First Bishop Auckland,Supplies and Services,340001,Postages,02-Dec-16,5537556063,ASDA STORES,5411,Postages,14.28,0,14.28
Children and Young Peoples Services,Childrens Services,74000,TTF-Attachment and Results,Supplies and Services,384700,Miscellaneous Expenses,02-Dec-16,5537556067,ASDA 4387,5411,Miscellaneous grants,131.5,0,131.5
Regeneration and Local Services,Direct Services,10367,C&G - South Grounds Maintenance,Supplies and Services,312011,Newspapers Books and Periodicals,02-Dec-16,5537556081,CHARLES DICKENS (SPENN,5251,Books-school library,29.99,5,24.99
Regeneration and Local Services,Economic Development and Housing,30749,Employability - Youth Contract,Transport,235005,Public Transport,02-Dec-16,5537556125,ARRIVA PASSENGER S,7538,Contract tickets,8.2,0,8.2
Resources,Resources Management,69000,Resources Management,Supplies and Services,324117,Provisions,02-Dec-16,5537556133,SAINSBURYS SACAT 0776,5411,Catering costs - provisions,18.05,0,18.05
Resources,Resources Management,69000,Resources Management,Supplies and Services,304259,Equipment and Materials,02-Dec-16,5537556137,WILKO DURHAM 426,5722,Equipment-purchase and rental,17.05,0,17.05
Children and Young Peoples Services,Childrens Services,88093,Newton Aycliffe 0 - 5,Supplies and Services,332047,Printing Stationery and Gen Off Exps,02-Dec-16,5537556171,Amazon UK Marketplace,5942,Stationery,107.88,0,107.88
Children and Young Peoples Services,Childrens Services,85333,Coxhoe Satelite Home,Supplies and Services,332047,Printing Stationery and Gen Off Exps,02-Dec-16,5537556173,AMAZON UK RETAIL AMAZO,5999,Stationery,20.2,0,20.2
Resources,I.C.T. Services,69010,Administration,Transport,235057,Public Transport,02-Dec-16,5537556177,OYSTER RENEW WEB,4112,Staff travelling,50,0,50
Regeneration and Local Services,Culture & Sport,54399,Local Delivery-Libraries,Supplies and Services,312011,Newspapers Books and Periodicals,02-Dec-16,5537556181,Amazon EU,5969,Books-school library,8,0,8
Children and Young Peoples Services,Childrens Services,88003,Peterlee 0 - 5,Supplies and Services,312011,Newspapers Books and Periodicals,02-Dec-16,5537556259,Amazon UK Marketplace,5942,Books-school library,3.99,0,3.99
Children and Young Peoples Services,Childrens Services,88003,Peterlee 0 - 5,Supplies and Services,304259,Equipment and Materials,02-Dec-16,5537556263,SUNDERLAND CC,9399,Equipment-purchase and rental,20,0,20
Children and Young Peoples Services,Childrens Services,88003,Peterlee 0 - 5,Supplies and Services,312011,Newspapers Books and Periodicals,02-Dec-16,5537556267,Amazon UK Marketplace,5942,Books-school library,7.97,0,7.97
Children and Young Peoples Services,Childrens Services,88003,Peterlee 0 - 5,Supplies and Services,312011,Newspapers Books and Periodicals,02-Dec-16,5537556269,Amazon UK Marketplace,5942,Books-school library,5.9,0,5.9
Children and Young Peoples Services,Childrens Services,88003,Peterlee 0 - 5,Supplies and Services,372009,Subscriptions,02-Dec-16,5537556271,CUMBRIA COUNTY COU,7375,Subscriptions,12.5,0,12.5
Regeneration and Local Services,Culture & Sport,54235,Bp Auckland Town Hall Cafe,Supplies and Services,324117,Provisions,02-Dec-16,5537556285,JR HOLLAND FOODSERVICE,5422,Catering costs - provisions,14.53,0,14.53
Regeneration and Local Services,Direct Services,21324,Catering - Meadowfield,Supplies and Services,324117,Provisions,02-Dec-16,5537556297,JR HOLLAND FOODSERVICE,5422,Catering costs - provisions,48.71,0,48.71
Regeneration and Local Services,Direct Services,21324,Catering - Meadowfield,Supplies and Services,324117,Provisions,02-Dec-16,5537556301,JR HOLLAND FOODSERVICE,5422,Catering costs - provisions,9.87,0,9.87
Regeneration and Local Services,Economic Development and Housing,30737,Durham Works Flexible Fund,Supplies and Services,328041,Clothing Uniforms and Laundry,02-Dec-16,5537556359,WWW.UNIFORMCOLLECTION.,5137,Clothing uniforms and laundry,55.49,9.25,46.24
Regeneration and Local Services,Direct Services,21235,Catering - Wharton Park,Supplies and Services,324117,Provisions,02-Dec-16,5537556399,JR HOLLAND FOODSERVICE,5422,Catering costs - provisions,42.01,0,42.01
Regeneration and Local Services,Economic Development and Housing,30674,Business Services General,Supplies and Services,384999,Miscellaneous Expenses,02-Dec-16,5537556457,EUFLORIA,5992,Other expenses,330,0,330
Regeneration and Local Services,Economic Development and Housing,30749,Employability - Youth Contract,Supplies and Services,324117,Provisions,02-Dec-16,5537556505,ASDA STORES,5411,Catering costs - provisions,14,0,14
Children and Young Peoples Services,Childrens Services,85957,Secure Management,Supplies and Services,324117,Provisions,03-Dec-16,5537555609,TESCO STORES 6329,5411,Catering costs - provisions,94.81,0,94.81
Resources,I.C.T. Services,70204,Operations - System & Repairs Team,Supplies and Services,312011,Newspapers Books and Periodicals,03-Dec-16,5537555867,Amazon UK Marketplace,5942,Books-school library,6.38,1.06,5.32
Children and Young Peoples Services,Childrens Services,74000,TTF-Attachment and Results,Supplies and Services,384700,Miscellaneous Expenses,03-Dec-16,5537556071,WM MORRISON 040,5411,Miscellaneous grants,18,0,18
Regeneration and Local Services,Direct Services,21235,Catering - Wharton Park,Supplies and Services,324117,Provisions,03-Dec-16,5537556403,BRAKE BROS LTD,5811,Catering costs - provisions,76.62,12.77,63.85
Regeneration and Local Services,Direct Services,21235,Catering - Wharton Park,Supplies and Services,324117,Provisions,03-Dec-16,5537556403 - 1,BRAKE BROS LTD,5811,Catering costs - provisions,3.6,,3.6
Regeneration and Local Services,Economic Development and Housing,30699,Business Growth and Innovation General,Supplies and Services,304403,Equipment and Materials,04-Dec-16,5537555623,MEETEDGAR.COM STARTER,5734,Other consumables,38.84,0,38.84
Regeneration and Local Services,Spatial Policy Planning Assets & Environment,31200,North Pennines Core,Supplies and Services,312011,Newspapers Books and Periodicals,04-Dec-16,5537555741,Amazon UK Marketplace,5942,Books-school library,5,0,5
Resources,Resources Management,69000,Resources Management,Supplies and Services,324117,Provisions,04-Dec-16,5537556141,CO-OP GROUP 010830,5411,Catering costs - provisions,2,0,2
Regeneration and Local Services,Culture & Sport,11191,Wellbeing4Life,Supplies and Services,312011,Newspapers Books and Periodicals,04-Dec-16,5537556355,HOME BARGAINS,5251,Books-school library,15.34,0,15.34
Regeneration and Local Services,Economic Development and Housing,30699,Business Growth and Innovation General,Supplies and Services,304403,Equipment and Materials,05-Dec-16,5537555629,MEETEDGAR.COM STARTER,5734,Other consumables,1.07,0,1.07
Children and Young Peoples Services,Education,71801,Selby Cottage Childcare Centre,Supplies and Services,304259,Equipment and Materials,05-Dec-16,5544706025,WILKO RETAIL LIMIT,5722,Equipment-purchase and rental,5.5,0,5.5
Children and Young Peoples Services,Education,71801,Selby Cottage Childcare Centre,Supplies and Services,324117,Provisions,05-Dec-16,5544706029,TESCO STORES 2278,5411,Catering costs - provisions,83.63,0,83.63
Children and Young Peoples Services,Education,71801,Selby Cottage Childcare Centre,Supplies and Services,324117,Provisions,05-Dec-16,5544706031,TESCO STORES 2278,5411,Catering costs - provisions,32.51,0,32.51
Resources,Financial Services,65180,Collections,Income,720130,Fees and Charges,05-Dec-16,5544706041,HMCOURTS-SERVICE.G,9222,Fees-legal,"6,150.00",0,6150
Children and Young Peoples Services,Childrens Services,71746,Newton Aycliffe Childrens Centre,Supplies and Services,324117,Provisions,05-Dec-16,5544706065,ASDA HOME SHOPPING,5411,Catering costs - provisions,28.77,0,28.77
Children and Young Peoples Services,Childrens Services,85952,Secure Education,Supplies and Services,384999,Miscellaneous Expenses,05-Dec-16,5544706109,Amazon EU,5969,Other expenses,13.99,0,13.99
Regeneration and Local Services,Economic Development and Housing,30674,Business Services General,Transport,235057,Public Transport,05-Dec-16,5544706181,INTERNATIONAL CENT,7523,Staff travelling,4.5,0,4.5
Regeneration and Local Services,Economic Development and Housing,30737,Durham Works Flexible Fund,Transport,230031,Contract Hire,05-Dec-16,5544706213,GO NORTH EAST - V/T,4131,Pupils-transport to play fields etc,25.6,0,25.6
Regeneration and Local Services,Direct Services,21242,Catering - County Hall,Supplies and Services,324117,Provisions,05-Dec-16,5544706217,FREEMAN CATERING BUTCH,5422,Catering costs - provisions,131.44,0,131.44
Regeneration and Local Services,Direct Services,21242,Catering - County Hall,Supplies and Services,324117,Provisions,05-Dec-16,5544706221,FREEMAN CATERING BUTCH,5422,Catering costs - provisions,83.73,0,83.73
Regeneration and Local Services,Direct Services,21242,Catering - County Hall,Supplies and Services,324117,Provisions,05-Dec-16,5544706223,FREEMAN CATERING BUTCH,5422,Catering costs - provisions,76.95,0,76.95
Regeneration and Local Services,Direct Services,21242,Catering - County Hall,Supplies and Services,324117,Provisions,05-Dec-16,5544706229,JR HOLLAND FOODSERVICE,5422,Catering costs - provisions,83.79,0,83.79
Regeneration and Local Services,Direct Services,21242,Catering - County Hall,Supplies and Services,324117,Provisions,05-Dec-16,5544706233,JR HOLLAND FOODSERVICE,5422,Catering costs - provisions,13.52,0,13.52
Regeneration and Local Services,Direct Services,21242,Catering - County Hall,Supplies and Services,324117,Provisions,05-Dec-16,5544706235,BRAKE BROS LTD,5811,Catering costs - provisions,294.96,49.16,245.8
Regeneration and Local Services,Direct Services,21242,Catering - County Hall,Supplies and Services,324117,Provisions,05-Dec-16,5544706235 - 1,BRAKE BROS LTD,5811,Catering costs - provisions,200.08,,200.08
Regeneration and Local Services,Direct Services,21242,Catering - County Hall,Supplies and Services,324117,Provisions,05-Dec-16,5544706241,BRAKE BROS LTD,5811,Catering costs - provisions,217.84,0,217.84
Regeneration and Local Services,Culture & Sport,54812,Gala Theatre - Catering etc,Supplies and Services,324117,Provisions,05-Dec-16,5544706263,FREEMAN CATERING BUTCH,5422,Catering costs - provisions,88.77,0,88.77
Regeneration and Local Services,Spatial Policy Planning Assets & Environment,31200,North Pennines Core,Supplies and Services,312011,Newspapers Books and Periodicals,05-Dec-16,5544706299,Amazon UK Marketplace,5942,Books-school library,18.56,0,18.56
Regeneration and Local Services,Culture & Sport,11219,Office Services,Supplies and Services,304999,Equipment and Materials,05-Dec-16,5544706303,GOOGLE ADWS2420292471,5968,Misc equipment tools and materials,20.36,0,20.36
Children and Young Peoples Services,Childrens Services,88063,Bishop Auckland 0 - 5,Supplies and Services,324117,Provisions,05-Dec-16,5544706329,SAINSBURYS 2199,5411,Catering costs - provisions,39.54,0,39.54
Children and Young Peoples Services,Childrens Services,88063,Bishop Auckland 0 - 5,Supplies and Services,324117,Provisions,05-Dec-16,5544706333,TESCO STORES 6329,5411,Catering costs - provisions,21,0,21
Children and Young Peoples Services,Education,71732,Dean Bank Childcare,Supplies and Services,324117,Provisions,05-Dec-16,5544706355,ASDA HOME SHOPPING,5411,Catering costs - provisions,66.06,0,66.06
Children and Young Peoples Services,Education,71732,Dean Bank Childcare,Supplies and Services,324117,Provisions,05-Dec-16,5544706357,ASDA HOME SHOPPING,5411,Catering costs - provisions,5,0,5
Regeneration and Local Services,Culture & Sport,11221,Locality 1 Team Management,Supplies and Services,304259,Equipment and Materials,05-Dec-16,5544706361,B & Q 1006,5211,Equipment-purchase and rental,50,8.33,41.67
Regeneration and Local Services,Economic Development and Housing,30737,Durham Works Flexible Fund,Transport,235005,Public Transport,05-Dec-16,5544706377,ARRIVA PASSENGER S,7538,Contract tickets,7.8,0,7.8
Regeneration and Local Services,Economic Development and Housing,30737,Durham Works Flexible Fund,Supplies and Services,324117,Provisions,05-Dec-16,5544706381,ASDA 4387,5411,Catering costs - provisions,12.5,0,12.5
Children and Young Peoples Services,Childrens Services,85332,Middlestone Moor CU,Supplies and Services,328041,Clothing Uniforms and Laundry,05-Dec-16,5544706387,ARGOS RETAIL GROUP,5310,Clothing uniforms and laundry,225.91,0,225.91
Children and Young Peoples Services,Childrens Services,85332,Middlestone Moor CU,Supplies and Services,328041,Clothing Uniforms and Laundry,05-Dec-16,5544706393,ARGOS RETAIL GROUP,5310,Clothing uniforms and laundry,19.98,0,19.98
Regeneration and Local Services,Culture & Sport,11207,Physical Activity,Supplies and Services,304403,Equipment and Materials,05-Dec-16,5544706401,Amazon UK Marketplace,5942,Other consumables,5.99,0,5.99
Regeneration and Local Services,Economic Development and Housing,30737,Durham Works Flexible Fund,Supplies and Services,328041,Clothing Uniforms and Laundry,05-Dec-16,5544706445,ASDA STORES,5411,Clothing uniforms and laundry,45.1,0,45.1
Regeneration and Local Services,Culture & Sport,11060,Hardwick Park Catering,Supplies and Services,324117,Provisions,05-Dec-16,5544706507,FREEMAN CATERING BUTCH,5422,Catering costs - provisions,35.79,0,35.79
Regeneration and Local Services,Culture & Sport,11060,Hardwick Park Catering,Supplies and Services,324117,Provisions,05-Dec-16,5544706513,FREEMAN CATERING BUTCH,5422,Catering costs - provisions,32.2,0,32.2
Regeneration and Local Services,Culture & Sport,11060,Hardwick Park Catering,Supplies and Services,324117,Provisions,05-Dec-16,5544706515,JR HOLLAND FOODSERVICE,5422,Catering costs - provisions,15.53,0,15.53
Regeneration and Local Services,Culture & Sport,11060,Hardwick Park Catering,Supplies and Services,324117,Provisions,05-Dec-16,5544706521,BRAKE BROS LTD,5811,Catering costs - provisions,53.76,8.96,44.8
Regeneration and Local Services,Culture & Sport,11060,Hardwick Park Catering,Supplies and Services,324117,Provisions,05-Dec-16,5544706521 - 1,BRAKE BROS LTD,5811,Catering costs - provisions,96.83,,96.83
Regeneration and Local Services,Direct Services,10525,Catering - Green Lane,Supplies and Services,324117,Provisions,05-Dec-16,5544706567,FREEMAN CATERING BUTCH,5422,Catering costs - provisions,97.39,0,97.39
Regeneration and Local Services,Direct Services,10525,Catering - Green Lane,Supplies and Services,324117,Provisions,05-Dec-16,5544706573,FREEMAN CATERING BUTCH,5422,Catering costs - provisions,39.81,0,39.81
Children and Young Peoples Services,Childrens Services,85352,Tow Law CU,Supplies and Services,324117,Provisions,05-Dec-16,5544706591,TESCO STORES 2371,5411,Catering costs - provisions,188.67,0,188.67
Regeneration and Local Services,Direct Services,10367,C&G - South Grounds Maintenance,Supplies and Services,324117,Provisions,05-Dec-16,5544706645,J M RAINE,5399,Catering costs - provisions,140.92,23.49,117.43
Regeneration and Local Services,Economic Development and Housing,30749,Employability - Youth Contract,Transport,235005,Public Transport,05-Dec-16,5544706739,ARRIVA PASSENGER S,7538,Contract tickets,59,0,59
Children and Young Peoples Services,Childrens Services,85333,Coxhoe Satelite Home,Supplies and Services,324117,Provisions,05-Dec-16,5544706753,CO-OP GROUP 310016,5411,Catering costs - provisions,5.16,0,5.16
Children and Young Peoples Services,Childrens Services,85333,Coxhoe Satelite Home,Supplies and Services,324117,Provisions,05-Dec-16,5544706757,ASDA SUPERSTORE 4987,5411,Catering costs - provisions,106.48,0,106.48
Children and Young Peoples Services,Childrens Services,85333,Coxhoe Satelite Home,Supplies and Services,324117,Provisions,05-Dec-16,5544706761,ASDA SUPERSTORE 4987,5411,Catering costs - provisions,20.5,0,20.5
Children and Young Peoples Services,Childrens Services,88043,Consett 0 - 5,Supplies and Services,328041,Clothing Uniforms and Laundry,05-Dec-16,5544706763,B&M RETAIL,5310,Clothing uniforms and laundry,19.01,0,19.01
Regeneration and Local Services,Culture & Sport,11191,Wellbeing4Life,Supplies and Services,324117,Provisions,05-Dec-16,5544706771,TESCO STORES 2916,5411,Catering costs - provisions,6,0,6
Resources,I.C.T. Services,69010,Administration,Supplies and Services,312011,Newspapers Books and Periodicals,05-Dec-16,5544706775,Amazon UK Marketplace,5942,Books-school library,25.6,0,25.6
Regeneration and Local Services,Direct Services,20082,Bldg Serv - R&M Div 82- Lifts,Supplies and Services,344033,Telephones,05-Dec-16,5544706779,Amazon UK Marketplace,5942,Telephones general-all costs,7.99,0,7.99
Children and Young Peoples Services,Childrens Services,88003,Peterlee 0 - 5,Supplies and Services,312011,Newspapers Books and Periodicals,05-Dec-16,5544706823,Amazon UK Marketplace,5942,Books-school library,2.49,0,2.49
Regeneration and Local Services,Culture & Sport,54235,Bp Auckland Town Hall Cafe,Supplies and Services,324117,Provisions,05-Dec-16,5544706829,JR HOLLAND FOODSERVICE,5422,Catering costs - provisions,14.88,0,14.88
Regeneration and Local Services,Culture & Sport,54235,Bp Auckland Town Hall Cafe,Supplies and Services,324117,Provisions,05-Dec-16,5544706831,BRAKE BROS LTD,5811,Catering costs - provisions,39.96,6.66,33.3
Regeneration and Local Services,Culture & Sport,54235,Bp Auckland Town Hall Cafe,Supplies and Services,324117,Provisions,05-Dec-16,5544706831 - 1,BRAKE BROS LTD,5811,Catering costs - provisions,230.08,,230.08
Regeneration and Local Services,Culture & Sport,54235,Bp Auckland Town Hall Cafe,Supplies and Services,324117,Provisions,05-Dec-16,5544706835,BRAKE BROS LTD,5811,Catering costs - provisions,79.5,13.25,66.25
Regeneration and Local Services,Culture & Sport,54235,Bp Auckland Town Hall Cafe,Supplies and Services,324117,Provisions,05-Dec-16,5544706835 - 1,BRAKE BROS LTD,5811,Catering costs - provisions,118.57,,118.57
Regeneration and Local Services,Direct Services,21324,Catering - Meadowfield,Supplies and Services,324117,Provisions,05-Dec-16,5544706865,FREEMAN CATERING BUTCH,5422,Catering costs - provisions,61.31,0,61.31
Regeneration and Local Services,Direct Services,21324,Catering - Meadowfield,Supplies and Services,324117,Provisions,05-Dec-16,5544706871,FREEMAN CATERING BUTCH,5422,Catering costs - provisions,49.7,0,49.7
Regeneration and Local Services,Culture & Sport,11086,Positive Futures,Supplies and Services,324117,Provisions,05-Dec-16,5544706921,W M MORRISONS,5411,Catering costs - provisions,4.32,0,4.32
Children and Young Peoples Services,Childrens Services,88083,Ferryhill 0 - 5,Supplies and Services,324117,Provisions,05-Dec-16,5544706927,ASDA SUPERSTORE 4987,5411,Catering costs - provisions,40,0,40
Regeneration and Local Services,Culture & Sport,11191,Wellbeing4Life,Supplies and Services,324117,Provisions,05-Dec-16,5544706963,TESCO STORES 2371,5411,Catering costs - provisions,20.39,0,20.39
Regeneration and Local Services,Economic Development and Housing,30737,Durham Works Flexible Fund,Supplies and Services,324117,Provisions,05-Dec-16,5544706969,TESCO STORES 2916,5411,Catering costs - provisions,35.93,0,35.93
Children and Young Peoples Services,Childrens Services,71404,Laurel Avenue Childrens Centre,Supplies and Services,312011,Newspapers Books and Periodicals,05-Dec-16,5544706985,HOME BARGAINS,5251,Books-school library,26.93,4.49,22.44
Children and Young Peoples Services,Childrens Services,71404,Laurel Avenue Childrens Centre,Supplies and Services,324117,Provisions,05-Dec-16,5544706987,ICELAND,5411,Catering costs - provisions,11.55,0,11.55
Regeneration and Local Services,Spatial Policy Planning Assets & Environment,31217,North Pennines - Cold Blooded & Spineless,Transport,235057,Public Transport,05-Dec-16,5544706997,LUL TICKET MACHINE,4112,Staff travelling,4.9,0,4.9
Regeneration and Local Services,Culture & Sport,10605,Woodhouse Close Leisure Complex,Supplies and Services,324117,Provisions,05-Dec-16,5544707007,JR HOLLAND FOODSERVICE,5422,Catering costs - provisions,40.08,0,40.08
Regeneration and Local Services,Culture & Sport,10605,Woodhouse Close Leisure Complex,Supplies and Services,324117,Provisions,05-Dec-16,5544707013,BRAKE BROS LTD,5811,Catering costs - provisions,96.61,0,96.61
Regeneration and Local Services,Economic Development and Housing,30708,VCD - Marketing & Information,Supplies and Services,336005,Advertising,05-Dec-16,5544707019,GOOGLE ADWS9716261465,5968,Advertising other than for staff,"1,500.00",0,1500
Children and Young Peoples Services,Childrens Services,88033,Durham 0 - 5,Supplies and Services,312011,Newspapers Books and Periodicals,05-Dec-16,5544707047,THE BOOK PEOPLE,5942,Books-school library,284.35,0,284.35
Children and Young Peoples Services,Childrens Services,88033,Durham 0 - 5,Supplies and Services,304259,Equipment and Materials,05-Dec-16,5544707051,B & Q 1343,5211,Equipment-purchase and rental,42.5,0,42.5
Children and Young Peoples Services,Childrens Services,88033,Durham 0 - 5,Supplies and Services,324117,Provisions,05-Dec-16,5544707053,TESCO STORES 2371,5411,Catering costs - provisions,17.25,0,17.25
Children and Young Peoples Services,Childrens Services,88033,Durham 0 - 5,Supplies and Services,328041,Clothing Uniforms and Laundry,05-Dec-16,5544707057,B & M RETAIL,5310,Clothing uniforms and laundry,39.07,0,39.07
Regeneration and Local Services,Direct Services,19100,Fleet - Strategic Fleet,Supplies and Services,312009,Newspapers Books and Periodicals,05-Dec-16,5544707071,Amazon UK Marketplace,5942,Newspapers books and periodicals,5.98,0,5.98
Regeneration and Local Services,Direct Services,19100,Fleet - Strategic Fleet,Supplies and Services,312009,Newspapers Books and Periodicals,05-Dec-16,5544707073,Amazon UK Marketplace,5942,Newspapers books and periodicals,28.5,0,28.5
Regeneration and Local Services,Direct Services,10383,C&G - South Street Cleansing,Transport,215995,Running Costs of Vehicles,05-Dec-16,5552210439,SNOWBALLS (RAILWAY,5533,Vehicle running expenses,95.35,15.89,79.46
Regeneration and Local Services,Economic Development and Housing,30737,Durham Works Flexible Fund,Supplies and Services,328041,Clothing Uniforms and Laundry,05-Dec-16,5552210671,NEW LOOK MCOMM,5621,Clothing uniforms and laundry,53.97,0,53.97
Children and Young Peoples Services,Education,71801,Selby Cottage Childcare Centre,Supplies and Services,324117,Provisions,06-Dec-16,5547972399,TESCO STORES 2278,5411,Catering costs - provisions,31.15,0,31.15
Regeneration and Local Services,Economic Development and Housing,39544,Empty Homes Cluster,Income,720130,Fees and Charges,06-Dec-16,5547972407,CCBCOFFICE,9222,Fees-legal,100,0,100
Children and Young Peoples Services,Childrens Services,71449,Ferryhill One Point Hub,Supplies and Services,324117,Provisions,06-Dec-16,5547972437,ASDA SUPERSTORE 4987,5411,Catering costs - provisions,32,0,32
Children and Young Peoples Services,Childrens Services,85957,Secure Management,Supplies and Services,384999,Miscellaneous Expenses,06-Dec-16,5547972469,BOOTS.COM,5912,Other expenses,48.56,0,48.56
Regeneration and Local Services,Economic Development and Housing,30699,Business Growth and Innovation General,Supplies and Services,340001,Postages,06-Dec-16,5547972475,UPS LTD SHIPPING FEES,4215,Postages,146.1,24.35,121.75
Regeneration and Local Services,Economic Development and Housing,30699,Business Growth and Innovation General,Supplies and Services,340001,Postages,06-Dec-16,5547972475 - 1,UPS LTD SHIPPING FEES,4215,Postages,18.06,,18.06
Regeneration and Local Services,Economic Development and Housing,30699,Business Growth and Innovation General,Supplies and Services,340001,Postages,06-Dec-16,5547972479,UPS LTD SHIPPING FEES,4215,Postages,164.16,0,164.16
Regeneration and Local Services,Direct Services,21242,Catering - County Hall,Supplies and Services,324117,Provisions,06-Dec-16,5547972581,BRAMBLES FOODS LTD,5499,Catering costs - provisions,850.37,0,850.37
Regeneration and Local Services,Direct Services,21242,Catering - County Hall,Supplies and Services,324117,Provisions,06-Dec-16,5547972587,JR HOLLAND FOODSERVICE,5422,Catering costs - provisions,52.6,0,52.6
Regeneration and Local Services,Direct Services,21242,Catering - County Hall,Supplies and Services,324117,Provisions,06-Dec-16,5547972593,JR HOLLAND FOODSERVICE,5422,Catering costs - provisions,6.58,0,6.58
Regeneration and Local Services,Direct Services,21242,Catering - County Hall,Supplies and Services,324117,Provisions,06-Dec-16,5547972597,JR HOLLAND FOODSERVICE,5422,Catering costs - provisions,4.16,0,4.16
Resources,I.C.T. Services,65464,Domains,Supplies and Services,372009,Subscriptions,06-Dec-16,5547972601,WEB NETWORKSOLUTIONS,5968,Subscriptions,31.98,5.33,26.65
Resources,I.C.T. Services,65464,Domains,Supplies and Services,372009,Subscriptions,06-Dec-16,5547972601 - 1,WEB NETWORKSOLUTIONS,5968,Subscriptions,3.83,,3.83
Regeneration and Local Services,Direct Services,10367,C&G - South Grounds Maintenance,Supplies and Services,304259,Equipment and Materials,06-Dec-16,5547972611,BUILDBASE DURHAM,5211,Equipment-purchase and rental,7.14,1.19,5.95
Regeneration and Local Services,Culture & Sport,54812,Gala Theatre - Catering etc,Supplies and Services,324117,Provisions,06-Dec-16,5547972625,JR HOLLAND FOODSERVICE,5422,Catering costs - provisions,33.04,0,33.04
Regeneration and Local Services,Culture & Sport,54812,Gala Theatre - Catering etc,Supplies and Services,324117,Provisions,06-Dec-16,5547972629,BRAKE BROS LTD,5811,Catering costs - provisions,155.46,25.91,129.55
Regeneration and Local Services,Culture & Sport,54812,Gala Theatre - Catering etc,Supplies and Services,324117,Provisions,06-Dec-16,5547972629 - 1,BRAKE BROS LTD,5811,Catering costs - provisions,114.71,,114.71
Children and Young Peoples Services,Childrens Services,85351,Framwellgate Moor CU,Supplies and Services,324117,Provisions,06-Dec-16,5547972653,ASDA HOME SHOPPING,5411,Catering costs - provisions,164.35,0,164.35
Children and Young Peoples Services,Childrens Services,85351,Framwellgate Moor CU,Supplies and Services,324117,Provisions,06-Dec-16,5547972659,ASDA HOME SHOPPING,5411,Catering costs - provisions,-6.51,0,-6.51
Regeneration and Local Services,Direct Services,10900,Fleet - Meadowfield Fleet,Transport,215013,Running Costs of Vehicles,06-Dec-16,5547972677,DVLA VEHICLE TAX,9399,Vehicle Excise Duty (VED),232.5,0,232.5
Regeneration and Local Services,Direct Services,10864,Fleet - Hackworth Road Fleet,Transport,215013,Running Costs of Vehicles,06-Dec-16,5547972681,DVLA VEHICLE TAX,9399,Vehicle Excise Duty (VED),167.5,0,167.5
Regeneration and Local Services,Direct Services,10864,Fleet - Hackworth Road Fleet,Transport,215013,Running Costs of Vehicles,06-Dec-16,5547972683,DVLA VEHICLE TAX,9399,Vehicle Excise Duty (VED),167.5,0,167.5
Regeneration and Local Services,Direct Services,10900,Fleet - Meadowfield Fleet,Transport,215013,Running Costs of Vehicles,06-Dec-16,5547972687,DVLA VEHICLE TAX,9399,Vehicle Excise Duty (VED),232.5,0,232.5
Regeneration and Local Services,Direct Services,10900,Fleet - Meadowfield Fleet,Transport,215013,Running Costs of Vehicles,06-Dec-16,5547972689,DVLA VEHICLE TAX,9399,Vehicle Excise Duty (VED),232.5,0,232.5
Regeneration and Local Services,Direct Services,10900,Fleet - Meadowfield Fleet,Transport,215013,Running Costs of Vehicles,06-Dec-16,5547972695,DVLA VEHICLE TAX,9399,Vehicle Excise Duty (VED),232.5,0,232.5
Regeneration and Local Services,Direct Services,10864,Fleet - Hackworth Road Fleet,Transport,215013,Running Costs of Vehicles,06-Dec-16,5547972697,DVLA VEHICLE TAX,9399,Vehicle Excise Duty (VED),167.5,0,167.5
Regeneration and Local Services,Direct Services,10864,Fleet - Hackworth Road Fleet,Transport,215013,Running Costs of Vehicles,06-Dec-16,5547972699,DVLA VEHICLE TAX,9399,Vehicle Excise Duty (VED),167.5,0,167.5
Regeneration and Local Services,Direct Services,10864,Fleet - Hackworth Road Fleet,Transport,215013,Running Costs of Vehicles,06-Dec-16,5547972705,DVLA VEHICLE TAX,9399,Vehicle Excise Duty (VED),167.5,0,167.5
Regeneration and Local Services,Direct Services,10864,Fleet - Hackworth Road Fleet,Transport,215013,Running Costs of Vehicles,06-Dec-16,5547972707,DVLA VEHICLE TAX,9399,Vehicle Excise Duty (VED),167.5,0,167.5
Regeneration and Local Services,Direct Services,10900,Fleet - Meadowfield Fleet,Transport,215013,Running Costs of Vehicles,06-Dec-16,5547972711,DVLA VEHICLE TAX,9399,Vehicle Excise Duty (VED),232.5,0,232.5
Regeneration and Local Services,Direct Services,10864,Fleet - Hackworth Road Fleet,Transport,215013,Running Costs of Vehicles,06-Dec-16,5547972717,DVLA VEHICLE TAX,9399,Vehicle Excise Duty (VED),232.5,0,232.5
Regeneration and Local Services,Direct Services,10900,Fleet - Meadowfield Fleet,Transport,215013,Running Costs of Vehicles,06-Dec-16,5547972719,DVLA VEHICLE TAX,9399,Vehicle Excise Duty (VED),232.5,0,232.5
Regeneration and Local Services,Direct Services,10900,Fleet - Meadowfield Fleet,Transport,215013,Running Costs of Vehicles,06-Dec-16,5547972723,DVLA VEHICLE TAX,9399,Vehicle Excise Duty (VED),232.5,0,232.5
Regeneration and Local Services,Direct Services,10561,Fleet - Morrison Busty Fleet,Transport,215013,Running Costs of Vehicles,06-Dec-16,5547972729,DVLA VEHICLE TAX,9399,Vehicle Excise Duty (VED),232.5,0,232.5
Regeneration and Local Services,Direct Services,10900,Fleet - Meadowfield Fleet,Transport,215013,Running Costs of Vehicles,06-Dec-16,5547972731,DVLA VEHICLE TAX,9399,Vehicle Excise Duty (VED),232.5,0,232.5
Regeneration and Local Services,Direct Services,10900,Fleet - Meadowfield Fleet,Transport,215013,Running Costs of Vehicles,06-Dec-16,5547972733,DVLA VEHICLE TAX,9399,Vehicle Excise Duty (VED),232.5,0,232.5
Children and Young Peoples Services,Childrens Services,88063,Bishop Auckland 0 - 5,Supplies and Services,324117,Provisions,06-Dec-16,5547972741,ASDA STORES,5411,Catering costs - provisions,10.82,0,10.82
Children and Young Peoples Services,Education,71732,Dean Bank Childcare,Supplies and Services,328041,Clothing Uniforms and Laundry,06-Dec-16,5547972755,B&M RETAIL LTD,5310,Clothing uniforms and laundry,17.05,0,17.05
Resources,Legal & Democratic Services,69540,Charter Trust,Supplies and Services,324117,Provisions,06-Dec-16,5547972769,SAINSBURYS 2199,5411,Catering costs - provisions,5.1,0,5.1
Resources,Legal & Democratic Services,67910,Democratic Representation,Supplies and Services,324117,Provisions,06-Dec-16,5547972773,MARKS&SPENCER PLC SF,5411,Catering costs - provisions,12,0,12
Regeneration and Local Services,Economic Development and Housing,30737,Durham Works Flexible Fund,Supplies and Services,328041,Clothing Uniforms and Laundry,06-Dec-16,5547972783,WORKWEAR EXPRESS LIMIT,5699,Clothing uniforms and laundry,20.52,3.42,17.1
Regeneration and Local Services,Direct Services,10367,C&G - South Grounds Maintenance,Supplies and Services,304259,Equipment and Materials,06-Dec-16,5547972799,SCREWFIX,5211,Equipment-purchase and rental,206.98,34.5,172.48
Regeneration and Local Services,Direct Services,10301,C&G - North Grounds Maintenance,Supplies and Services,304403,Equipment and Materials,06-Dec-16,5547972815,BESCOL,5231,Other consumables,24.8,4.13,20.67
Regeneration and Local Services,Direct Services,10301,C&G - North Grounds Maintenance,Supplies and Services,304259,Equipment and Materials,06-Dec-16,5547972817,SCREWFIX,5211,Equipment-purchase and rental,26.66,4.44,22.22
Regeneration and Local Services,Culture & Sport,11060,Hardwick Park Catering,Supplies and Services,324117,Provisions,06-Dec-16,5547972825,JR HOLLAND FOODSERVICE,5422,Catering costs - provisions,66.15,0,66.15
Regeneration and Local Services,Culture & Sport,11060,Hardwick Park Catering,Supplies and Services,324117,Provisions,06-Dec-16,5547972829,JR HOLLAND FOODSERVICE,5422,Catering costs - provisions,19.67,0,19.67
Regeneration and Local Services,Culture & Sport,11060,Hardwick Park Catering,Supplies and Services,324117,Provisions,06-Dec-16,5547972835,JR HOLLAND FOODSERVICE,5422,Catering costs - provisions,-8.37,0,-8.37
Regeneration and Local Services,Culture & Sport,11060,Hardwick Park Catering,Supplies and Services,324117,Provisions,06-Dec-16,5547972839,BRAKE BROS LTD,5811,Catering costs - provisions,-5.84,0,-5.84
Regeneration and Local Services,Spatial Policy Planning Assets & Environment,31200,North Pennines Core,Supplies and Services,348037,Subsistence,06-Dec-16,5547972851,CAFE OSWALDS,5812,Subsistence,35.8,0,35.8
Regeneration and Local Services,Economic Development and Housing,30750,Durham Employment & Skills - General,Employees,40149,Recruitment Instruction and Training,06-Dec-16,5547972863,CITB,8220,Training-all costs,30,5,25
Regeneration and Local Services,Direct Services,21234,Catering - Locomotion,Supplies and Services,324117,Provisions,06-Dec-16,5547972869,BRAMBLES FOODS LTD,5499,Catering costs - provisions,74.04,0,74.04
Regeneration and Local Services,Direct Services,21234,Catering - Locomotion,Supplies and Services,324117,Provisions,06-Dec-16,5547972873,JR HOLLAND FOODSERVICE,5422,Catering costs - provisions,40.48,0,40.48
Regeneration and Local Services,Culture & Sport,11058,Wharton Park,Supplies and Services,308011,Furniture,06-Dec-16,5547972879,FESTIVE LIGHTS LTD,5719,Furniture repair and replacement,11.53,1.92,9.61
Regeneration and Local Services,Direct Services,10525,Catering - Green Lane,Supplies and Services,324117,Provisions,06-Dec-16,5547972901,BRAMBLES FOODS LTD,5499,Catering costs - provisions,106.49,0,106.49
Regeneration and Local Services,Direct Services,10525,Catering - Green Lane,Supplies and Services,324117,Provisions,06-Dec-16,5547972907,BRAKE BROS LTD,5811,Catering costs - provisions,106.08,17.68,88.4
Regeneration and Local Services,Direct Services,10525,Catering - Green Lane,Supplies and Services,324117,Provisions,06-Dec-16,5547972907 - 1,BRAKE BROS LTD,5811,Catering costs - provisions,78.68,,78.68
Children and Young Peoples Services,Childrens Services,85352,Tow Law CU,Supplies and Services,324117,Provisions,06-Dec-16,5547972935,SAINSBURYS 2199,5411,Catering costs - provisions,69.09,0,69.09
Children and Young Peoples Services,Childrens Services,85352,Tow Law CU,Supplies and Services,304259,Equipment and Materials,06-Dec-16,5547972939,WILKO RETAIL LIMIT,5722,Equipment-purchase and rental,57.77,0,57.77
Children and Young Peoples Services,Childrens Services,85352,Tow Law CU,Supplies and Services,324117,Provisions,06-Dec-16,5547972945,TESCO STORES 6329,5411,Catering costs - provisions,31.2,0,31.2
Regeneration and Local Services,Economic Development and Housing,30749,Employability - Youth Contract,Transport,235005,Public Transport,06-Dec-16,5547973037,ARRIVA PASSENGER S,7538,Contract tickets,48,0,48
Regeneration and Local Services,Spatial Policy Planning Assets & Environment,31081,Heritage Coast,Supplies and Services,352001,Conference Expenses,06-Dec-16,5547973055,SUNDERLAND MARINA,4468,Conferencesseminars fees etc,20,0,20
Regeneration and Local Services,Transport and Contracted Services,31701,Care Connect All Localities,Supplies and Services,338064,Services,06-Dec-16,5547973059,DISCLOSURE SCOT,9399,Disclosure & Barring (DBS) Fees,25,0,25
Adult and Health Services,EnvironmentHealth & Consumer Protection,10827,Health Protection,Supplies and Services,338064,Services,06-Dec-16,5547973063,DISCLOSURE SCOT,9399,Disclosure & Barring (DBS) Fees,25,0,25
Resources,I.C.T. Services,69010,Administration,Transport,235057,Public Transport,06-Dec-16,5547973069,OYSTER RENEW WEB,4112,Staff travelling,50,0,50
Resources,Internal Audit and Insurance,65104,Internal Audit,Supplies and Services,332047,Printing Stationery and Gen Off Exps,06-Dec-16,5547973075,WWW.UK.INSIGHT.COM,5964,Stationery,53.98,9,44.98
Resources,I.C.T. Services,65303,Design & Print - Design,Supplies and Services,342033,Computers and Communications,06-Dec-16,5547973079,APPY PIE,5734,Computer hardware,48,8,40
Regeneration and Local Services,Direct Services,10301,C&G - North Grounds Maintenance,Supplies and Services,304259,Equipment and Materials,06-Dec-16,5547973129,HARELAW SAWMILL,5211,Equipment-purchase and rental,175.8,29.3,146.5
Regeneration and Local Services,Transport and Contracted Services,31701,Care Connect All Localities,Supplies and Services,304259,Equipment and Materials,06-Dec-16,5547973151,SECURITY INDUSTRY,7393,Equipment-purchase and rental,220,0,220
Regeneration and Local Services,Transport and Contracted Services,31701,Care Connect All Localities,Supplies and Services,344033,Telephones,06-Dec-16,5547973157,BT BILL PAYMENT 2,4812,Telephones general-all costs,29.49,4.92,24.57
Regeneration and Local Services,Direct Services,21324,Catering - Meadowfield,Supplies and Services,324117,Provisions,06-Dec-16,5547973169,BRAMBLES FOODS LTD,5499,Catering costs - provisions,80.4,0,80.4
Regeneration and Local Services,Direct Services,21324,Catering - Meadowfield,Supplies and Services,324117,Provisions,06-Dec-16,5547973173,BRAKE BROS LTD,5811,Catering costs - provisions,51.27,0,51.27
Children and Young Peoples Services,Childrens Services,74000,TTF-Attachment and Results,Supplies and Services,308011,Furniture,06-Dec-16,5547973269,J DODDS CARPETS LTD,5713,Furniture repair and replacement,136,0,136
Children and Young Peoples Services,Childrens Services,74000,TTF-Attachment and Results,Supplies and Services,324117,Provisions,06-Dec-16,5547973273,ASDA 4387,5411,Catering costs - provisions,116.95,19.49,97.46
Regeneration and Local Services,Direct Services,21235,Catering - Wharton Park,Supplies and Services,324117,Provisions,06-Dec-16,5547973277,BRAKE BROS LTD,5811,Catering costs - provisions,-12.2,-2.03,-10.17
Regeneration and Local Services,Spatial Policy Planning Assets & Environment,31217,North Pennines - Cold Blooded & Spineless,Transport,235057,Public Transport,06-Dec-16,5547973285,LUL TICKET MACHINE,4112,Staff travelling,4.9,0,4.9
Regeneration and Local Services,Spatial Policy Planning Assets & Environment,31217,North Pennines - Cold Blooded & Spineless,Supplies and Services,352001,Conference Expenses,06-Dec-16,5547973291,SHIILLINGFORD BRIDGE H,7011,Conferencesseminars fees etc,76.65,0,76.65
Regeneration and Local Services,Culture & Sport,26591,Hardwick Park,Supplies and Services,312009,Newspapers Books and Periodicals,06-Dec-16,5547973293,Amazon UK Marketplace,5942,Newspapers books and periodicals,21.99,0,21.99
Regeneration and Local Services,Direct Services,19100,Fleet - Strategic Fleet,Supplies and Services,312009,Newspapers Books and Periodicals,06-Dec-16,5547973359,Amazon UK Marketplace,5942,Newspapers books and periodicals,34.44,0,34.44
Children and Young Peoples Services,Childrens Services,88003,Peterlee 0 - 5,Supplies and Services,328041,Clothing Uniforms and Laundry,06-Dec-16,5547973377,ARGOS RETAIL GROUP,5310,Clothing uniforms and laundry,57.46,0,57.46
Children and Young Peoples Services,Childrens Services,88003,Peterlee 0 - 5,Supplies and Services,328041,Clothing Uniforms and Laundry,06-Dec-16,5547973383,ARGOS RETAIL GROUP,5310,Clothing uniforms and laundry,19.98,0,19.98
Resources,I.C.T. Services,65464,Domains,Supplies and Services,372009,Subscriptions,07-Dec-16,5547972605,WEB NETWORKSOLUTIONS,5968,Subscriptions,0.98,0,0.98
Regeneration and Local Services,Economic Development and Housing,30671,Business Space,Supplies and Services,332047,Printing Stationery and Gen Off Exps,07-Dec-16,5547973067,Amazon UK Marketplace,5942,Stationery,22.89,0,22.89
Regeneration and Local Services,Direct Services,21242,Catering - County Hall,Supplies and Services,324117,Provisions,07-Dec-16,5552210549,JR HOLLAND FOODSERVICE,5422,Catering costs - provisions,165.94,0,165.94
Regeneration and Local Services,Direct Services,21242,Catering - County Hall,Supplies and Services,324117,Provisions,07-Dec-16,5552210561,JR HOLLAND FOODSERVICE,5422,Catering costs - provisions,92.97,0,92.97
Regeneration and Local Services,Direct Services,21242,Catering - County Hall,Supplies and Services,324117,Provisions,07-Dec-16,5552210567,JR HOLLAND FOODSERVICE,5422,Catering costs - provisions,31.35,0,31.35
Regeneration and Local Services,Direct Services,21242,Catering - County Hall,Supplies and Services,324117,Provisions,07-Dec-16,5552210571,JR HOLLAND FOODSERVICE,5422,Catering costs - provisions,13.33,0,13.33
Regeneration and Local Services,Direct Services,21242,Catering - County Hall,Supplies and Services,324117,Provisions,07-Dec-16,5552210575,BRAKE BROS LTD,5811,Catering costs - provisions,275.44,0,275.44
Regeneration and Local Services,Direct Services,21242,Catering - County Hall,Supplies and Services,324117,Provisions,07-Dec-16,5552210583,BRAKE BROS LTD,5811,Catering costs - provisions,8.3,0,8.3
Regeneration and Local Services,Direct Services,10367,C&G - South Grounds Maintenance,Supplies and Services,304259,Equipment and Materials,07-Dec-16,5552210593,AYCLIFFE DECORATIV,5211,Equipment-purchase and rental,292.66,48.78,243.88
Regeneration and Local Services,Strategy Programmes and Performance,30053,Building Capacity Exchange,Supplies and Services,348037,Subsistence,07-Dec-16,5552210599,LAING ART GALLERY,5812,Subsistence,15.45,0,15.45
Children and Young Peoples Services,Education,71732,Dean Bank Childcare,Supplies and Services,312011,Newspapers Books and Periodicals,07-Dec-16,5552210639,HOME BARGAINS SPENNYMO,5251,Books-school library,13.8,0,13.8
Regeneration and Local Services,Culture & Sport,11221,Locality 1 Team Management,Supplies and Services,304403,Equipment and Materials,07-Dec-16,5552210645,MAXWELLS D I Y,5231,Other consumables,25.9,4.32,21.58
Children and Young Peoples Services,Childrens Services,85341,High Etherley Satelite Home,Supplies and Services,338057,Services,07-Dec-16,5552210651,SCIENTIFIC & CHEM,5047,Medical fees,201.1,0,201.1
Children and Young Peoples Services,Childrens Services,85341,High Etherley Satelite Home,Supplies and Services,304999,Equipment and Materials,07-Dec-16,5552210657,WWW.ROCKRUN.COM,5998,Misc equipment tools and materials,103.5,0,103.5
Children and Young Peoples Services,Childrens Services,85341,High Etherley Satelite Home,Supplies and Services,324117,Provisions,07-Dec-16,5552210661,TESCO STORES 6329,5411,Catering costs - provisions,137.81,0,137.81
Regeneration and Local Services,Economic Development and Housing,30737,Durham Works Flexible Fund,Supplies and Services,304259,Equipment and Materials,07-Dec-16,5552210665,WWW.TORBAY.GOV.UK,9399,Equipment-purchase and rental,11,0,11
Regeneration and Local Services,Economic Development and Housing,30737,Durham Works Flexible Fund,Supplies and Services,324117,Provisions,07-Dec-16,5552210675,CO-OP GROUP 010518,5411,Catering costs - provisions,25,0,25
Regeneration and Local Services,Direct Services,10301,C&G - North Grounds Maintenance,Supplies and Services,304999,Equipment and Materials,07-Dec-16,5552210711,GUSTHARTS CHAINSAW CTR,7699,Misc equipment tools and materials,444.6,74.1,370.5
Regeneration and Local Services,Economic Development and Housing,30737,Durham Works Flexible Fund,Supplies and Services,304245,Equipment and Materials,07-Dec-16,5552210713,SCREWFIX DIRECT,5211,Materials,4.98,0.83,4.15
Regeneration and Local Services,Economic Development and Housing,30737,Durham Works Flexible Fund,Supplies and Services,304245,Equipment and Materials,07-Dec-16,5552210713 - 1,SCREWFIX DIRECT,5211,Materials,20.01,,20.01
Children and Young Peoples Services,Childrens Services,85958,Support Services,Supplies and Services,312011,Newspapers Books and Periodicals,07-Dec-16,5552210739,Amazon UK Marketplace,5942,Books-school library,20,0,20
Children and Young Peoples Services,Childrens Services,85958,Support Services,Supplies and Services,328041,Clothing Uniforms and Laundry,07-Dec-16,5552210745,WWW.FOOTLOCKER.EU,5661,Clothing uniforms and laundry,114.98,19.16,95.82
Children and Young Peoples Services,Childrens Services,85958,Support Services,Supplies and Services,304259,Equipment and Materials,07-Dec-16,5552210747,WWW.FOOTASYLUM.COM,5941,Equipment-purchase and rental,175.93,0,175.93
Children and Young Peoples Services,Childrens Services,85958,Support Services,Supplies and Services,324117,Provisions,07-Dec-16,5552210753,TESCO STORES 6329,5411,Catering costs - provisions,76.54,0,76.54
Children and Young Peoples Services,Childrens Services,85958,Support Services,Supplies and Services,328041,Clothing Uniforms and Laundry,07-Dec-16,5552210757,ARGOS RETAIL GROUP,5310,Clothing uniforms and laundry,18.95,0,18.95
Regeneration and Local Services,Culture & Sport,11060,Hardwick Park Catering,Supplies and Services,324117,Provisions,07-Dec-16,5552210803,JR HOLLAND FOODSERVICE,5422,Catering costs - provisions,27.46,0,27.46
Regeneration and Local Services,Culture & Sport,11060,Hardwick Park Catering,Supplies and Services,324117,Provisions,07-Dec-16,5552210809,BRAKE BROS LTD,5811,Catering costs - provisions,37.62,6.27,31.35
Regeneration and Local Services,Culture & Sport,11060,Hardwick Park Catering,Supplies and Services,324117,Provisions,07-Dec-16,5552210809 - 1,BRAKE BROS LTD,5811,Catering costs - provisions,104.99,,104.99
Regeneration and Local Services,Culture & Sport,11060,Hardwick Park Catering,Supplies and Services,324117,Provisions,07-Dec-16,5552210813,BRAKE BROS LTD,5811,Catering costs - provisions,54.29,0,54.29
Regeneration and Local Services,Culture & Sport,54815,Gala Theatre Stage School,Employees,40149,Recruitment Instruction and Training,07-Dec-16,5552210823,SPOTLIGHT,8699,Training-all costs,102,0,102
Regeneration and Local Services,Culture & Sport,54815,Gala Theatre Stage School,Supplies and Services,328041,Clothing Uniforms and Laundry,07-Dec-16,5552210829,NEXT DURHAM,5651,Clothing uniforms and laundry,25,0,25
Regeneration and Local Services,Direct Services,10525,Catering - Green Lane,Supplies and Services,324117,Provisions,07-Dec-16,5552210849,JR HOLLAND FOODSERVICE,5422,Catering costs - provisions,69.47,0,69.47
Regeneration and Local Services,Direct Services,10525,Catering - Green Lane,Supplies and Services,324117,Provisions,07-Dec-16,5552210857,BRAKE BROS LTD,5811,Catering costs - provisions,67.75,0,67.75
Children and Young Peoples Services,Childrens Services,85333,Coxhoe Satelite Home,Supplies and Services,324117,Provisions,07-Dec-16,5552210959,ASDA SUPERSTORE 4987,5411,Catering costs - provisions,71.88,0,71.88
Children and Young Peoples Services,Childrens Services,85333,Coxhoe Satelite Home,Supplies and Services,324117,Provisions,07-Dec-16,5552210961,ASDA SUPERSTORE 4987,5411,Catering costs - provisions,18,0,18
Regeneration and Local Services,Economic Development and Housing,31500,Housing Solutions - Core Team,Supplies and Services,352001,Conference Expenses,07-Dec-16,5552210983,TRAVELODGE,3615,Conferencesseminars fees etc,39,6.5,32.5
Regeneration and Local Services,Economic Development and Housing,31500,Housing Solutions - Core Team,Transport,235057,Public Transport,07-Dec-16,5552210987,CABCARD SERVICES U,4121,Staff travelling,15.75,0,15.75
Children and Young Peoples Services,Childrens Services,74000,TTF-Attachment and Results,Supplies and Services,304403,Equipment and Materials,07-Dec-16,5552211007,TESCO - HARTSOFSTUR,5999,Other consumables,11.95,0,11.95
Children and Young Peoples Services,Childrens Services,74000,TTF-Attachment and Results,Supplies and Services,304403,Equipment and Materials,07-Dec-16,5552211011,TESCO - Seller_IST_1_2,5999,Other consumables,94.99,0,94.99
Children and Young Peoples Services,Childrens Services,74000,TTF-Attachment and Results,Supplies and Services,304403,Equipment and Materials,07-Dec-16,5552211015,TESCO DIRECT,5999,Other consumables,18,0,18
Regeneration and Local Services,Transport and Contracted Services,31701,Care Connect All Localities,Supplies and Services,344033,Telephones,07-Dec-16,5552211019,Amazon UK Marketplace,5942,Telephones general-all costs,7.24,1.21,6.03
Adult and Health Services,Planning & Service Strategy,52967,Central Admin & Governance,Supplies and Services,338064,Services,07-Dec-16,5552211025,DISCLOSURE SCOT,9399,Disclosure & Barring (DBS) Fees,25,0,25
Resources,Corporate Finance,65106,Strategic Finance - Revenue & Capital,Supplies and Services,312009,Newspapers Books and Periodicals,07-Dec-16,5552211027,BPP PROF EDUCATION,8220,Newspapers books and periodicals,69,0,69
Resources,I.C.T. Services,69010,Administration,Transport,235057,Public Transport,07-Dec-16,5552211029,OYSTER RENEW WEB,4112,Staff travelling,50,0,50
Regeneration and Local Services,Culture & Sport,54399,Local Delivery-Libraries,Supplies and Services,312011,Newspapers Books and Periodicals,07-Dec-16,5552211065,Amazon EU,5969,Books-school library,15.72,0,15.72
Regeneration and Local Services,Culture & Sport,54399,Local Delivery-Libraries,Supplies and Services,312011,Newspapers Books and Periodicals,07-Dec-16,5552211071,Amazon EU,5969,Books-school library,6.28,0,6.28
Regeneration and Local Services,Direct Services,10301,C&G - North Grounds Maintenance,Supplies and Services,304221,Equipment and Materials,07-Dec-16,5552211095,SPALDINGS LIMITED,5085,Direct materials,61.8,0,61.8
Regeneration and Local Services,Culture & Sport,54235,Bp Auckland Town Hall Cafe,Supplies and Services,324117,Provisions,07-Dec-16,5552211111,JR HOLLAND FOODSERVICE,5422,Catering costs - provisions,37.09,0,37.09
Regeneration and Local Services,Direct Services,21324,Catering - Meadowfield,Supplies and Services,324117,Provisions,07-Dec-16,5552211131,JR HOLLAND FOODSERVICE,5422,Catering costs - provisions,27.07,0,27.07
Regeneration and Local Services,Direct Services,21324,Catering - Meadowfield,Supplies and Services,324117,Provisions,07-Dec-16,5552211135,JR HOLLAND FOODSERVICE,5422,Catering costs - provisions,6.87,0,6.87
Regeneration and Local Services,Direct Services,21324,Catering - Meadowfield,Supplies and Services,324117,Provisions,07-Dec-16,5552211141,BRAKE BROS LTD,5811,Catering costs - provisions,42.48,7.08,35.4
Regeneration and Local Services,Direct Services,21324,Catering - Meadowfield,Supplies and Services,324117,Provisions,07-Dec-16,5552211141 - 1,BRAKE BROS LTD,5811,Catering costs - provisions,112.67,,112.67
Resources,Legal & Democratic Services,67953,Coroner County Durham & Darlington,Supplies and Services,304999,Equipment and Materials,07-Dec-16,5552211217,BOOTS 6023,5912,Misc equipment tools and materials,18,0,18
Resources,Legal & Democratic Services,67953,Coroner County Durham & Darlington,Supplies and Services,324117,Provisions,07-Dec-16,5552211219,SAINSBURYS 2199,5411,Catering costs - provisions,18,0,18
Children and Young Peoples Services,Childrens Services,88083,Ferryhill 0 - 5,Supplies and Services,324117,Provisions,07-Dec-16,5552211225,ASDA SUPERSTORE 4987,5411,Catering costs - provisions,8.03,0,8.03
Children and Young Peoples Services,Childrens Services,85331,New Lea Childrens Home,Transport,235057,Public Transport,07-Dec-16,5552211249,WWW.SIMPLYGO.COM,4131,Staff travelling,15.5,0,15.5
Children and Young Peoples Services,Childrens Services,74000,TTF-Attachment and Results,Supplies and Services,304403,Equipment and Materials,07-Dec-16,5552211285,TESCO DIRECT,5999,Other consumables,58,0,58
Children and Young Peoples Services,Childrens Services,71404,Laurel Avenue Childrens Centre,Supplies and Services,324117,Provisions,07-Dec-16,5552211293,TESCO STORES 2371,5411,Catering costs - provisions,20.43,0,20.43
Regeneration and Local Services,Culture & Sport,10605,Woodhouse Close Leisure Complex,Supplies and Services,324117,Provisions,07-Dec-16,5552211301,JR HOLLAND FOODSERVICE,5422,Catering costs - provisions,29.5,0,29.5
Regeneration and Local Services,Economic Development and Housing,30737,Durham Works Flexible Fund,Transport,235057,Public Transport,07-Dec-16,5552211339,WWW.SIMPLYGO.COM,4131,Staff travelling,25,0,25
Regeneration and Local Services,Economic Development and Housing,30737,Durham Works Flexible Fund,Transport,235057,Public Transport,07-Dec-16,5552211347,WWW.SIMPLYGO.COM,4131,Staff travelling,7.8,0,7.8
Regeneration and Local Services,Spatial Policy Planning Assets & Environment,31200,North Pennines Core,Supplies and Services,340001,Postages,07-Dec-16,5552211377,THE POST OFFICE,9402,Postages,3.35,0,3.35
Regeneration and Local Services,Spatial Policy Planning Assets & Environment,31200,North Pennines Core,Supplies and Services,324117,Provisions,07-Dec-16,5552211379,STANHOPE PAPER SHOP,5399,Catering costs - provisions,2.45,0,2.45
Regeneration and Local Services,Spatial Policy Planning Assets & Environment,31200,North Pennines Core,Supplies and Services,324117,Provisions,07-Dec-16,5552211385,SCOTMID CO-OP STANHOPE,5411,Catering costs - provisions,2.34,0,2.34
Regeneration and Local Services,Economic Development and Housing,30749,Employability - Youth Contract,Supplies and Services,324117,Provisions,07-Dec-16,5552211395,TESCO STORES 2916,5411,Catering costs - provisions,7,0,7
Regeneration and Local Services,Economic Development and Housing,30749,Employability - Youth Contract,Supplies and Services,324117,Provisions,07-Dec-16,5552211399,CO-OP GROUP 010690,5411,Catering costs - provisions,25,0,25
Regeneration and Local Services,Economic Development and Housing,30699,Business Growth and Innovation General,Supplies and Services,336005,Advertising,07-Dec-16,5556870101,ADROLL,7311,Advertising other than for staff,1.93,0,1.93
Regeneration and Local Services,Strategy Programmes and Performance,30053,Building Capacity Exchange,Transport,235057,Public Transport,07-Dec-16,5556870137,NCP LIMITED,7523,Staff travelling,6.66,1.11,5.55
Regeneration and Local Services,Economic Development and Housing,30737,Durham Works Flexible Fund,Transport,235005,Public Transport,07-Dec-16,5556870155,ARRIVA PASSENGER S,7538,Contract tickets,7.8,0,7.8
Children and Young Peoples Services,Childrens Services,85958,Support Services,Supplies and Services,332047,Printing Stationery and Gen Off Exps,07-Dec-16,5556870187,DAY-TIMERS,5943,Stationery,41.34,0,41.34
Children and Young Peoples Services,Childrens Services,85958,Support Services,Supplies and Services,328041,Clothing Uniforms and Laundry,07-Dec-16,5556870189,WWW.BOOHOO.COM,5691,Clothing uniforms and laundry,139.02,23.17,115.85
Children and Young Peoples Services,Childrens Services,85958,Support Services,Supplies and Services,328041,Clothing Uniforms and Laundry,07-Dec-16,5556870189 - 1,WWW.BOOHOO.COM,5691,Clothing uniforms and laundry,3.97,,3.97
Children and Young Peoples Services,Education,78146,CPD Conferences,Supplies and Services,364320,Grants to Voluntary Organisations,07-Dec-16,5556870281,THE KINGSLODGE INN,7011,Accommodation assistance,95,0,95
Children and Young Peoples Services,Childrens Services,88013,Seaham 0 - 5,Supplies and Services,332047,Printing Stationery and Gen Off Exps,07-Dec-16,5556870305,LOVE2SHOP.CO.UK,8641,Stationery,306.45,0,306.45
Children and Young Peoples Services,Education,71801,Selby Cottage Childcare Centre,Supplies and Services,304259,Equipment and Materials,08-Dec-16,5556870063,WILKO RETAIL LIMIT,5722,Equipment-purchase and rental,8.15,0,8.15
Children and Young Peoples Services,Education,71801,Selby Cottage Childcare Centre,Supplies and Services,324117,Provisions,08-Dec-16,5556870065,ICELAND,5411,Catering costs - provisions,23.38,0,23.38
Children and Young Peoples Services,Education,71801,Selby Cottage Childcare Centre,Supplies and Services,324117,Provisions,08-Dec-16,5556870067,W M MORRISON PLC,5411,Catering costs - provisions,23.13,0,23.13
Regeneration and Local Services,Economic Development and Housing,30699,Business Growth and Innovation General,Supplies and Services,304403,Equipment and Materials,08-Dec-16,5556870103,BLS MAGISTO,5734,Other consumables,120.22,0,120.22
Regeneration and Local Services,Economic Development and Housing,30699,Business Growth and Innovation General,Supplies and Services,340001,Postages,08-Dec-16,5556870105,UPS LTD SHIPPING FEES,4215,Postages,-164.16,0,-164.16
Regeneration and Local Services,Economic Development and Housing,30671,Business Space,Supplies and Services,332048,Printing Stationery and Gen Off Exps,08-Dec-16,5556870109,Amazon UK Marketplace,5942,Administrative stationery etc,2.84,0,2.84
Regeneration and Local Services,Direct Services,21242,Catering - County Hall,Supplies and Services,324117,Provisions,08-Dec-16,5556870123,JR HOLLAND FOODSERVICE,5422,Catering costs - provisions,109.71,0,109.71
Regeneration and Local Services,Direct Services,21242,Catering - County Hall,Supplies and Services,324117,Provisions,08-Dec-16,5556870127,JR HOLLAND FOODSERVICE,5422,Catering costs - provisions,13.16,0,13.16
Children and Young Peoples Services,Education,70169,Durham SSP,Supplies and Services,332048,Printing Stationery and Gen Off Exps,08-Dec-16,5556870131,ICE PRINT AND DESIGN L,2741,Administrative stationery etc,68.85,0,68.85
Children and Young Peoples Services,Childrens Services,88073,Barnard Castle 0 - 5,Supplies and Services,384999,Miscellaneous Expenses,08-Dec-16,5556870133,SCALLYWAGZ LTD,7997,Other expenses,35,0,35
Regeneration and Local Services,Direct Services,10367,C&G - South Grounds Maintenance,Supplies and Services,304221,Equipment and Materials,08-Dec-16,5556870135,R DEFTY,5200,Direct materials,17.4,2.9,14.5
Regeneration and Local Services,Direct Services,10367,C&G - South Grounds Maintenance,Supplies and Services,304221,Equipment and Materials,08-Dec-16,5556870135 - 1,R DEFTY,5200,Direct materials,0.1,,0.1
Regeneration and Local Services,Culture & Sport,54812,Gala Theatre - Catering etc,Supplies and Services,324117,Provisions,08-Dec-16,5556870139,JR HOLLAND FOODSERVICE,5422,Catering costs - provisions,81.8,0,81.8
Regeneration and Local Services,Culture & Sport,54812,Gala Theatre - Catering etc,Supplies and Services,324117,Provisions,08-Dec-16,5556870141,BRAKE BROS LTD,5811,Catering costs - provisions,-38.8,0,-38.8
Children and Young Peoples Services,Childrens Services,88063,Bishop Auckland 0 - 5,Supplies and Services,324117,Provisions,08-Dec-16,5556870151,SAINSBURYS 2199,5411,Catering costs - provisions,12.65,0,12.65
Regeneration and Local Services,Economic Development and Housing,30737,Durham Works Flexible Fund,Supplies and Services,324117,Provisions,08-Dec-16,5556870157,SAINSBURYS (2303),5411,Catering costs - provisions,64.75,0,64.75
Regeneration and Local Services,Economic Development and Housing,30737,Durham Works Flexible Fund,Supplies and Services,328041,Clothing Uniforms and Laundry,08-Dec-16,5556870159,ARGOS SEDGEFIELD,5310,Clothing uniforms and laundry,34.95,0,34.95
Dedicated Schools Grant,Dedicated Schools Grant,79075,Learning Difficulties Team,Supplies and Services,312009,Newspapers Books and Periodicals,08-Dec-16,5556870163,Amazon EU,5969,Newspapers books and periodicals,26.78,0,26.78
Transformation and Partnerships,Planning & Performance Division,60134,WW1 In County Durham,Supplies and Services,332047,Printing Stationery and Gen Off Exps,08-Dec-16,5556870165,WWW.RYMAN.CO.UK,5943,Stationery,7.89,0,7.89
Regeneration and Local Services,Economic Development and Housing,30553,Europe Direct Scheme,Supplies and Services,308011,Furniture,08-Dec-16,5556870167,IKEA LIMITED,5712,Furniture repair and replacement,29.5,0,29.5
Regeneration and Local Services,Economic Development and Housing,30737,Durham Works Flexible Fund,Transport,230031,Contract Hire,08-Dec-16,5556870177,GO NORTH EAST - V/T,4131,Pupils-transport to play fields etc,10,0,10
Regeneration and Local Services,Economic Development and Housing,30737,Durham Works Flexible Fund,Transport,230031,Contract Hire,08-Dec-16,5556870179,WWW.SIMPLYGO.COM,4131,Pupils-transport to play fields etc,6.4,0,6.4
Regeneration and Local Services,Economic Development and Housing,30737,Durham Works Flexible Fund,Transport,230031,Contract Hire,08-Dec-16,5556870181,WWW.SIMPLYGO.COM,4131,Pupils-transport to play fields etc,68,0,68
Regeneration and Local Services,Economic Development and Housing,30737,Durham Works Flexible Fund,Transport,235057,Public Transport,08-Dec-16,5556870183,WWW.SIMPLYGO.COM,4131,Staff travelling,68,0,68
Children and Young Peoples Services,Childrens Services,71593,Bullion Childrens Centre,Supplies and Services,312011,Newspapers Books and Periodicals,08-Dec-16,5556870185,Amazon UK Marketplace,5942,Books-school library,12.86,0,12.86
Children and Young Peoples Services,Childrens Services,85958,Support Services,Supplies and Services,312011,Newspapers Books and Periodicals,08-Dec-16,5556870191,Amazon EU,5969,Books-school library,10.5,0,10.5
Children and Young Peoples Services,Childrens Services,85958,Support Services,Supplies and Services,324117,Provisions,08-Dec-16,5556870193,TESCO STORES 6329,5411,Catering costs - provisions,162.1,0,162.1
Regeneration and Local Services,Culture & Sport,10919,Countryside Management - Site Management,Supplies and Services,304259,Equipment and Materials,08-Dec-16,5556870207,SCREWFIX,5211,Equipment-purchase and rental,9.99,1.67,8.32
Regeneration and Local Services,Direct Services,21234,Catering - Locomotion,Supplies and Services,324117,Provisions,08-Dec-16,5556870225,BRAKE BROS LTD,5811,Catering costs - provisions,144,24,120
Regeneration and Local Services,Direct Services,21234,Catering - Locomotion,Supplies and Services,324117,Provisions,08-Dec-16,5556870225 - 1,BRAKE BROS LTD,5811,Catering costs - provisions,41.16,,41.16
Regeneration and Local Services,Direct Services,10367,C&G - South Grounds Maintenance,Supplies and Services,304259,Equipment and Materials,08-Dec-16,5556870253,B & Q 1120,5211,Equipment-purchase and rental,68.48,0,68.48
Regeneration and Local Services,Transport and Contracted Services,32253,Public Right of Way,Supplies and Services,312009,Newspapers Books and Periodicals,08-Dec-16,5556870283,TNA DISCOVERY ORDERS,9399,Newspapers books and periodicals,58.62,0,58.62
Regeneration and Local Services,Culture & Sport,54731,Killhope Lead Mining Centre,Supplies and Services,340001,Postages,08-Dec-16,5556870285,ROYAL MAIL ONLINE SHOP,9402,Postages,55,0,55
Resources,I.C.T. Services,65449,Internal Applications Group,Employees,40149,Recruitment Instruction and Training,08-Dec-16,5556870287,FUTURELEARNCOM,8299,Training-all costs,60.2,0,60.2
Regeneration and Local Services,Direct Services,10301,C&G - North Grounds Maintenance,Supplies and Services,324117,Provisions,08-Dec-16,5556870315,J VAN VLIET GATESHEAD,5399,Catering costs - provisions,173.88,28.98,144.9
Regeneration and Local Services,Culture & Sport,10605,Woodhouse Close Leisure Complex,Supplies and Services,324117,Provisions,08-Dec-16,5556870371,BRAKE BROS LTD,5811,Catering costs - provisions,42,7,35
Regeneration and Local Services,Culture & Sport,10605,Woodhouse Close Leisure Complex,Supplies and Services,324117,Provisions,08-Dec-16,5556870371 - 1,BRAKE BROS LTD,5811,Catering costs - provisions,160.27,,160.27
Regeneration and Local Services,Spatial Policy Planning Assets & Environment,31200,North Pennines Core,Supplies and Services,312011,Newspapers Books and Periodicals,08-Dec-16,5556870383,Amazon UK Marketplace,5942,Books-school library,2.9,0,2.9
Regeneration and Local Services,Spatial Policy Planning Assets & Environment,31200,North Pennines Core,Supplies and Services,384999,Miscellaneous Expenses,08-Dec-16,5556870385,WWW.ROUTESAFE.CO.UK,5946,Other expenses,120,0,120
Regeneration and Local Services,Spatial Policy Planning Assets & Environment,31200,North Pennines Core,Supplies and Services,324117,Provisions,08-Dec-16,5556870387,SCOTMID CO-OP STANHOPE,5411,Catering costs - provisions,8.37,0,8.37
Children and Young Peoples Services,Childrens Services,85957,Secure Management,Supplies and Services,304403,Equipment and Materials,08-Dec-16,5562148713,AMAZON UK RETAIL AMAZO,5999,Other consumables,16.98,0,16.98
Children and Young Peoples Services,Childrens Services,85300,Looked After & Permanence Strategic Manager,Supplies and Services,384999,Miscellaneous Expenses,08-Dec-16,5562148725,AMAZON UK RETAIL AMAZO,5999,Other expenses,50,0,50
Children and Young Peoples Services,Childrens Services,85334,West Rainton Satelite Home,Supplies and Services,304259,Equipment and Materials,08-Dec-16,5562149027,SPORTSDIRECT.COM,5941,Equipment-purchase and rental,74.97,0,74.97
Children and Young Peoples Services,Childrens Services,74000,TTF-Attachment and Results,Supplies and Services,304403,Equipment and Materials,08-Dec-16,5562149045,TESCO DIRECT,5999,Other consumables,18,0,18
Children and Young Peoples Services,Childrens Services,85958,Support Services,Supplies and Services,312011,Newspapers Books and Periodicals,09-Dec-16,5556870195,Amazon UK Marketplace,5942,Books-school library,8.14,0,8.14
Children and Young Peoples Services,Education,71801,Selby Cottage Childcare Centre,Supplies and Services,324117,Provisions,09-Dec-16,5562148679,TESCO STORES 2278,5411,Catering costs - provisions,73.84,0,73.84
Children and Young Peoples Services,Education,71801,Selby Cottage Childcare Centre,Supplies and Services,328041,Clothing Uniforms and Laundry,09-Dec-16,5562148681,POUNDLAND LTD 1330,5310,Clothing uniforms and laundry,19.1,0,19.1
Children and Young Peoples Services,Childrens Services,71746,Newton Aycliffe Childrens Centre,Supplies and Services,324117,Provisions,09-Dec-16,5562148703,ASDA HOME SHOPPING,5411,Catering costs - provisions,73.72,0,73.72
Children and Young Peoples Services,Childrens Services,71746,Newton Aycliffe Childrens Centre,Supplies and Services,324117,Provisions,09-Dec-16,5562148707,ASDA HOME SHOPPING,5411,Catering costs - provisions,-18,0,-18
Regeneration and Local Services,Economic Development and Housing,30737,Durham Works Flexible Fund,Supplies and Services,384999,Miscellaneous Expenses,09-Dec-16,5562148765,GRO HM PASSPORT OFFICE,9399,Other expenses,23.4,0,23.4
Regeneration and Local Services,Direct Services,21242,Catering - County Hall,Supplies and Services,324117,Provisions,09-Dec-16,5562148769,JR HOLLAND FOODSERVICE,5422,Catering costs - provisions,65.08,0,65.08
Regeneration and Local Services,Direct Services,21242,Catering - County Hall,Supplies and Services,324117,Provisions,09-Dec-16,5562148771,JR HOLLAND FOODSERVICE,5422,Catering costs - provisions,13.16,0,13.16
Regeneration and Local Services,Direct Services,21242,Catering - County Hall,Supplies and Services,324117,Provisions,09-Dec-16,5562148773,BRAKE BROS LTD,5811,Catering costs - provisions,341.64,56.94,284.7
Regeneration and Local Services,Direct Services,21242,Catering - County Hall,Supplies and Services,324117,Provisions,09-Dec-16,5562148773 - 1,BRAKE BROS LTD,5811,Catering costs - provisions,289.93,,289.93
Children and Young Peoples Services,Childrens Services,88003,Peterlee 0 - 5,Supplies and Services,312011,Newspapers Books and Periodicals,09-Dec-16,5562148809,Amazon EU,5969,Books-school library,106.8,0,106.8
Children and Young Peoples Services,Childrens Services,88003,Peterlee 0 - 5,Supplies and Services,312011,Newspapers Books and Periodicals,09-Dec-16,5562148811,Amazon EU,5969,Books-school library,96.7,0,96.7
Regeneration and Local Services,Direct Services,10551,Fleet - Chilton Fleet,Transport,215013,Running Costs of Vehicles,09-Dec-16,5562148813,DVLA VEHICLE TAX,9399,Vehicle Excise Duty (VED),142.5,0,142.5
Regeneration and Local Services,Economic Development and Housing,30553,Europe Direct Scheme,Supplies and Services,332047,Printing Stationery and Gen Off Exps,09-Dec-16,5562148839,RYMAN,5943,Stationery,11.74,0,11.74
Children and Young Peoples Services,Childrens Services,85958,Support Services,Supplies and Services,324117,Provisions,09-Dec-16,5562148895,TESCO STORES 6329,5411,Catering costs - provisions,72.51,0,72.51
Children and Young Peoples Services,Childrens Services,85958,Support Services,Supplies and Services,304259,Equipment and Materials,09-Dec-16,5562148897,SCOTTS INTERNET,5941,Equipment-purchase and rental,53.99,0,53.99
Regeneration and Local Services,Culture & Sport,11060,Hardwick Park Catering,Supplies and Services,324117,Provisions,09-Dec-16,5562148931,JR HOLLAND FOODSERVICE,5422,Catering costs - provisions,31.56,0,31.56
Regeneration and Local Services,Culture & Sport,11060,Hardwick Park Catering,Supplies and Services,324117,Provisions,09-Dec-16,5562148933,BRAKE BROS LTD,5811,Catering costs - provisions,52.44,8.74,43.7
Regeneration and Local Services,Culture & Sport,11060,Hardwick Park Catering,Supplies and Services,324117,Provisions,09-Dec-16,5562148933 - 1,BRAKE BROS LTD,5811,Catering costs - provisions,91.44,,91.44
Regeneration and Local Services,Culture & Sport,11060,Hardwick Park Catering,Supplies and Services,324117,Provisions,09-Dec-16,5562148937,BRAKE BROS LTD,5811,Catering costs - provisions,72.99,0,72.99
Regeneration and Local Services,Culture & Sport,54815,Gala Theatre Stage School,Supplies and Services,304403,Equipment and Materials,09-Dec-16,5562148945,CLINTONS 503,5947,Other consumables,8.44,0,8.44
Regeneration and Local Services,Direct Services,21234,Catering - Locomotion,Supplies and Services,324117,Provisions,09-Dec-16,5562148959,BRAKE BROS LTD,5811,Catering costs - provisions,39.66,6.61,33.05
Regeneration and Local Services,Direct Services,21234,Catering - Locomotion,Supplies and Services,324117,Provisions,09-Dec-16,5562148959 - 1,BRAKE BROS LTD,5811,Catering costs - provisions,260.36,,260.36
Regeneration and Local Services,Direct Services,21234,Catering - Locomotion,Supplies and Services,324117,Provisions,09-Dec-16,5562148963,BRAKE BROS LTD,5811,Catering costs - provisions,17.23,2.87,14.36
Regeneration and Local Services,Direct Services,10525,Catering - Green Lane,Supplies and Services,324117,Provisions,09-Dec-16,5562148981,JR HOLLAND FOODSERVICE,5422,Catering costs - provisions,55.56,0,55.56
Regeneration and Local Services,Economic Development and Housing,30749,Employability - Youth Contract,Supplies and Services,304259,Equipment and Materials,09-Dec-16,5562149021,CURRYS,5732,Equipment-purchase and rental,199.99,33.33,166.66
Children and Young Peoples Services,Childrens Services,85333,Coxhoe Satelite Home,Supplies and Services,324117,Provisions,09-Dec-16,5562149031,TESCO STORES 2371,5411,Catering costs - provisions,76.06,0,76.06
Children and Young Peoples Services,Childrens Services,85333,Coxhoe Satelite Home,Supplies and Services,324117,Provisions,09-Dec-16,5562149035,TESCO STORES 2371,5411,Catering costs - provisions,8,0,8
Children and Young Peoples Services,Childrens Services,88043,Consett 0 - 5,Supplies and Services,324117,Provisions,09-Dec-16,5562149041,WM MORRISONS,5411,Catering costs - provisions,87.78,0,87.78
Dedicated Schools Grant,Dedicated Schools Grant,77100,Special Equipment/Access Technology,Supplies and Services,384999,Miscellaneous Expenses,09-Dec-16,5562149047,APPLE ONLINE STORE GBP,5732,Other expenses,25,0,25
Children and Young Peoples Services,Childrens Services,88003,Peterlee 0 - 5,Supplies and Services,304259,Equipment and Materials,09-Dec-16,5562149097,HARTLEPOOL BC CNP,9399,Equipment-purchase and rental,14.25,0,14.25
Regeneration and Local Services,Culture & Sport,54235,Bp Auckland Town Hall Cafe,Supplies and Services,324117,Provisions,09-Dec-16,5562149101,JR HOLLAND FOODSERVICE,5422,Catering costs - provisions,13.14,0,13.14
Regeneration and Local Services,Direct Services,21324,Catering - Meadowfield,Supplies and Services,324117,Provisions,09-Dec-16,5562149109,JR HOLLAND FOODSERVICE,5422,Catering costs - provisions,51.24,0,51.24
Regeneration and Local Services,Direct Services,21324,Catering - Meadowfield,Supplies and Services,324117,Provisions,09-Dec-16,5562149113,JR HOLLAND FOODSERVICE,5422,Catering costs - provisions,9.87,0,9.87
Resources,Legal & Democratic Services,67953,Coroner County Durham & Darlington,Transport,235057,Public Transport,09-Dec-16,5562149127,Weardale Railway-Tix,4112,Staff travelling,358,0,358
Children and Young Peoples Services,Childrens Services,71404,Laurel Avenue Childrens Centre,Supplies and Services,312011,Newspapers Books and Periodicals,09-Dec-16,5562149175,HOME BARGAINS,5251,Books-school library,6.28,0,6.28
Children and Young Peoples Services,Childrens Services,71404,Laurel Avenue Childrens Centre,Supplies and Services,324117,Provisions,09-Dec-16,5562149177,TESCO STORES 2371,5411,Catering costs - provisions,68,0,68
Regeneration and Local Services,Direct Services,21235,Catering - Wharton Park,Supplies and Services,324117,Provisions,09-Dec-16,5562149183,BRAKE BROS LTD,5811,Catering costs - provisions,116.27,0,116.27
Children and Young Peoples Services,Education,70140,School Admissions and Transport,Supplies and Services,340001,Postages,09-Dec-16,5562149189,ROYAL MAIL ONLINE SHOP,9402,Postages,128,0,128
Regeneration and Local Services,Culture & Sport,10605,Woodhouse Close Leisure Complex,Supplies and Services,324117,Provisions,09-Dec-16,5562149195,BRAKE BROS LTD,5811,Catering costs - provisions,58.12,0,58.12
Regeneration and Local Services,Spatial Policy Planning Assets & Environment,31200,North Pennines Core,Supplies and Services,352001,Conference Expenses,09-Dec-16,5562149225,THE KINGS HEAD,7011,Conferencesseminars fees etc,36,0,36
Resources,Financial Services,65170,Welfare Rights,Supplies and Services,372009,Subscriptions,09-Dec-16,5562149241,WWW.LASA.ORG.UK,8398,Subscriptions,312,52,260
Regeneration and Local Services,Economic Development and Housing,30705,Visit County Durham,Supplies and Services,304999,Equipment and Materials,09-Dec-16,5569239757,SURVEYMONKEY.COM,5968,Misc equipment tools and materials,249.17,0,249.17
Children and Young Peoples Services,Childrens Services,85341,High Etherley Satelite Home,Supplies and Services,324117,Provisions,10-Dec-16,5562148825,ASDA STORES,5411,Catering costs - provisions,40,0,40
Children and Young Peoples Services,Childrens Services,85341,High Etherley Satelite Home,Supplies and Services,324117,Provisions,10-Dec-16,5562148829,ASDA STORES,5411,Catering costs - provisions,15,0,15
Children and Young Peoples Services,Childrens Services,85341,High Etherley Satelite Home,Supplies and Services,324117,Provisions,10-Dec-16,5562148831,ASDA STORES,5411,Catering costs - provisions,13,0,13
Children and Young Peoples Services,Childrens Services,85341,High Etherley Satelite Home,Supplies and Services,324117,Provisions,10-Dec-16,5562148833,ASDA STORES,5411,Catering costs - provisions,1,0,1
Regeneration and Local Services,Culture & Sport,54815,Gala Theatre Stage School,Supplies and Services,304259,Equipment and Materials,10-Dec-16,5562148949,LONDON ARRANGEMENTS LT,5733,Equipment-purchase and rental,10,0,10
Children and Young Peoples Services,Childrens Services,85551,Short Break Services-Park Hse Sher,Supplies and Services,324117,Provisions,10-Dec-16,5562148951,ALDI,5411,Catering costs - provisions,44.99,7.5,37.49
Resources,Resources Management,69000,Resources Management,Supplies and Services,324117,Provisions,10-Dec-16,5562149039,CO-OP GROUP 010830,5411,Catering costs - provisions,3.3,0,3.3
Transformation and Partnerships,Policy & Communications Division,60260,External Communications,Supplies and Services,372009,Subscriptions,10-Dec-16,5562149049,ADOBE CAPTIVATE SUBS,5734,Subscriptions,22.86,0,22.86
Regeneration and Local Services,Culture & Sport,54399,Local Delivery-Libraries,Supplies and Services,312011,Newspapers Books and Periodicals,10-Dec-16,5562149053,Amazon EU,5969,Books-school library,13.26,0,13.26
Regeneration and Local Services,Direct Services,21235,Catering - Wharton Park,Supplies and Services,324117,Provisions,10-Dec-16,5562149185,BRAKE BROS LTD,5811,Catering costs - provisions,49.86,8.31,41.55
Regeneration and Local Services,Direct Services,21235,Catering - Wharton Park,Supplies and Services,324117,Provisions,10-Dec-16,5562149185 - 1,BRAKE BROS LTD,5811,Catering costs - provisions,18.56,,18.56
Resources,I.C.T. Services,65230,IT Renewals Fund,Supplies and Services,304259,Equipment and Materials,10-Dec-16,5562149191,Amazon UK Marketplace,5942,Equipment-purchase and rental,35.98,0,35.98
Dedicated Schools Grant,Dedicated Schools Grant,79075,Learning Difficulties Team,Supplies and Services,384956,Miscellaneous Expenses,11-Dec-16,5562148727,WWW.ELKLAN.CO.UK,8299,Licences,50,0,50
Regeneration and Local Services,Culture & Sport,11191,Wellbeing4Life,Supplies and Services,312011,Newspapers Books and Periodicals,11-Dec-16,5562149161,HOME BARGAINS,5251,Books-school library,20.01,0,20.01
Children and Young Peoples Services,Education,71801,Selby Cottage Childcare Centre,Supplies and Services,324117,Provisions,12-Dec-16,5569238909,ASDA HOME SHOPPING,5411,Catering costs - provisions,44.26,0,44.26
Children and Young Peoples Services,Childrens Services,71746,Newton Aycliffe Childrens Centre,Supplies and Services,324117,Provisions,12-Dec-16,5569238947,ASDA HOME SHOPPING,5411,Catering costs - provisions,53.54,0,53.54
Children and Young Peoples Services,Childrens Services,71746,Newton Aycliffe Childrens Centre,Supplies and Services,324117,Provisions,12-Dec-16,5569238951,ASDA HOME SHOPPING,5411,Catering costs - provisions,-6,0,-6
Children and Young Peoples Services,Childrens Services,85957,Secure Management,Supplies and Services,304259,Equipment and Materials,12-Dec-16,5569238967,GLEN DIMPLEX HOME APPL,5722,Equipment-purchase and rental,145,24.17,120.83
Regeneration and Local Services,Economic Development and Housing,30737,Durham Works Flexible Fund,Transport,230031,Contract Hire,12-Dec-16,5569239001,ARRIVA PASSENGER S,7538,Pupils-transport to play fields etc,52.2,0,52.2
Regeneration and Local Services,Direct Services,21242,Catering - County Hall,Supplies and Services,324117,Provisions,12-Dec-16,5569239007,JR HOLLAND FOODSERVICE,5422,Catering costs - provisions,126.59,0,126.59
Regeneration and Local Services,Direct Services,21242,Catering - County Hall,Supplies and Services,324117,Provisions,12-Dec-16,5569239015,JR HOLLAND FOODSERVICE,5422,Catering costs - provisions,13.52,0,13.52
Regeneration and Local Services,Direct Services,21242,Catering - County Hall,Supplies and Services,324117,Provisions,12-Dec-16,5569239019,BRAKE BROS LTD,5811,Catering costs - provisions,228.97,0,228.97
Resources,I.C.T. Services,65464,Domains,Supplies and Services,372009,Subscriptions,12-Dec-16,5569239029,NOMINET UK,7379,Subscriptions,76.5,12.75,63.75
Regeneration and Local Services,Direct Services,21242,Catering - County Hall,Supplies and Services,324117,Provisions,12-Dec-16,5569239085,SAINSBURYS 0776,5411,Catering costs - provisions,71,0,71
Regeneration and Local Services,Culture & Sport,11219,Office Services,Supplies and Services,344033,Telephones,12-Dec-16,5569239097,TEXTANYWHERE LTD,4814,Telephones general-all costs,291,48.5,242.5
Regeneration and Local Services,Direct Services,10561,Fleet - Morrison Busty Fleet,Transport,215013,Running Costs of Vehicles,12-Dec-16,5569239121,POST OFFICE COUNTER,9402,Vehicle Excise Duty (VED),147.5,0,147.5
Regeneration and Local Services,Direct Services,10900,Fleet - Meadowfield Fleet,Transport,215013,Running Costs of Vehicles,12-Dec-16,5569239127,POST OFFICE COUNTER,9402,Vehicle Excise Duty (VED),147.5,0,147.5
Regeneration and Local Services,Direct Services,10900,Fleet - Meadowfield Fleet,Transport,215013,Running Costs of Vehicles,12-Dec-16,5569239131,POST OFFICE COUNTER,9402,Vehicle Excise Duty (VED),147.5,0,147.5
Regeneration and Local Services,Direct Services,10900,Fleet - Meadowfield Fleet,Transport,215013,Running Costs of Vehicles,12-Dec-16,5569239133,POST OFFICE COUNTER,9402,Vehicle Excise Duty (VED),147.5,0,147.5
Regeneration and Local Services,Direct Services,10864,Fleet - Hackworth Road Fleet,Transport,215013,Running Costs of Vehicles,12-Dec-16,5569239139,POST OFFICE COUNTER,9402,Vehicle Excise Duty (VED),147.5,0,147.5
Regeneration and Local Services,Direct Services,10900,Fleet - Meadowfield Fleet,Transport,215013,Running Costs of Vehicles,12-Dec-16,5569239143,POST OFFICE COUNTER,9402,Vehicle Excise Duty (VED),147.5,0,147.5
Regeneration and Local Services,Direct Services,10561,Fleet - Morrison Busty Fleet,Transport,215013,Running Costs of Vehicles,12-Dec-16,5569239145,POST OFFICE COUNTER,9402,Vehicle Excise Duty (VED),147.5,0,147.5
Children and Young Peoples Services,Education,71732,Dean Bank Childcare,Supplies and Services,324117,Provisions,12-Dec-16,5569239173,ASDA SUPERSTORE 4987,5411,Catering costs - provisions,56.55,0,56.55
Children and Young Peoples Services,Education,71732,Dean Bank Childcare,Supplies and Services,324117,Provisions,12-Dec-16,5569239177,LIDL UK,5411,Catering costs - provisions,2.86,0,2.86
Regeneration and Local Services,Culture & Sport,11221,Locality 1 Team Management,Supplies and Services,324117,Provisions,12-Dec-16,5569239183,TESCO STORES 6329,5411,Catering costs - provisions,79,0,79
Regeneration and Local Services,Economic Development and Housing,30737,Durham Works Flexible Fund,Transport,235005,Public Transport,12-Dec-16,5569239197,ARRIVA PASSENGER S,7538,Contract tickets,6.5,0,6.5
Children and Young Peoples Services,Childrens Services,88037,One Point YEI,Supplies and Services,304403,Equipment and Materials,12-Dec-16,5569239231,GRO HM PASSPORT OFFICE,9399,Other consumables,18.5,0,18.5
Children and Young Peoples Services,Childrens Services,71593,Bullion Childrens Centre,Supplies and Services,304403,Equipment and Materials,12-Dec-16,5569239243,AMAZON UK RETAIL AMAZO,5999,Other consumables,43.26,0,43.26
Children and Young Peoples Services,Childrens Services,85958,Support Services,Supplies and Services,312011,Newspapers Books and Periodicals,12-Dec-16,5569239251,Amazon UK Marketplace,5942,Books-school library,13.56,0,13.56
Children and Young Peoples Services,Childrens Services,85958,Support Services,Supplies and Services,312011,Newspapers Books and Periodicals,12-Dec-16,5569239257,Amazon UK Marketplace,5942,Books-school library,17.64,0,17.64
Children and Young Peoples Services,Childrens Services,85958,Support Services,Supplies and Services,312011,Newspapers Books and Periodicals,12-Dec-16,5569239261,Amazon UK Marketplace,5942,Books-school library,18.12,0,18.12
Children and Young Peoples Services,Childrens Services,85958,Support Services,Supplies and Services,328041,Clothing Uniforms and Laundry,12-Dec-16,5569239267,WWW.PSYCHE.CO.UK,5651,Clothing uniforms and laundry,137.99,23,114.99
Children and Young Peoples Services,Childrens Services,85958,Support Services,Supplies and Services,304259,Equipment and Materials,12-Dec-16,5569239271,SCOTTS INTERNET,5941,Equipment-purchase and rental,285,0,285
Regeneration and Local Services,Culture & Sport,11060,Hardwick Park Catering,Supplies and Services,324117,Provisions,12-Dec-16,5569239277,JR HOLLAND FOODSERVICE,5422,Catering costs - provisions,24.39,0,24.39
Regeneration and Local Services,Culture & Sport,11060,Hardwick Park Catering,Supplies and Services,324117,Provisions,12-Dec-16,5569239281,BRAKE BROS LTD,5811,Catering costs - provisions,113.76,18.96,94.8
Regeneration and Local Services,Culture & Sport,11060,Hardwick Park Catering,Supplies and Services,324117,Provisions,12-Dec-16,5569239281 - 1,BRAKE BROS LTD,5811,Catering costs - provisions,66.88,,66.88
Regeneration and Local Services,Culture & Sport,11060,Hardwick Park Catering,Supplies and Services,324117,Provisions,12-Dec-16,5569239291,BRAKE BROS LTD,5811,Catering costs - provisions,58.52,0,58.52
Regeneration and Local Services,Economic Development and Housing,30750,Durham Employment & Skills - General,Supplies and Services,304999,Equipment and Materials,12-Dec-16,5569239299,WWW/REED.CO.UK,8244,Misc equipment tools and materials,16.98,2.83,14.15
Regeneration and Local Services,Economic Development and Housing,30750,Durham Employment & Skills - General,Supplies and Services,304999,Equipment and Materials,12-Dec-16,5569239299 - 1,WWW/REED.CO.UK,8244,Misc equipment tools and materials,2.02,,2.02
Regeneration and Local Services,Economic Development and Housing,30750,Durham Employment & Skills - General,Employees,40149,Recruitment Instruction and Training,12-Dec-16,5569239305,CITB,8220,Training-all costs,30,5,25
Regeneration and Local Services,Economic Development and Housing,30750,Durham Employment & Skills - General,Employees,40149,Recruitment Instruction and Training,12-Dec-16,5569239307,CITB,8220,Training-all costs,30,5,25
Regeneration and Local Services,Direct Services,21234,Catering - Locomotion,Supplies and Services,324117,Provisions,12-Dec-16,5569239317,JR HOLLAND FOODSERVICE,5422,Catering costs - provisions,42.01,0,42.01
Children and Young Peoples Services,Childrens Services,85352,Tow Law CU,Supplies and Services,324117,Provisions,12-Dec-16,5569239379,TESCO STORES 2371,5411,Catering costs - provisions,241.78,0,241.78
Children and Young Peoples Services,Childrens Services,88063,Bishop Auckland 0 - 5,Supplies and Services,338045,Services,12-Dec-16,5569239389,DURHAM COUNTY COUNCIL,9399,Legal expenses,10,0,10
Children and Young Peoples Services,Childrens Services,88037,One Point YEI,Supplies and Services,338045,Services,12-Dec-16,5569239395,DURHAM COUNTY COUNCIL,9399,Legal expenses,10,0,10
Children and Young Peoples Services,Childrens Services,88063,Bishop Auckland 0 - 5,Supplies and Services,324117,Provisions,12-Dec-16,5569239397,TESCO STORES 6329,5411,Catering costs - provisions,5.7,0,5.7
Regeneration and Local Services,Direct Services,10367,C&G - South Grounds Maintenance,Supplies and Services,324117,Provisions,12-Dec-16,5569239469,TESCO STORES 2916,5411,Catering costs - provisions,7.5,0,7.5
Children and Young Peoples Services,Childrens Services,71616,Seaham Childrens Centre,Supplies and Services,324117,Provisions,12-Dec-16,5569239473,ALDI,5411,Catering costs - provisions,23.76,3.96,19.8
Children and Young Peoples Services,Childrens Services,71616,Seaham Childrens Centre,Supplies and Services,304259,Equipment and Materials,12-Dec-16,5569239477,WILKO RETAIL LIMIT,5722,Equipment-purchase and rental,3,0.5,2.5
Children and Young Peoples Services,Childrens Services,71616,Seaham Childrens Centre,Supplies and Services,324117,Provisions,12-Dec-16,5569239481,ASDA STORES,5411,Catering costs - provisions,62.74,0,62.74
Regeneration and Local Services,Technical Services,18300,Highways Operations - East,Supplies and Services,344033,Telephones,12-Dec-16,5569239491,Amazon UK Marketplace,5942,Telephones general-all costs,15.98,0,15.98
Regeneration and Local Services,Culture & Sport,54399,Local Delivery-Libraries,Supplies and Services,312011,Newspapers Books and Periodicals,12-Dec-16,5569239505,Amazon EU,5969,Books-school library,13.59,0,13.59
Regeneration and Local Services,Transport and Contracted Services,31701,Care Connect All Localities,Supplies and Services,304259,Equipment and Materials,12-Dec-16,5569239557,SECURITY INDUSTRY,7393,Equipment-purchase and rental,220,0,220
Children and Young Peoples Services,Childrens Services,85333,Coxhoe Satelite Home,Supplies and Services,324117,Provisions,12-Dec-16,5569239579,CO-OP GROUP 310016,5411,Catering costs - provisions,8.34,0,8.34
Regeneration and Local Services,Culture & Sport,11086,Positive Futures,Supplies and Services,324117,Provisions,12-Dec-16,5569239611,W M MORRISONS,5411,Catering costs - provisions,7.61,0,7.61
Resources,Legal & Democratic Services,67953,Coroner County Durham & Darlington,Supplies and Services,312011,Newspapers Books and Periodicals,12-Dec-16,5569239615,Amazon UK Marketplace,5942,Books-school library,5.64,0,5.64
Resources,Legal & Democratic Services,67953,Coroner County Durham & Darlington,Supplies and Services,312011,Newspapers Books and Periodicals,12-Dec-16,5569239617,Amazon UK Marketplace,5942,Books-school library,8.45,0,8.45
Regeneration and Local Services,Culture & Sport,11191,Wellbeing4Life,Supplies and Services,324117,Provisions,12-Dec-16,5569239661,CO-OP GROUP 310016,5411,Catering costs - provisions,2.49,0,2.49
Regeneration and Local Services,Culture & Sport,11191,Wellbeing4Life,Supplies and Services,324117,Provisions,12-Dec-16,5569239667,ASDA STORES LTD 4313,5411,Catering costs - provisions,3,0,3
Children and Young Peoples Services,Childrens Services,85331,New Lea Childrens Home,Transport,235057,Public Transport,12-Dec-16,5569239675,WWW.SIMPLYGO.COM,4131,Staff travelling,15.5,0,15.5
Children and Young Peoples Services,Childrens Services,85331,New Lea Childrens Home,Supplies and Services,338048,Services,12-Dec-16,5569239679,HMCOURTS-SERVICE.G,9222,Court Costs,46.98,0,46.98
Children and Young Peoples Services,Childrens Services,85331,New Lea Childrens Home,Supplies and Services,384999,Miscellaneous Expenses,12-Dec-16,5569239681,TICKETS COM,7922,Other expenses,60.5,0,60.5
Regeneration and Local Services,Direct Services,21235,Catering - Wharton Park,Supplies and Services,324117,Provisions,12-Dec-16,5569239729,JR HOLLAND FOODSERVICE,5422,Catering costs - provisions,29.53,0,29.53
Regeneration and Local Services,Culture & Sport,26591,Hardwick Park,Supplies and Services,304245,Equipment and Materials,12-Dec-16,5569239741,Amazon UK Marketplace,5942,Materials,26.49,0,26.49
Regeneration and Local Services,Culture & Sport,10605,Woodhouse Close Leisure Complex,Supplies and Services,324117,Provisions,12-Dec-16,5569239749,JR HOLLAND FOODSERVICE,5422,Catering costs - provisions,21.57,0,21.57
Regeneration and Local Services,Culture & Sport,10605,Woodhouse Close Leisure Complex,Supplies and Services,324117,Provisions,12-Dec-16,5569239755,BRAKE BROS LTD,5811,Catering costs - provisions,73.09,0,73.09
Regeneration and Local Services,Economic Development and Housing,30737,Durham Works Flexible Fund,Transport,235057,Public Transport,12-Dec-16,5569239767,WWW.SIMPLYGO.COM,4131,Staff travelling,40,0,40
Children and Young Peoples Services,Childrens Services,85555,Child Protection Team Peterlee,Supplies and Services,304259,Equipment and Materials,12-Dec-16,5569239813,GRO HM PASSPORT OFFICE,9399,Equipment-purchase and rental,70.2,0,70.2
Children and Young Peoples Services,Childrens Services,85555,Child Protection Team Peterlee,Supplies and Services,304259,Equipment and Materials,12-Dec-16,5569239817,STOCKTON BOROUGH COUNC,9399,Equipment-purchase and rental,37,0,37
Children and Young Peoples Services,Childrens Services,85555,Child Protection Team Peterlee,Supplies and Services,304259,Equipment and Materials,12-Dec-16,5569239821,DURHAM COUNTY COUNCIL,9399,Equipment-purchase and rental,36,0,36
Children and Young Peoples Services,Childrens Services,85555,Child Protection Team Peterlee,Supplies and Services,304259,Equipment and Materials,12-Dec-16,5569239825,GRO HM PASSPORT OFFICE,9399,Equipment-purchase and rental,-70.2,0,-70.2
Regeneration and Local Services,Culture & Sport,11191,Wellbeing4Life,Supplies and Services,328041,Clothing Uniforms and Laundry,12-Dec-16,5572136621,THE WORKS,5310,Clothing uniforms and laundry,22.05,0,22.05
Children and Young Peoples Services,Childrens Services,85958,Support Services,Supplies and Services,328041,Clothing Uniforms and Laundry,12-Dec-16,5581481125,WWW.TOPSHOP.COM,5691,Clothing uniforms and laundry,70,0,70
Children and Young Peoples Services,Childrens Services,88037,One Point YEI,Supplies and Services,304403,Equipment and Materials,12-Dec-16,5619300049,GRO HM PASSPORT OFFICE,9399,Other consumables,-9.25,0,-9.25
Children and Young Peoples Services,Education,71801,Selby Cottage Childcare Centre,Supplies and Services,324117,Provisions,13-Dec-16,5572135787,TESCO STORES 2278,5411,Catering costs - provisions,66.75,0,66.75
Adult and Health Services,Head of Adults,52760,OP Management,Income,720130,Fees and Charges,13-Dec-16,5572135803,HMCOURT-SERVICES.G,9222,Fees-legal,503.27,0,503.27
Adult and Health Services,Head of Adults,51603,OP/PD Durham & CLS,Supplies and Services,340001,Postages,13-Dec-16,5572135843,ROYAL MAIL ONLINE SHOP,9402,Postages,55,0,55
Regeneration and Local Services,Direct Services,10383,C&G - South Street Cleansing,Supplies and Services,304221,Equipment and Materials,13-Dec-16,5572135853,AZTEC CHEMICALS LTD,5169,Direct materials,285,47.5,237.5
Children and Young Peoples Services,Childrens Services,85342,9 Cedar Drive Aycliffe,Employees,40149,Recruitment Instruction and Training,13-Dec-16,5572135913,PARENTPAY.COM,8220,Training-all costs,10,0,10
Regeneration and Local Services,Culture & Sport,54235,Bp Auckland Town Hall Cafe,Supplies and Services,324117,Provisions,13-Dec-16,5572135921,BRAKES (ASHFORD),5811,Catering costs - provisions,142.08,0,142.08
Regeneration and Local Services,Economic Development and Housing,30737,Durham Works Flexible Fund,Transport,230031,Contract Hire,13-Dec-16,5572135941,GO NORTH EAST - V/T,4131,Pupils-transport to play fields etc,89,0,89
Regeneration and Local Services,Direct Services,21242,Catering - County Hall,Supplies and Services,324117,Provisions,13-Dec-16,5572135947,JR HOLLAND FOODSERVICE,5422,Catering costs - provisions,80.23,0,80.23
Regeneration and Local Services,Direct Services,21242,Catering - County Hall,Supplies and Services,324117,Provisions,13-Dec-16,5572135953,JR HOLLAND FOODSERVICE,5422,Catering costs - provisions,6.94,0,6.94
Regeneration and Local Services,Direct Services,21242,Catering - County Hall,Supplies and Services,324117,Provisions,13-Dec-16,5572135955,JR HOLLAND FOODSERVICE,5422,Catering costs - provisions,6.58,0,6.58
Regeneration and Local Services,Direct Services,21242,Catering - County Hall,Supplies and Services,324117,Provisions,13-Dec-16,5572135961,BRAKE BROS LTD,5811,Catering costs - provisions,155.8,0,155.8
Regeneration and Local Services,Culture & Sport,54233,Bp Auckland Town Hall Library,Supplies and Services,312011,Newspapers Books and Periodicals,13-Dec-16,5572135967,HOME BARGAINS,5251,Books-school library,105,0,105
Regeneration and Local Services,Economic Development and Housing,30553,Europe Direct Scheme,Supplies and Services,332048,Printing Stationery and Gen Off Exps,13-Dec-16,5572135979,WILKO DURHAM 426,5722,Administrative stationery etc,5,0,5
Regeneration and Local Services,Culture & Sport,54812,Gala Theatre - Catering etc,Supplies and Services,324117,Provisions,13-Dec-16,5572135983,JR HOLLAND FOODSERVICE,5422,Catering costs - provisions,23.62,0,23.62
Regeneration and Local Services,Culture & Sport,54812,Gala Theatre - Catering etc,Supplies and Services,324117,Provisions,13-Dec-16,5572135987,BRAKE BROS LTD,5811,Catering costs - provisions,48.24,8.04,40.2
Regeneration and Local Services,Culture & Sport,54812,Gala Theatre - Catering etc,Supplies and Services,324117,Provisions,13-Dec-16,5572135987 - 1,BRAKE BROS LTD,5811,Catering costs - provisions,121.28,,121.28
Regeneration and Local Services,Culture & Sport,54812,Gala Theatre - Catering etc,Supplies and Services,324117,Provisions,13-Dec-16,5572135993,BRAKE BROS LTD,5811,Catering costs - provisions,43.58,0,43.58
Children and Young Peoples Services,Childrens Services,85351,Framwellgate Moor CU,Supplies and Services,324117,Provisions,13-Dec-16,5572136025,ASDA HOME SHOPPING,5411,Catering costs - provisions,110.86,0,110.86
Regeneration and Local Services,Economic Development and Housing,30749,Employability - Youth Contract,Supplies and Services,304259,Equipment and Materials,13-Dec-16,5572136055,CURRYS ONLINE,5732,Equipment-purchase and rental,249.99,41.67,208.32
Children and Young Peoples Services,Education,71732,Dean Bank Childcare,Supplies and Services,312011,Newspapers Books and Periodicals,13-Dec-16,5572136083,THE BOOK PEOPLE,5942,Books-school library,37.93,0,37.93
Children and Young Peoples Services,Childrens Services,85341,High Etherley Satelite Home,Supplies and Services,324117,Provisions,13-Dec-16,5572136089,TESCO STORES 6329,5411,Catering costs - provisions,152.4,0,152.4
Regeneration and Local Services,Economic Development and Housing,30737,Durham Works Flexible Fund,Transport,235005,Public Transport,13-Dec-16,5572136095,ARRIVA PASSENGER S,7538,Contract tickets,6.5,0,6.5
Children and Young Peoples Services,Childrens Services,85958,Support Services,Supplies and Services,312011,Newspapers Books and Periodicals,13-Dec-16,5572136167,Amazon UK Marketplace,5942,Books-school library,24.8,0,24.8
Children and Young Peoples Services,Childrens Services,85958,Support Services,Supplies and Services,304259,Equipment and Materials,13-Dec-16,5572136171,WWW.FOOTASYLUM.COM,5941,Equipment-purchase and rental,174.97,0,174.97
Children and Young Peoples Services,Childrens Services,85958,Support Services,Supplies and Services,304259,Equipment and Materials,13-Dec-16,5572136175,WWW.FOOTASYLUM.COM,5941,Equipment-purchase and rental,149.99,0,149.99
Children and Young Peoples Services,Childrens Services,85958,Support Services,Supplies and Services,304259,Equipment and Materials,13-Dec-16,5572136181,MILETA SP INTERNET,5941,Equipment-purchase and rental,59.95,9.99,49.96
Children and Young Peoples Services,Childrens Services,85958,Support Services,Supplies and Services,324117,Provisions,13-Dec-16,5572136185,TESCO STORES 6329,5411,Catering costs - provisions,130.46,0,130.46
Regeneration and Local Services,Culture & Sport,10919,Countryside Management - Site Management,Supplies and Services,304259,Equipment and Materials,13-Dec-16,5572136193,SCREWFIX,5211,Equipment-purchase and rental,8.99,1.5,7.49
Regeneration and Local Services,Direct Services,10367,C&G - South Grounds Maintenance,Supplies and Services,312011,Newspapers Books and Periodicals,13-Dec-16,5572136201,WWW.GUSTHARTS.CO.UK,5251,Books-school library,487.8,81.3,406.5
Regeneration and Local Services,Culture & Sport,11060,Hardwick Park Catering,Supplies and Services,324117,Provisions,13-Dec-16,5572136213,JR HOLLAND FOODSERVICE,5422,Catering costs - provisions,55.25,0,55.25
Regeneration and Local Services,Culture & Sport,11060,Hardwick Park Catering,Supplies and Services,324117,Provisions,13-Dec-16,5572136219,JR HOLLAND FOODSERVICE,5422,Catering costs - provisions,21.87,0,21.87
Regeneration and Local Services,Culture & Sport,11060,Hardwick Park Catering,Supplies and Services,324117,Provisions,13-Dec-16,5572136223,BRAKE BROS LTD,5811,Catering costs - provisions,-5.63,0,-5.63
Regeneration and Local Services,Economic Development and Housing,30750,Durham Employment & Skills - General,Employees,40149,Recruitment Instruction and Training,13-Dec-16,5572136237,CITB,8220,Training-all costs,30,5,25
Regeneration and Local Services,Direct Services,21234,Catering - Locomotion,Supplies and Services,324117,Provisions,13-Dec-16,5572136243,JR HOLLAND FOODSERVICE,5422,Catering costs - provisions,20.24,0,20.24
Regeneration and Local Services,Direct Services,10525,Catering - Green Lane,Supplies and Services,324117,Provisions,13-Dec-16,5572136265,BRAKE BROS LTD,5811,Catering costs - provisions,122.4,20.4,102
Regeneration and Local Services,Direct Services,10525,Catering - Green Lane,Supplies and Services,324117,Provisions,13-Dec-16,5572136265 - 1,BRAKE BROS LTD,5811,Catering costs - provisions,26.58,,26.58
Children and Young Peoples Services,Childrens Services,85352,Tow Law CU,Supplies and Services,324117,Provisions,13-Dec-16,5572136287,TESCO STORES 2371,5411,Catering costs - provisions,-1,0,-1
Children and Young Peoples Services,Childrens Services,85333,Coxhoe Satelite Home,Supplies and Services,324117,Provisions,13-Dec-16,5572136341,CO-OP GROUP 310016,5411,Catering costs - provisions,20.55,0,20.55
Children and Young Peoples Services,Childrens Services,71616,Seaham Childrens Centre,Supplies and Services,328041,Clothing Uniforms and Laundry,13-Dec-16,5572136381,POUNDWORLD RETAIL,5310,Clothing uniforms and laundry,6,1,5
Children and Young Peoples Services,Childrens Services,71616,Seaham Childrens Centre,Supplies and Services,324117,Provisions,13-Dec-16,5572136385,ASDA STORES,5411,Catering costs - provisions,6.01,0,6.01
Children and Young Peoples Services,Childrens Services,74000,TTF-Attachment and Results,Supplies and Services,304259,Equipment and Materials,13-Dec-16,5572136389,WILKO.COM,5722,Equipment-purchase and rental,104,0,104
Resources,I.C.T. Services,65481,Technical Services,Supplies and Services,332047,Printing Stationery and Gen Off Exps,13-Dec-16,5572136397,Amazon UK Marketplace,5942,Stationery,28.99,0,28.99
Regeneration and Local Services,Culture & Sport,54399,Local Delivery-Libraries,Supplies and Services,312011,Newspapers Books and Periodicals,13-Dec-16,5572136405,Amazon EU,5969,Books-school library,105.69,0,105.69
Children and Young Peoples Services,Childrens Services,88003,Peterlee 0 - 5,Supplies and Services,304403,Equipment and Materials,13-Dec-16,5572136473,BEAMISH MUSEUM LTD,5947,Other consumables,330,0,330
Children and Young Peoples Services,Childrens Services,85801,CDYOS - Support,Supplies and Services,324117,Provisions,13-Dec-16,5572136481,ASDA HOME SHOPPING,5411,Catering costs - provisions,27.4,0,27.4
Regeneration and Local Services,Culture & Sport,54235,Bp Auckland Town Hall Cafe,Supplies and Services,324117,Provisions,13-Dec-16,5572136485,JR HOLLAND FOODSERVICE,5422,Catering costs - provisions,14.02,0,14.02
Regeneration and Local Services,Transport and Contracted Services,31701,Care Connect All Localities,Supplies and Services,344033,Telephones,13-Dec-16,5572136491,BT BILL PAYMENT 2,4812,Telephones general-all costs,67.07,11.18,55.89
Regeneration and Local Services,Direct Services,21324,Catering - Meadowfield,Supplies and Services,324117,Provisions,13-Dec-16,5572136521,BRAKE BROS LTD,5811,Catering costs - provisions,103.57,0,103.57
Resources,I.C.T. Services,70204,Operations - System & Repairs Team,Transport,215013,Running Costs of Vehicles,13-Dec-16,5572136527,DVLA VEHICLE TAX,9399,Vehicle Excise Duty (VED),232.5,0,232.5
Resources,Legal & Democratic Services,67953,Coroner County Durham & Darlington,Supplies and Services,312011,Newspapers Books and Periodicals,13-Dec-16,5572136587,Amazon EU,5969,Books-school library,13.07,0,13.07
Resources,Legal & Democratic Services,67953,Coroner County Durham & Darlington,Supplies and Services,304403,Equipment and Materials,13-Dec-16,5572136593,AMAZON UK RETAIL AMAZO,5999,Other consumables,82.43,0,82.43
Children and Young Peoples Services,Childrens Services,85331,New Lea Childrens Home,Supplies and Services,324117,Provisions,13-Dec-16,5572136627,ASDA HOME SHOPPING,5411,Catering costs - provisions,0.08,0,0.08
Children and Young Peoples Services,Childrens Services,85331,New Lea Childrens Home,Supplies and Services,324117,Provisions,13-Dec-16,5572136631,ASDA HOME SHOPPING,5411,Catering costs - provisions,173.25,0,173.25
Children and Young Peoples Services,Childrens Services,74000,TTF-Attachment and Results,Supplies and Services,304259,Equipment and Materials,13-Dec-16,5572136635,WILKO.COM,5722,Equipment-purchase and rental,147.99,0,147.99
Children and Young Peoples Services,Childrens Services,71404,Laurel Avenue Childrens Centre,Supplies and Services,324117,Provisions,13-Dec-16,5572136639,ASDA STORES,5411,Catering costs - provisions,24.77,0,24.77
Children and Young Peoples Services,Childrens Services,71404,Laurel Avenue Childrens Centre,Supplies and Services,324117,Provisions,13-Dec-16,5572136643,ICELAND,5411,Catering costs - provisions,10.11,0,10.11
Regeneration and Local Services,Direct Services,21235,Catering - Wharton Park,Supplies and Services,324117,Provisions,13-Dec-16,5572136649,JR HOLLAND FOODSERVICE,5422,Catering costs - provisions,-1.04,0,-1.04
Children and Young Peoples Services,Childrens Services,88033,Durham 0 - 5,Supplies and Services,324117,Provisions,13-Dec-16,5572136685,SAINSBURYS 0776,5411,Catering costs - provisions,30.05,0,30.05
Children and Young Peoples Services,Childrens Services,88033,Durham 0 - 5,Supplies and Services,304259,Equipment and Materials,13-Dec-16,5572136689,WILKO DURHAM 426,5722,Equipment-purchase and rental,12,0,12
Children and Young Peoples Services,Childrens Services,88033,Durham 0 - 5,Supplies and Services,324117,Provisions,13-Dec-16,5572136691,ASDA STORES LTD 4313,5411,Catering costs - provisions,12.05,0,12.05
Regeneration and Local Services,Economic Development and Housing,30737,Durham Works Flexible Fund,Supplies and Services,312011,Newspapers Books and Periodicals,13-Dec-16,5572136695,Amazon EU,5969,Books-school library,306.99,0,306.99
Children and Young Peoples Services,Childrens Services,85555,Child Protection Team Peterlee,Supplies and Services,304259,Equipment and Materials,13-Dec-16,5572136753,GRO HM PASSPORT OFFICE,9399,Equipment-purchase and rental,70.2,0,70.2
Regeneration and Local Services,Economic Development and Housing,31576,B& B - Temp Accom,Supplies and Services,364320,Grants to Voluntary Organisations,13-Dec-16,5586618503,AYCLIFFE BIZ,7011,Accommodation assistance,35,0,35
Children and Young Peoples Services,Childrens Services,85333,Coxhoe Satelite Home,Supplies and Services,312011,Newspapers Books and Periodicals,14-Dec-16,5572136543,Amazon UK Marketplace,5942,Books-school library,11.74,0,11.74
Children and Young Peoples Services,Education,79599,Psychological-HQ,Supplies and Services,384999,Miscellaneous Expenses,14-Dec-16,5576445773,Amazon UK Marketplace,5942,Other expenses,26.99,0,26.99
Resources,Financial Services,52865,SF-Financial Services Team,Supplies and Services,304403,Equipment and Materials,14-Dec-16,5576445801,TESCO - Seller_IST_1_2,5999,Other consumables,42.99,0,42.99
Resources,Financial Services,52865,SF-Financial Services Team,Supplies and Services,304403,Equipment and Materials,14-Dec-16,5576445805,TESCO DIRECT,5999,Other consumables,86,0,86
Resources,Financial Services,52865,SF-Financial Services Team,Supplies and Services,304403,Equipment and Materials,14-Dec-16,5576445809,TESCO-Seller_IST_1_240,5999,Other consumables,15.99,0,15.99
Regeneration and Local Services,Direct Services,21242,Catering - County Hall,Supplies and Services,324117,Provisions,14-Dec-16,5576445871,JR HOLLAND FOODSERVICE,5422,Catering costs - provisions,153.32,0,153.32
Regeneration and Local Services,Direct Services,21242,Catering - County Hall,Supplies and Services,324117,Provisions,14-Dec-16,5576445881,JR HOLLAND FOODSERVICE,5422,Catering costs - provisions,60.64,0,60.64
Regeneration and Local Services,Direct Services,21242,Catering - County Hall,Supplies and Services,324117,Provisions,14-Dec-16,5576445893,JR HOLLAND FOODSERVICE,5422,Catering costs - provisions,31.35,0,31.35
Regeneration and Local Services,Direct Services,21242,Catering - County Hall,Supplies and Services,324117,Provisions,14-Dec-16,5576445897,BRAKE BROS LTD,5811,Catering costs - provisions,340.74,56.79,283.95
Regeneration and Local Services,Direct Services,21242,Catering - County Hall,Supplies and Services,324117,Provisions,14-Dec-16,5576445897 - 1,BRAKE BROS LTD,5811,Catering costs - provisions,199.6,,199.6
Regeneration and Local Services,Direct Services,21242,Catering - County Hall,Supplies and Services,324117,Provisions,14-Dec-16,5576445911,BRAKE BROS LTD,5811,Catering costs - provisions,111.96,0,111.96
Regeneration and Local Services,Culture & Sport,54233,Bp Auckland Town Hall Library,Supplies and Services,312011,Newspapers Books and Periodicals,14-Dec-16,5576445921,Amazon EU,5969,Books-school library,52.98,0,52.98
Regeneration and Local Services,Direct Services,10864,Fleet - Hackworth Road Fleet,Transport,215013,Running Costs of Vehicles,14-Dec-16,5576445977,POST OFFICE COUNTER,9402,Vehicle Excise Duty (VED),167.5,0,167.5
Regeneration and Local Services,Direct Services,10864,Fleet - Hackworth Road Fleet,Transport,215013,Running Costs of Vehicles,14-Dec-16,5576445981,POST OFFICE COUNTER,9402,Vehicle Excise Duty (VED),167.5,0,167.5
Regeneration and Local Services,Direct Services,10864,Fleet - Hackworth Road Fleet,Transport,215013,Running Costs of Vehicles,14-Dec-16,5576445985,POST OFFICE COUNTER,9402,Vehicle Excise Duty (VED),167.5,0,167.5
Children and Young Peoples Services,Education,71732,Dean Bank Childcare,Supplies and Services,312011,Newspapers Books and Periodicals,14-Dec-16,5576445997,HOME BARGAINS SPENNYMO,5251,Books-school library,10.5,0,10.5
Children and Young Peoples Services,Education,71732,Dean Bank Childcare,Supplies and Services,324117,Provisions,14-Dec-16,5576445999,ASDA SUPERSTORE 4987,5411,Catering costs - provisions,52.85,0,52.85
Children and Young Peoples Services,Education,71732,Dean Bank Childcare,Supplies and Services,328041,Clothing Uniforms and Laundry,14-Dec-16,5576446003,B&M RETAIL LTD,5310,Clothing uniforms and laundry,9.98,0,9.98
Regeneration and Local Services,Economic Development and Housing,30737,Durham Works Flexible Fund,Transport,235005,Public Transport,14-Dec-16,5576446015,ARRIVA PASSENGER S,7538,Contract tickets,7,0,7
Regeneration and Local Services,Economic Development and Housing,30737,Durham Works Flexible Fund,Supplies and Services,324117,Provisions,14-Dec-16,5576446019,ASDA SUPERSTORE 4987,5411,Catering costs - provisions,14.05,0,14.05
Children and Young Peoples Services,Childrens Services,85332,Middlestone Moor CU,Supplies and Services,312011,Newspapers Books and Periodicals,14-Dec-16,5576446027,Amazon UK Marketplace,5942,Books-school library,412.4,0,412.4
Children and Young Peoples Services,Childrens Services,85332,Middlestone Moor CU,Supplies and Services,304259,Equipment and Materials,14-Dec-16,5576446035,VAX LTD,5722,Equipment-purchase and rental,143.99,0,143.99
Children and Young Peoples Services,Childrens Services,85332,Middlestone Moor CU,Supplies and Services,324117,Provisions,14-Dec-16,5576446037,TESCO STORES 2371,5411,Catering costs - provisions,459.12,0,459.12
Children and Young Peoples Services,Childrens Services,85332,Middlestone Moor CU,Supplies and Services,304403,Equipment and Materials,14-Dec-16,5576446041,TESCO DIRECT,5999,Other consumables,599,0,599
Children and Young Peoples Services,Childrens Services,85958,Support Services,Supplies and Services,328041,Clothing Uniforms and Laundry,14-Dec-16,5576446081,WWW.FOOTLOCKER.EU,5661,Clothing uniforms and laundry,129.99,21.67,108.32
Children and Young Peoples Services,Childrens Services,85958,Support Services,Supplies and Services,328041,Clothing Uniforms and Laundry,14-Dec-16,5576446085,ARGOS RETAIL GROUP,5310,Clothing uniforms and laundry,29.97,0,29.97
Children and Young Peoples Services,Childrens Services,85958,Support Services,Supplies and Services,328041,Clothing Uniforms and Laundry,14-Dec-16,5576446087,FLANNELSFASHION.,5691,Clothing uniforms and laundry,44.99,7.5,37.49
Children and Young Peoples Services,Childrens Services,85958,Support Services,Supplies and Services,304259,Equipment and Materials,14-Dec-16,5576446091,WWW.FOOTASYLUM.COM,5941,Equipment-purchase and rental,149.99,0,149.99
Children and Young Peoples Services,Childrens Services,85958,Support Services,Supplies and Services,384999,Miscellaneous Expenses,14-Dec-16,5576446095,WWW.HAWKIN.COM,5945,Other expenses,65,0,65
Children and Young Peoples Services,Childrens Services,85958,Support Services,Supplies and Services,324117,Provisions,14-Dec-16,5576446099,TESCO STORES 6329,5411,Catering costs - provisions,70.32,0,70.32
Children and Young Peoples Services,Childrens Services,85958,Support Services,Supplies and Services,328041,Clothing Uniforms and Laundry,14-Dec-16,5576446101,NEXT DIRECTORY,5651,Clothing uniforms and laundry,98.99,0,98.99
Regeneration and Local Services,Culture & Sport,11060,Hardwick Park Catering,Supplies and Services,324117,Provisions,14-Dec-16,5576446123,JR HOLLAND FOODSERVICE,5422,Catering costs - provisions,18.43,0,18.43
Regeneration and Local Services,Culture & Sport,11060,Hardwick Park Catering,Supplies and Services,324117,Provisions,14-Dec-16,5576446131,JR HOLLAND FOODSERVICE,5422,Catering costs - provisions,9.73,0,9.73
Regeneration and Local Services,Culture & Sport,11060,Hardwick Park Catering,Supplies and Services,324117,Provisions,14-Dec-16,5576446135,BRAKE BROS LTD,5811,Catering costs - provisions,103.5,17.25,86.25
Regeneration and Local Services,Culture & Sport,11060,Hardwick Park Catering,Supplies and Services,324117,Provisions,14-Dec-16,5576446135 - 1,BRAKE BROS LTD,5811,Catering costs - provisions,96.03,,96.03
Regeneration and Local Services,Economic Development and Housing,30750,Durham Employment & Skills - General,Employees,40149,Recruitment Instruction and Training,14-Dec-16,5576446155,CITB,8220,Training-all costs,-271,0,-271
Regeneration and Local Services,Direct Services,21234,Catering - Locomotion,Supplies and Services,324117,Provisions,14-Dec-16,5576446163,BRAKE BROS LTD,5811,Catering costs - provisions,143.73,0,143.73
Regeneration and Local Services,Direct Services,10525,Catering - Green Lane,Supplies and Services,324117,Provisions,14-Dec-16,5576446191,JR HOLLAND FOODSERVICE,5422,Catering costs - provisions,24.49,0,24.49
Regeneration and Local Services,Direct Services,10525,Catering - Green Lane,Supplies and Services,324117,Provisions,14-Dec-16,5576446195,BRAKE BROS LTD,5811,Catering costs - provisions,32.32,0,32.32
Children and Young Peoples Services,Education,74973,HI Resources Base - Fund,Supplies and Services,352001,Conference Expenses,14-Dec-16,5576446223,WYNYARD HALL,7011,Conferencesseminars fees etc,345,0,345
Children and Young Peoples Services,Childrens Services,74000,TTF-Attachment and Results,Supplies and Services,384700,Miscellaneous Expenses,14-Dec-16,5576446233,TESCO - Seller_IST_1_2,5999,Miscellaneous grants,129.99,0,129.99
Children and Young Peoples Services,Childrens Services,88063,Bishop Auckland 0 - 5,Supplies and Services,324117,Provisions,14-Dec-16,5576446237,WM MORRISON 040,5411,Catering costs - provisions,22.51,0,22.51
Children and Young Peoples Services,Childrens Services,74000,TTF-Attachment and Results,Supplies and Services,304403,Equipment and Materials,14-Dec-16,5576446285,TESCO - Seller_IST_1_2,5999,Other consumables,119.99,0,119.99
Children and Young Peoples Services,Childrens Services,74000,TTF-Attachment and Results,Supplies and Services,304403,Equipment and Materials,14-Dec-16,5576446289,TESCO - Seller_IST_1_2,5999,Other consumables,109.99,0,109.99
Children and Young Peoples Services,Childrens Services,74000,TTF-Attachment and Results,Supplies and Services,304403,Equipment and Materials,14-Dec-16,5576446295,TESCO DIRECT,5999,Other consumables,18,0,18
Adult and Health Services,Head of Adults,51575,Reablement South,Supplies and Services,340001,Postages,14-Dec-16,5576446299,ROYAL MAIL ONLINE SHOP,9402,Postages,256,0,256
Resources,I.C.T. Services,69010,Administration,Supplies and Services,340001,Postages,14-Dec-16,5576446301,ROYAL MAIL ONLINE SHOP,9402,Postages,56.89,0,56.89
Regeneration and Local Services,Culture & Sport,54399,Local Delivery-Libraries,Supplies and Services,304999,Equipment and Materials,14-Dec-16,5576446319,Amazon Prime,5968,Misc equipment tools and materials,7.99,0,7.99
Regeneration and Local Services,Direct Services,10301,C&G - North Grounds Maintenance,Supplies and Services,324117,Provisions,14-Dec-16,5576446339,J VAN VLIET GATESHEAD,5399,Catering costs - provisions,106.44,17.74,88.7
Children and Young Peoples Services,Childrens Services,85801,CDYOS - Support,Supplies and Services,312011,Newspapers Books and Periodicals,14-Dec-16,5576446351,Amazon UK Marketplace,5942,Books-school library,37.78,0,37.78
Children and Young Peoples Services,Childrens Services,85801,CDYOS - Support,Supplies and Services,304403,Equipment and Materials,14-Dec-16,5576446355,FLEX-E-VOUCHERS,5947,Other consumables,65.49,0,65.49
Regeneration and Local Services,Culture & Sport,54235,Bp Auckland Town Hall Cafe,Supplies and Services,324117,Provisions,14-Dec-16,5576446359,JR HOLLAND FOODSERVICE,5422,Catering costs - provisions,28.75,0,28.75
Regeneration and Local Services,Transport and Contracted Services,31701,Care Connect All Localities,Supplies and Services,344033,Telephones,14-Dec-16,5576446367,BT BILL PAYMENT 2,4812,Telephones general-all costs,15.3,2.55,12.75
Regeneration and Local Services,Transport and Contracted Services,31701,Care Connect All Localities,Supplies and Services,344033,Telephones,14-Dec-16,5576446369,BT BILL PAYMENT 2,4812,Telephones general-all costs,88.47,14.75,73.72
Regeneration and Local Services,Transport and Contracted Services,31701,Care Connect All Localities,Supplies and Services,344033,Telephones,14-Dec-16,5576446373,BT BILL PAYMENT 2,4812,Telephones general-all costs,88.47,14.75,73.72
Regeneration and Local Services,Transport and Contracted Services,31701,Care Connect All Localities,Supplies and Services,344033,Telephones,14-Dec-16,5576446377,BT BILL PAYMENT 2,4812,Telephones general-all costs,88.47,14.75,73.72
Regeneration and Local Services,Transport and Contracted Services,31701,Care Connect All Localities,Supplies and Services,344033,Telephones,14-Dec-16,5576446381,BT BILL PAYMENT 2,4812,Telephones general-all costs,22.04,3.67,18.37
Regeneration and Local Services,Direct Services,21324,Catering - Meadowfield,Supplies and Services,324117,Provisions,14-Dec-16,5576446417,JR HOLLAND FOODSERVICE,5422,Catering costs - provisions,45.01,0,45.01
Regeneration and Local Services,Direct Services,21324,Catering - Meadowfield,Supplies and Services,324117,Provisions,14-Dec-16,5576446427,JR HOLLAND FOODSERVICE,5422,Catering costs - provisions,13.45,0,13.45
Regeneration and Local Services,Direct Services,21324,Catering - Meadowfield,Supplies and Services,324117,Provisions,14-Dec-16,5576446429,BRAKE BROS LTD,5811,Catering costs - provisions,69.66,11.61,58.05
Regeneration and Local Services,Direct Services,21324,Catering - Meadowfield,Supplies and Services,324117,Provisions,14-Dec-16,5576446429 - 1,BRAKE BROS LTD,5811,Catering costs - provisions,75.76,,75.76
Resources,Legal & Democratic Services,67953,Coroner County Durham & Darlington,Supplies and Services,308011,Furniture,14-Dec-16,5576446491,POUNDSTRETCHER 692,5714,Furniture repair and replacement,53.88,0,53.88
Resources,Legal & Democratic Services,67953,Coroner County Durham & Darlington,Supplies and Services,328041,Clothing Uniforms and Laundry,14-Dec-16,5576446495,B&M RETAIL LTD,5310,Clothing uniforms and laundry,28.95,0,28.95
Children and Young Peoples Services,Childrens Services,88083,Ferryhill 0 - 5,Supplies and Services,312011,Newspapers Books and Periodicals,14-Dec-16,5576446501,HOME BARGAINS SPENNYMO,5251,Books-school library,5.62,0.94,4.68
Children and Young Peoples Services,Childrens Services,88083,Ferryhill 0 - 5,Supplies and Services,324117,Provisions,14-Dec-16,5576446505,CO-OP GROUP 010518,5411,Catering costs - provisions,1.35,0,1.35
Regeneration and Local Services,Culture & Sport,11191,Wellbeing4Life,Supplies and Services,324117,Provisions,14-Dec-16,5576446521,SAINSBURYS SACAT 0776,5411,Catering costs - provisions,13.2,0,13.2
Regeneration and Local Services,Economic Development and Housing,30737,Durham Works Flexible Fund,Transport,235057,Public Transport,14-Dec-16,5576446527,WWW.SIMPLYGO.COM,4131,Staff travelling,5,0,5
Children and Young Peoples Services,Childrens Services,74000,TTF-Attachment and Results,Supplies and Services,308011,Furniture,14-Dec-16,5576446561,EDS BEDS LTD,5712,Furniture repair and replacement,149,0,149
Children and Young Peoples Services,Childrens Services,74000,TTF-Attachment and Results,Supplies and Services,324117,Provisions,14-Dec-16,5576446565,ASDA 4387,5411,Catering costs - provisions,127.95,21.33,106.62
Children and Young Peoples Services,Childrens Services,74000,TTF-Attachment and Results,Supplies and Services,324117,Provisions,14-Dec-16,5576446571,ASDA 4387,5411,Catering costs - provisions,127.95,21.33,106.62
Children and Young Peoples Services,Childrens Services,74000,TTF-Attachment and Results,Supplies and Services,304403,Equipment and Materials,14-Dec-16,5576446575,TESCO - Seller_IST_1_2,5999,Other consumables,119.99,0,119.99
Children and Young Peoples Services,Childrens Services,74000,TTF-Attachment and Results,Supplies and Services,304403,Equipment and Materials,14-Dec-16,5576446577,TESCO DIRECT,5999,Other consumables,127.95,0,127.95
Regeneration and Local Services,Direct Services,21235,Catering - Wharton Park,Supplies and Services,324117,Provisions,14-Dec-16,5576446583,JR HOLLAND FOODSERVICE,5422,Catering costs - provisions,13.05,0,13.05
Regeneration and Local Services,Culture & Sport,10605,Woodhouse Close Leisure Complex,Supplies and Services,324117,Provisions,14-Dec-16,5576446599,JR HOLLAND FOODSERVICE,5422,Catering costs - provisions,18.54,0,18.54
Adult and Health Services,Head of Adults,52628,Sedgefield Affective MH,Supplies and Services,384999,Miscellaneous Expenses,14-Dec-16,5576446605,HALFORDS 0550,5940,Other expenses,350,0,350
Children and Young Peoples Services,Childrens Services,85555,Child Protection Team Peterlee,Supplies and Services,304259,Equipment and Materials,14-Dec-16,5576446657,SUNDERLAND CC,9399,Equipment-purchase and rental,30,0,30
Children and Young Peoples Services,Childrens Services,85555,Child Protection Team Peterlee,Supplies and Services,304259,Equipment and Materials,14-Dec-16,5576446661,SUNDERLAND CC,9399,Equipment-purchase and rental,30,0,30
Children and Young Peoples Services,Childrens Services,85555,Child Protection Team Peterlee,Supplies and Services,304259,Equipment and Materials,14-Dec-16,5576446665,SUNDERLAND CC,9399,Equipment-purchase and rental,30,0,30
Children and Young Peoples Services,Childrens Services,85555,Child Protection Team Peterlee,Supplies and Services,304259,Equipment and Materials,14-Dec-16,5576446669,SUNDERLAND CC,9399,Equipment-purchase and rental,30,0,30
Regeneration and Local Services,Economic Development and Housing,30699,Business Growth and Innovation General,Supplies and Services,336005,Advertising,14-Dec-16,5581480953,ADROLL,7311,Advertising other than for staff,1.38,0,1.38
Regeneration and Local Services,Economic Development and Housing,30699,Business Growth and Innovation General,Supplies and Services,342033,Computers and Communications,14-Dec-16,5581480955,WATCHFULPAYPAL,7379,Computer hardware,15.77,2.63,13.14
Children and Young Peoples Services,Childrens Services,85300,Looked After & Permanence Strategic Manager,Supplies and Services,384999,Miscellaneous Expenses,14-Dec-16,5581480969,AMAZON UK RETAIL AMAZO,5999,Other expenses,30,0,30
Children and Young Peoples Services,Childrens Services,85958,Support Services,Supplies and Services,384999,Miscellaneous Expenses,14-Dec-16,5581481097,THEBLINGFACTORY.COM,5944,Other expenses,26.82,0,26.82
Children and Young Peoples Services,Childrens Services,85958,Support Services,Supplies and Services,328041,Clothing Uniforms and Laundry,14-Dec-16,5581481117,NEW LOOK INTERNET,5621,Clothing uniforms and laundry,49.99,0,49.99
Regeneration and Local Services,Direct Services,10367,C&G - South Grounds Maintenance,Transport,215995,Running Costs of Vehicles,14-Dec-16,5586618637,SNOWBALLS (RAILWAY,5533,Vehicle running expenses,37.87,0,37.87
Children and Young Peoples Services,Education,71801,Selby Cottage Childcare Centre,Supplies and Services,324117,Provisions,15-Dec-16,5581480901,TESCO STORES 2278,5411,Catering costs - provisions,10.53,0,10.53
Children and Young Peoples Services,Childrens Services,71449,Ferryhill One Point Hub,Supplies and Services,324117,Provisions,15-Dec-16,5581480927,ASDA SUPERSTORE 4987,5411,Catering costs - provisions,5,0,5
Children and Young Peoples Services,Childrens Services,85965,Barnard,Supplies and Services,308011,Furniture,15-Dec-16,5581480949,ARGOS RETAIL GROUP,5310,Furniture repair and replacement,43.94,0,43.94
Regeneration and Local Services,Direct Services,21242,Catering - County Hall,Supplies and Services,324117,Provisions,15-Dec-16,5581480991,JR HOLLAND FOODSERVICE,5422,Catering costs - provisions,46.35,0,46.35
Regeneration and Local Services,Direct Services,21242,Catering - County Hall,Supplies and Services,324117,Provisions,15-Dec-16,5581480995,JR HOLLAND FOODSERVICE,5422,Catering costs - provisions,13.16,0,13.16
Regeneration and Local Services,Culture & Sport,54812,Gala Theatre - Catering etc,Supplies and Services,324117,Provisions,15-Dec-16,5581481005,JR HOLLAND FOODSERVICE,5422,Catering costs - provisions,73.83,0,73.83
Regeneration and Local Services,Direct Services,21242,Catering - County Hall,Supplies and Services,324117,Provisions,15-Dec-16,5581481023,SAINSBURYS 0776,5411,Catering costs - provisions,46.35,0,46.35
Regeneration and Local Services,Economic Development and Housing,30749,Employability - Youth Contract,Transport,235005,Public Transport,15-Dec-16,5581481033,ARRIVA PASSENGER S,7538,Contract tickets,4.1,0,4.1
Children and Young Peoples Services,Education,71732,Dean Bank Childcare,Supplies and Services,328041,Clothing Uniforms and Laundry,15-Dec-16,5581481053,B & M RETAIL,5310,Clothing uniforms and laundry,32.26,0,32.26
Children and Young Peoples Services,Childrens Services,85341,High Etherley Satelite Home,Supplies and Services,328041,Clothing Uniforms and Laundry,15-Dec-16,5581481059,ARGOS RETAIL GROUP,5310,Clothing uniforms and laundry,199.99,0,199.99
Regeneration and Local Services,Economic Development and Housing,30737,Durham Works Flexible Fund,Supplies and Services,324117,Provisions,15-Dec-16,5581481071,ASDA 4387,5411,Catering costs - provisions,-12.5,0,-12.5
Children and Young Peoples Services,Childrens Services,85332,Middlestone Moor CU,Supplies and Services,312011,Newspapers Books and Periodicals,15-Dec-16,5581481079,Amazon UK Marketplace,5942,Books-school library,155.88,0,155.88
Regeneration and Local Services,Direct Services,10301,C&G - North Grounds Maintenance,Supplies and Services,304221,Equipment and Materials,15-Dec-16,5581481091,SPALDINGS LIMITED,5085,Direct materials,482.42,0,482.42
Regeneration and Local Services,Economic Development and Housing,30737,Durham Works Flexible Fund,Transport,230031,Contract Hire,15-Dec-16,5581481093,WWW.SIMPLYGO.COM,4131,Pupils-transport to play fields etc,5,0,5
Children and Young Peoples Services,Childrens Services,85958,Support Services,Supplies and Services,304259,Equipment and Materials,15-Dec-16,5581481099,M and M Direct Ltd,5941,Equipment-purchase and rental,30.98,0,30.98
Children and Young Peoples Services,Childrens Services,85958,Support Services,Supplies and Services,328041,Clothing Uniforms and Laundry,15-Dec-16,5581481103,SELECT,5691,Clothing uniforms and laundry,10.02,1.67,8.35
Children and Young Peoples Services,Childrens Services,85958,Support Services,Supplies and Services,328041,Clothing Uniforms and Laundry,15-Dec-16,5581481103 - 1,SELECT,5691,Clothing uniforms and laundry,3.96,,3.96
Children and Young Peoples Services,Childrens Services,85958,Support Services,Supplies and Services,328041,Clothing Uniforms and Laundry,15-Dec-16,5581481105,WWW.FOOTLOCKER.EU,5661,Clothing uniforms and laundry,94.99,15.83,79.16
Children and Young Peoples Services,Childrens Services,85958,Support Services,Supplies and Services,328041,Clothing Uniforms and Laundry,15-Dec-16,5581481109,HOUSE OF FRASER,5311,Clothing uniforms and laundry,17,0,17
Children and Young Peoples Services,Childrens Services,85958,Support Services,Supplies and Services,304259,Equipment and Materials,15-Dec-16,5581481111,WILKO.COM,5722,Equipment-purchase and rental,19,3.17,15.83
Children and Young Peoples Services,Childrens Services,85958,Support Services,Supplies and Services,304259,Equipment and Materials,15-Dec-16,5581481115,WWW.FOOTASYLUM.COM,5941,Equipment-purchase and rental,89.99,0,89.99
Children and Young Peoples Services,Childrens Services,85958,Support Services,Supplies and Services,324117,Provisions,15-Dec-16,5581481121,TESCO STORES 6329,5411,Catering costs - provisions,58.15,0,58.15
Children and Young Peoples Services,Childrens Services,85958,Support Services,Supplies and Services,328041,Clothing Uniforms and Laundry,15-Dec-16,5581481129,WWW.TOPSHOP.COM,5691,Clothing uniforms and laundry,42,0,42
Children and Young Peoples Services,Childrens Services,85958,Support Services,Supplies and Services,328041,Clothing Uniforms and Laundry,15-Dec-16,5581481131,WWW.TOPSHOP.COM,5691,Clothing uniforms and laundry,38,0,38
Children and Young Peoples Services,Childrens Services,85958,Support Services,Supplies and Services,342033,Computers and Communications,15-Dec-16,5581481135,VERY.CO.UK,5964,Computer hardware,65,0,65
Children and Young Peoples Services,Childrens Services,85958,Support Services,Supplies and Services,342033,Computers and Communications,15-Dec-16,5581481137,VERY.CO.UK,5964,Computer hardware,30,0,30
Children and Young Peoples Services,Childrens Services,85958,Support Services,Supplies and Services,342033,Computers and Communications,15-Dec-16,5581481141,VERY.CO.UK,5964,Computer hardware,20,0,20
Children and Young Peoples Services,Childrens Services,85958,Support Services,Supplies and Services,342033,Computers and Communications,15-Dec-16,5581481143,VERY.CO.UK,5964,Computer hardware,8.99,0,8.99
Children and Young Peoples Services,Childrens Services,85958,Support Services,Supplies and Services,342033,Computers and Communications,15-Dec-16,5581481147,VERY.CO.UK,5964,Computer hardware,3.99,0,3.99
Children and Young Peoples Services,Childrens Services,85958,Support Services,Supplies and Services,342033,Computers and Communications,15-Dec-16,5581481149,VERY.CO.UK,5964,Computer hardware,3.99,0,3.99
Regeneration and Local Services,Culture & Sport,11060,Hardwick Park Catering,Supplies and Services,324117,Provisions,15-Dec-16,5581481157,JR HOLLAND FOODSERVICE,5422,Catering costs - provisions,40.31,0,40.31
Regeneration and Local Services,Direct Services,21234,Catering - Locomotion,Supplies and Services,324117,Provisions,15-Dec-16,5581481163,JR HOLLAND FOODSERVICE,5422,Catering costs - provisions,37.7,0,37.7
Regeneration and Local Services,Direct Services,21234,Catering - Locomotion,Supplies and Services,324117,Provisions,15-Dec-16,5581481167,BRAKE BROS LTD,5811,Catering costs - provisions,225.18,37.53,187.65
Regeneration and Local Services,Direct Services,21234,Catering - Locomotion,Supplies and Services,324117,Provisions,15-Dec-16,5581481167 - 1,BRAKE BROS LTD,5811,Catering costs - provisions,138.19,,138.19
Regeneration and Local Services,Economic Development and Housing,39490,South Moor Regeneration Programme,Supplies and Services,348037,Subsistence,15-Dec-16,5581481173,CAPRICCIO,5812,Subsistence,80,0,80
Regeneration and Local Services,Culture & Sport,10608,Teesdale Leisure Centre,Supplies and Services,328041,Clothing Uniforms and Laundry,15-Dec-16,5581481205,Amazon UK Marketplace,5942,Clothing uniforms and laundry,92.59,0,92.59
Children and Young Peoples Services,Childrens Services,88053,Stanley 0 - 5,Supplies and Services,304259,Equipment and Materials,15-Dec-16,5581481219,DURHAM COUNTY COUNCIL,9399,Equipment-purchase and rental,20,0,20
Regeneration and Local Services,Direct Services,10367,C&G - South Grounds Maintenance,Supplies and Services,304259,Equipment and Materials,15-Dec-16,5581481229,SCREWFIX,5211,Equipment-purchase and rental,33.97,5.66,28.31
Children and Young Peoples Services,Childrens Services,85333,Coxhoe Satelite Home,Supplies and Services,304259,Equipment and Materials,15-Dec-16,5581481247,JD SPORTS INTERNET,5941,Equipment-purchase and rental,23.99,0,23.99
Children and Young Peoples Services,Childrens Services,85333,Coxhoe Satelite Home,Supplies and Services,324117,Provisions,15-Dec-16,5581481251,ASDA SUPERSTORE 4987,5411,Catering costs - provisions,112.82,0,112.82
Children and Young Peoples Services,Childrens Services,88043,Consett 0 - 5,Supplies and Services,304403,Equipment and Materials,15-Dec-16,5581481253,TESCO - Safetots Limit,5999,Other consumables,64.8,0,64.8
Children and Young Peoples Services,Childrens Services,88043,Consett 0 - 5,Supplies and Services,304403,Equipment and Materials,15-Dec-16,5581481255,AMAZON UK RETAIL AMAZO,5999,Other consumables,21.37,0,21.37
Dedicated Schools Grant,Dedicated Schools Grant,77100,Special Equipment/Access Technology,Supplies and Services,384999,Miscellaneous Expenses,15-Dec-16,5581481267,APPLE ONLINE STORE GBP,5732,Other expenses,150,0,150
Dedicated Schools Grant,Dedicated Schools Grant,79044,Home Tuition - Mid,Supplies and Services,384999,Miscellaneous Expenses,15-Dec-16,5581481269,APPLE ONLINE STORE GBP,5732,Other expenses,100,0,100
Resources,I.C.T. Services,69010,Administration,Supplies and Services,340001,Postages,15-Dec-16,5581481271,ROYAL MAIL ONLINE SHOP,9402,Postages,53.05,0,53.05
Children and Young Peoples Services,Childrens Services,71445,Chester le Street One Point Hub,Supplies and Services,340001,Postages,15-Dec-16,5581481275,ROYAL MAIL ONLINE SHOP,9402,Postages,37.69,0,37.69
Adult and Health Services,Planning & Service Strategy,52969,Service Support Team 1,Supplies and Services,340001,Postages,15-Dec-16,5581481279,ROYAL MAIL ONLINE SHOP,9402,Postages,23.41,0,23.41
Resources,I.C.T. Services,65481,Technical Services,Supplies and Services,304335,Equipment and Materials,15-Dec-16,5581481281,MYMEMORYLTD,5732,ICT supplies etc,11.95,0,11.95
Resources,Corporate Finance,65109,Pensions,Supplies and Services,372009,Subscriptions,15-Dec-16,5581481283,WWW.192.COM LTD,7311,Subscriptions,155.94,25.99,129.95
Resources,Corporate Finance,65109,Pensions,Supplies and Services,384999,Miscellaneous Expenses,15-Dec-16,5581481285,DURHAM COUNTY COUNCIL,9399,Other expenses,24,0,24
Regeneration and Local Services,Culture & Sport,54399,Local Delivery-Libraries,Supplies and Services,312011,Newspapers Books and Periodicals,15-Dec-16,5581481293,Amazon UK Marketplace,5942,Books-school library,8.65,0,8.65
Regeneration and Local Services,Direct Services,10301,C&G - North Grounds Maintenance,Supplies and Services,312011,Newspapers Books and Periodicals,15-Dec-16,5581481309,GRALANDS WOODWORK SUPP,5251,Books-school library,31.05,0,31.05
Regeneration and Local Services,Culture & Sport,11191,Wellbeing4Life,Supplies and Services,312011,Newspapers Books and Periodicals,15-Dec-16,5581481375,HOME BARGAINS,5251,Books-school library,4.45,0,4.45
Regeneration and Local Services,Culture & Sport,11191,Wellbeing4Life,Supplies and Services,324117,Provisions,15-Dec-16,5581481379,TESCO STORES 6329,5411,Catering costs - provisions,21.05,0,21.05
Children and Young Peoples Services,Childrens Services,74000,TTF-Attachment and Results,Supplies and Services,308011,Furniture,15-Dec-16,5581481387,EDS BEDS LTD,5712,Furniture repair and replacement,101,0,101
Children and Young Peoples Services,Childrens Services,74000,TTF-Attachment and Results,Supplies and Services,304259,Equipment and Materials,15-Dec-16,5581481389,WILKO.COM,5722,Equipment-purchase and rental,68,0,68
Children and Young Peoples Services,Childrens Services,74000,TTF-Attachment and Results,Supplies and Services,324117,Provisions,15-Dec-16,5581481393,ASDA 4387,5411,Catering costs - provisions,67.95,11.33,56.62
Children and Young Peoples Services,Childrens Services,74000,TTF-Attachment and Results,Supplies and Services,304403,Equipment and Materials,15-Dec-16,5581481395,TESCO DIRECT,5999,Other consumables,21.99,0,21.99
Regeneration and Local Services,Direct Services,21235,Catering - Wharton Park,Supplies and Services,324117,Provisions,15-Dec-16,5581481397,BRAKE BROS LTD,5811,Catering costs - provisions,111.36,18.56,92.8
Regeneration and Local Services,Direct Services,21235,Catering - Wharton Park,Supplies and Services,324117,Provisions,15-Dec-16,5581481397 - 1,BRAKE BROS LTD,5811,Catering costs - provisions,63.99,,63.99
Regeneration and Local Services,Economic Development and Housing,30715,Place Branding,Supplies and Services,324117,Provisions,15-Dec-16,5581481403,HOUSE OF COMMONS,5192,Catering costs - provisions,"3,450.00",575,2875
Resources,Financial Services,69805,Purchasing,Employees,40149,Recruitment Instruction and Training,15-Dec-16,5581481405,WWW.CIPS.ORG,8699,Training-all costs,132.6,0,132.6
Children and Young Peoples Services,Childrens Services,88083,Ferryhill 0 - 5,Supplies and Services,304259,Equipment and Materials,15-Dec-16,5586618275,LEIC CITY COUNCIL,9399,Equipment-purchase and rental,13,0,13
Children and Young Peoples Services,Childrens Services,85958,Support Services,Supplies and Services,324117,Provisions,15-Dec-16,5586618407,LIGHT/MINI IN THE BOX,5399,Catering costs - provisions,20.33,0,20.33
Children and Young Peoples Services,Education,78100,Curric and Professional Development,Supplies and Services,364320,Grants to Voluntary Organisations,15-Dec-16,5586618647,THE KINGSLODGE INN,7011,Accommodation assistance,158,0,158
Children and Young Peoples Services,Childrens Services,85958,Support Services,Supplies and Services,328041,Clothing Uniforms and Laundry,15-Dec-16,5630613083,WWW.TOPSHOP.COM,5691,Clothing uniforms and laundry,-42,0,-42
Regeneration and Local Services,Economic Development and Housing,30699,Business Growth and Innovation General,Supplies and Services,336005,Advertising,16-Dec-16,5581480957,ADROLL,7311,Advertising other than for staff,0.04,0,0.04
Regeneration and Local Services,Economic Development and Housing,30699,Business Growth and Innovation General,Supplies and Services,342033,Computers and Communications,16-Dec-16,5581480961,WATCHFULPAYPAL,7379,Computer hardware,0.43,0,0.43
Children and Young Peoples Services,Childrens Services,85958,Support Services,Supplies and Services,384999,Miscellaneous Expenses,16-Dec-16,5581481153,THEBLINGFACTORY.COM,5944,Other expenses,0.74,0,0.74
Regeneration and Local Services,Direct Services,21242,Catering - County Hall,Supplies and Services,324117,Provisions,16-Dec-16,5586618159,MAKRO SELF SERVICE WAS,5300,Catering costs - provisions,149.94,24.99,124.95
Children and Young Peoples Services,Education,71801,Selby Cottage Childcare Centre,Supplies and Services,324117,Provisions,16-Dec-16,5586618163,TESCO STORES 2278,5411,Catering costs - provisions,33.46,0,33.46
Children and Young Peoples Services,Childrens Services,88033,Durham 0 - 5,Supplies and Services,304259,Equipment and Materials,16-Dec-16,5586618185,GRO HM PASSPORT OFFICE,9399,Equipment-purchase and rental,9.25,0,9.25
Regeneration and Local Services,Direct Services,21242,Catering - County Hall,Supplies and Services,324117,Provisions,16-Dec-16,5586618265,JR HOLLAND FOODSERVICE,5422,Catering costs - provisions,56.46,0,56.46
Regeneration and Local Services,Direct Services,21242,Catering - County Hall,Supplies and Services,324117,Provisions,16-Dec-16,5586618273,JR HOLLAND FOODSERVICE,5422,Catering costs - provisions,13.16,0,13.16
Regeneration and Local Services,Direct Services,21242,Catering - County Hall,Supplies and Services,324117,Provisions,16-Dec-16,5586618303,MAKRO SELF SERVICE WAS,5300,Catering costs - provisions,59.88,9.98,49.9
Regeneration and Local Services,Direct Services,21242,Catering - County Hall,Supplies and Services,324117,Provisions,16-Dec-16,5586618303 - 1,MAKRO SELF SERVICE WAS,5300,Catering costs - provisions,53.65,,53.65
Children and Young Peoples Services,Childrens Services,85341,High Etherley Satelite Home,Supplies and Services,328041,Clothing Uniforms and Laundry,16-Dec-16,5586618363,ARGOS RETAIL GROUP,5310,Clothing uniforms and laundry,-199.99,0,-199.99
Regeneration and Local Services,Direct Services,10301,C&G - North Grounds Maintenance,Supplies and Services,304259,Equipment and Materials,16-Dec-16,5586618389,HARELAW SAWMILL,5211,Equipment-purchase and rental,267.34,44.56,222.78
Children and Young Peoples Services,Childrens Services,85958,Support Services,Supplies and Services,304259,Equipment and Materials,16-Dec-16,5586618401,Adidas,5941,Equipment-purchase and rental,69.95,11.66,58.29
Children and Young Peoples Services,Childrens Services,85958,Support Services,Supplies and Services,324117,Provisions,16-Dec-16,5586618409,TESCO STORES 6329,5411,Catering costs - provisions,79.46,0,79.46
Regeneration and Local Services,Direct Services,10301,C&G - North Grounds Maintenance,Supplies and Services,304403,Equipment and Materials,16-Dec-16,5586618431,BESCOL,5231,Other consumables,134.93,22.49,112.44
Regeneration and Local Services,Direct Services,10301,C&G - North Grounds Maintenance,Supplies and Services,312011,Newspapers Books and Periodicals,16-Dec-16,5586618435,GRALANDS WOODWORK SUPP,5251,Books-school library,89.93,0,89.93
Regeneration and Local Services,Culture & Sport,11060,Hardwick Park Catering,Supplies and Services,324117,Provisions,16-Dec-16,5586618443,JR HOLLAND FOODSERVICE,5422,Catering costs - provisions,43.33,0,43.33
Regeneration and Local Services,Culture & Sport,11060,Hardwick Park Catering,Supplies and Services,324117,Provisions,16-Dec-16,5586618451,BRAKE BROS LTD,5811,Catering costs - provisions,76.86,12.81,64.05
Regeneration and Local Services,Culture & Sport,11060,Hardwick Park Catering,Supplies and Services,324117,Provisions,16-Dec-16,5586618451 - 1,BRAKE BROS LTD,5811,Catering costs - provisions,174.45,,174.45
Regeneration and Local Services,Culture & Sport,11060,Hardwick Park Catering,Supplies and Services,324117,Provisions,16-Dec-16,5586618459,BRAKE BROS LTD,5811,Catering costs - provisions,59.1,0,59.1
Resources,I.C.T. Services,70204,Operations - System & Repairs Team,Supplies and Services,312011,Newspapers Books and Periodicals,16-Dec-16,5586618471,Amazon UK Marketplace,5942,Books-school library,29.9,0,29.9
Resources,I.C.T. Services,70204,Operations - System & Repairs Team,Supplies and Services,304259,Equipment and Materials,16-Dec-16,5586618473,PAYPAL HUANGMIN,5732,Equipment-purchase and rental,18.56,0,18.56
Resources,I.C.T. Services,70204,Operations - System & Repairs Team,Supplies and Services,304999,Equipment and Materials,16-Dec-16,5586618477,THE REPLACE BASE LTD,7699,Misc equipment tools and materials,226.86,37.81,189.05
Regeneration and Local Services,Economic Development and Housing,30750,Durham Employment & Skills - General,Employees,40149,Recruitment Instruction and Training,16-Dec-16,5586618489,CITB,8220,Training-all costs,30,5,25
Regeneration and Local Services,Economic Development and Housing,30750,Durham Employment & Skills - General,Employees,40149,Recruitment Instruction and Training,16-Dec-16,5586618493,CITB,8220,Training-all costs,30,5,25
Regeneration and Local Services,Economic Development and Housing,30750,Durham Employment & Skills - General,Employees,40149,Recruitment Instruction and Training,16-Dec-16,5586618495,CITB,8220,Training-all costs,30,5,25
Regeneration and Local Services,Economic Development and Housing,30750,Durham Employment & Skills - General,Employees,40149,Recruitment Instruction and Training,16-Dec-16,5586618501,CITB,8220,Training-all costs,30,5,25
Regeneration and Local Services,Direct Services,10525,Catering - Green Lane,Supplies and Services,324117,Provisions,16-Dec-16,5586618519,JR HOLLAND FOODSERVICE,5422,Catering costs - provisions,45.23,0,45.23
Regeneration and Local Services,Direct Services,21234,Catering - Locomotion,Supplies and Services,324117,Provisions,16-Dec-16,5586618539,CO-OP GROUP 010989,5411,Catering costs - provisions,1,0,1
Regeneration and Local Services,Direct Services,21234,Catering - Locomotion,Supplies and Services,324117,Provisions,16-Dec-16,5586618541,CO-OP GROUP 010989,5411,Catering costs - provisions,16,0,16
Children and Young Peoples Services,Childrens Services,85333,Coxhoe Satelite Home,Supplies and Services,304259,Equipment and Materials,16-Dec-16,5586618591,JD SPORTS INTERNET,5941,Equipment-purchase and rental,-23.99,0,-23.99
Children and Young Peoples Services,Childrens Services,88043,Consett 0 - 5,Supplies and Services,312011,Newspapers Books and Periodicals,16-Dec-16,5586618627,Amazon UK Marketplace,5942,Books-school library,12.71,0,12.71
Children and Young Peoples Services,Childrens Services,88003,Peterlee 0 - 5,Supplies and Services,308011,Furniture,16-Dec-16,5586618727,EDS BEDS LTD,5712,Furniture repair and replacement,131,0,131
Regeneration and Local Services,Culture & Sport,54235,Bp Auckland Town Hall Cafe,Supplies and Services,324117,Provisions,16-Dec-16,5586618731,JR HOLLAND FOODSERVICE,5422,Catering costs - provisions,5.9,0,5.9
Regeneration and Local Services,Direct Services,21324,Catering - Meadowfield,Supplies and Services,324117,Provisions,16-Dec-16,5586618735,JR HOLLAND FOODSERVICE,5422,Catering costs - provisions,33.4,0,33.4
Regeneration and Local Services,Direct Services,21324,Catering - Meadowfield,Supplies and Services,324117,Provisions,16-Dec-16,5586618743,JR HOLLAND FOODSERVICE,5422,Catering costs - provisions,9.87,0,9.87
Regeneration and Local Services,Direct Services,21324,Catering - Meadowfield,Supplies and Services,324117,Provisions,16-Dec-16,5586618747,BRAKE BROS LTD,5811,Catering costs - provisions,-26.18,0,-26.18
Regeneration and Local Services,Direct Services,21235,Catering - Wharton Park,Supplies and Services,324117,Provisions,16-Dec-16,5586618873,BRAKE BROS LTD,5811,Catering costs - provisions,94.2,15.7,78.5
Regeneration and Local Services,Direct Services,21235,Catering - Wharton Park,Supplies and Services,324117,Provisions,16-Dec-16,5586618873 - 1,BRAKE BROS LTD,5811,Catering costs - provisions,51.31,,51.31
Adult and Health Services,Head of Adults,51602,OP/PD Derwentside,Supplies and Services,364320,Grants to Voluntary Organisations,16-Dec-16,5586618885,TRAVELODGE,3615,Accommodation assistance,225.8,0,225.8
Regeneration and Local Services,Culture & Sport,26591,Hardwick Park,Supplies and Services,304245,Equipment and Materials,16-Dec-16,5586618891,TESCO STORES 2916,5411,Materials,20,0,20
Resources,Corporate Finance,69800,Corporate Procurement,Employees,40149,Recruitment Instruction and Training,16-Dec-16,5586618897,GATESHEAD COUNCIL INT,9399,Training-all costs,800,0,800
Resources,Financial Services,65175,Administration,Supplies and Services,340001,Postages,16-Dec-16,5586618901,ROYAL MAIL FEES,9402,Postages,98.6,0,98.6
Children and Young Peoples Services,Childrens Services,88033,Durham 0 - 5,Supplies and Services,324117,Provisions,16-Dec-16,5586618929,CO-OP GROUP 010460,5411,Catering costs - provisions,9,0,9
Regeneration and Local Services,Economic Development and Housing,30699,Business Growth and Innovation General,Supplies and Services,304999,Equipment and Materials,17-Dec-16,5586618209,PatentInspirationEU,5817,Misc equipment tools and materials,83.17,0,83.17
Regeneration and Local Services,Culture & Sport,11219,Office Services,Supplies and Services,336005,Advertising,17-Dec-16,5586618313,FACEBK PD699B27V2,7311,Advertising other than for staff,20.04,0,20.04
Children and Young Peoples Services,Childrens Services,85958,Support Services,Supplies and Services,312011,Newspapers Books and Periodicals,17-Dec-16,5586618415,Amazon EU,5969,Books-school library,39.99,0,39.99
Children and Young Peoples Services,Childrens Services,85958,Support Services,Supplies and Services,324117,Provisions,17-Dec-16,5586618421,TESCO STORES 6329,5411,Catering costs - provisions,68.04,0,68.04
Children and Young Peoples Services,Childrens Services,85958,Support Services,Supplies and Services,304403,Equipment and Materials,17-Dec-16,5586618423,AMAZON UK RETAIL AMAZO,5999,Other consumables,61.22,0,61.22
Children and Young Peoples Services,Childrens Services,85958,Support Services,Supplies and Services,304403,Equipment and Materials,17-Dec-16,5586618427,AMAZON UK RETAIL AMAZO,5999,Other consumables,69.73,0,69.73
Resources,I.C.T. Services,70204,Operations - System & Repairs Team,Supplies and Services,312011,Newspapers Books and Periodicals,17-Dec-16,5586618481,Amazon UK Marketplace,5942,Books-school library,27.96,0,27.96
Resources,I.C.T. Services,65481,Technical Services,Supplies and Services,304335,Equipment and Materials,17-Dec-16,5586618653,Amazon UK Marketplace,5942,ICT supplies etc,53.98,0,53.98
Resources,I.C.T. Services,65230,IT Renewals Fund,Supplies and Services,304335,Equipment and Materials,17-Dec-16,5586618657,Amazon UK Marketplace,5942,ICT supplies etc,31.99,0,31.99
Regeneration and Local Services,Culture & Sport,54399,Local Delivery-Libraries,Supplies and Services,304403,Equipment and Materials,17-Dec-16,5586618679,AMAZON UK RETAIL AMAZO,5999,Other consumables,77.28,0,77.28
Regeneration and Local Services,Direct Services,21235,Catering - Wharton Park,Supplies and Services,324117,Provisions,17-Dec-16,5586618879,BRAKE BROS LTD,5811,Catering costs - provisions,201.12,33.52,167.6
Regeneration and Local Services,Direct Services,21235,Catering - Wharton Park,Supplies and Services,324117,Provisions,17-Dec-16,5586618879 - 1,BRAKE BROS LTD,5811,Catering costs - provisions,22.1,,22.1
Children and Young Peoples Services,Childrens Services,85342,9 Cedar Drive Aycliffe,Supplies and Services,332047,Printing Stationery and Gen Off Exps,18-Dec-16,5586618201,VUE BSL ATM,7832,Stationery,25.07,0,25.07
Resources,Resources Management,69000,Resources Management,Supplies and Services,324117,Provisions,18-Dec-16,5586618599,CO-OP GROUP 010830,5411,Catering costs - provisions,10.48,0,10.48
Children and Young Peoples Services,Childrens Services,85342,9 Cedar Drive Aycliffe,Supplies and Services,328041,Clothing Uniforms and Laundry,18-Dec-16,5593314055,ARGOS RETAIL GROUP,5310,Clothing uniforms and laundry,179.97,0,179.97
Regeneration and Local Services,Economic Development and Housing,30699,Business Growth and Innovation General,Supplies and Services,304999,Equipment and Materials,19-Dec-16,5586618213,PatentInspirationEU,5817,Misc equipment tools and materials,2.29,0,2.29
Children and Young Peoples Services,Education,71801,Selby Cottage Childcare Centre,Supplies and Services,324117,Provisions,19-Dec-16,5593314015,TESCO STORES 2278,5411,Catering costs - provisions,6.44,0,6.44
Children and Young Peoples Services,Education,71801,Selby Cottage Childcare Centre,Supplies and Services,324117,Provisions,19-Dec-16,5593314017,TESCO STORES 2371,5411,Catering costs - provisions,135.66,0,135.66
Children and Young Peoples Services,Education,71801,Selby Cottage Childcare Centre,Supplies and Services,324117,Provisions,19-Dec-16,5593314025,ASDA HOME SHOPPING,5411,Catering costs - provisions,53.13,0,53.13
Children and Young Peoples Services,Education,71801,Selby Cottage Childcare Centre,Supplies and Services,324117,Provisions,19-Dec-16,5593314027,ASDA HOME SHOPPING,5411,Catering costs - provisions,-1.68,0,-1.68
Children and Young Peoples Services,Education,71801,Selby Cottage Childcare Centre,Supplies and Services,324117,Provisions,19-Dec-16,5593314033,ASDA HOME SHOPPING,5411,Catering costs - provisions,-3,0,-3
Regeneration and Local Services,Direct Services,10383,C&G - South Street Cleansing,Supplies and Services,304259,Equipment and Materials,19-Dec-16,5593314047,S&A BUILDERS MERCHANTS,5211,Equipment-purchase and rental,11.29,1.88,9.41
Children and Young Peoples Services,Childrens Services,85342,9 Cedar Drive Aycliffe,Supplies and Services,324117,Provisions,19-Dec-16,5593314061,TESCO STORES 2916,5411,Catering costs - provisions,198.14,0,198.14
Children and Young Peoples Services,Childrens Services,85342,9 Cedar Drive Aycliffe,Supplies and Services,324117,Provisions,19-Dec-16,5593314067,TESCO STORES 2916,5411,Catering costs - provisions,128.92,0,128.92
Regeneration and Local Services,Economic Development and Housing,30737,Durham Works Flexible Fund,Transport,230031,Contract Hire,19-Dec-16,5593314083,ARRIVA PASSENGER S,7538,Pupils-transport to play fields etc,13.8,0,13.8
Regeneration and Local Services,Direct Services,21242,Catering - County Hall,Supplies and Services,324117,Provisions,19-Dec-16,5593314089,BRAMBLES FOODS LTD,5499,Catering costs - provisions,"1,338.24",0,1338.24
Regeneration and Local Services,Direct Services,21242,Catering - County Hall,Supplies and Services,324117,Provisions,19-Dec-16,5593314091,JR HOLLAND FOODSERVICE,5422,Catering costs - provisions,144.05,0,144.05
Regeneration and Local Services,Direct Services,21242,Catering - County Hall,Supplies and Services,324117,Provisions,19-Dec-16,5593314101,JR HOLLAND FOODSERVICE,5422,Catering costs - provisions,13.52,0,13.52
Regeneration and Local Services,Direct Services,21242,Catering - County Hall,Supplies and Services,324117,Provisions,19-Dec-16,5593314105,BRAKE BROS LTD,5811,Catering costs - provisions,347.4,57.9,289.5
Regeneration and Local Services,Direct Services,21242,Catering - County Hall,Supplies and Services,324117,Provisions,19-Dec-16,5593314105 - 1,BRAKE BROS LTD,5811,Catering costs - provisions,56.02,,56.02
Regeneration and Local Services,Direct Services,21242,Catering - County Hall,Supplies and Services,324117,Provisions,19-Dec-16,5593314117,BRAKE BROS LTD,5811,Catering costs - provisions,234.81,0,234.81
Regeneration and Local Services,Economic Development and Housing,30553,Europe Direct Scheme,Supplies and Services,384926,Miscellaneous Expenses,19-Dec-16,5593314137,EUROSTAR INT ECC,4112,International visits,"2,619.00",0,2619
Children and Young Peoples Services,Childrens Services,88094,Newton Aycliffe 5 - 19,Supplies and Services,304403,Equipment and Materials,19-Dec-16,5593314169,WWW.CHARLESCLINKARD.CO,5661,Other consumables,26,0,26
Resources,Legal & Democratic Services,69540,Charter Trust,Supplies and Services,304999,Equipment and Materials,19-Dec-16,5593314207,BOOTS/0561,5912,Misc equipment tools and materials,48.11,0,48.11
Regeneration and Local Services,Direct Services,10301,C&G - North Grounds Maintenance,Supplies and Services,304259,Equipment and Materials,19-Dec-16,5593314213,HARELAW SAWMILL,5211,Equipment-purchase and rental,33,5.5,27.5
Children and Young Peoples Services,Childrens Services,85958,Support Services,Supplies and Services,312011,Newspapers Books and Periodicals,19-Dec-16,5593314231,Amazon UK Marketplace,5942,Books-school library,14.93,0,14.93
Children and Young Peoples Services,Childrens Services,85958,Support Services,Supplies and Services,328041,Clothing Uniforms and Laundry,19-Dec-16,5593314237,WWW.FOOTLOCKER.EU,5661,Clothing uniforms and laundry,114.98,19.16,95.82
Children and Young Peoples Services,Childrens Services,85958,Support Services,Supplies and Services,324117,Provisions,19-Dec-16,5593314243,TESCO STORES 6329,5411,Catering costs - provisions,299.02,0,299.02
Regeneration and Local Services,Culture & Sport,11060,Hardwick Park Catering,Supplies and Services,324117,Provisions,19-Dec-16,5593314253,JR HOLLAND FOODSERVICE,5422,Catering costs - provisions,13.24,0,13.24
Regeneration and Local Services,Culture & Sport,11060,Hardwick Park Catering,Supplies and Services,324117,Provisions,19-Dec-16,5593314261,BRAKE BROS LTD,5811,Catering costs - provisions,32.22,5.37,26.85
Regeneration and Local Services,Culture & Sport,11060,Hardwick Park Catering,Supplies and Services,324117,Provisions,19-Dec-16,5593314261 - 1,BRAKE BROS LTD,5811,Catering costs - provisions,94.5,,94.5
Regeneration and Local Services,Culture & Sport,11060,Hardwick Park Catering,Supplies and Services,324117,Provisions,19-Dec-16,5593314271,BRAKE BROS LTD,5811,Catering costs - provisions,66.18,11.03,55.15
Regeneration and Local Services,Culture & Sport,11060,Hardwick Park Catering,Supplies and Services,324117,Provisions,19-Dec-16,5593314271 - 1,BRAKE BROS LTD,5811,Catering costs - provisions,58.98,,58.98
Regeneration and Local Services,Direct Services,21234,Catering - Locomotion,Supplies and Services,324117,Provisions,19-Dec-16,5593314287,BRAMBLES FOODS LTD,5499,Catering costs - provisions,491.47,0,491.47
Regeneration and Local Services,Direct Services,10525,Catering - Green Lane,Supplies and Services,324117,Provisions,19-Dec-16,5593314295,BRAMBLES FOODS LTD,5499,Catering costs - provisions,212.81,0,212.81
Regeneration and Local Services,Direct Services,10525,Catering - Green Lane,Supplies and Services,324117,Provisions,19-Dec-16,5593314301,JR HOLLAND FOODSERVICE,5422,Catering costs - provisions,3.72,0,3.72
Regeneration and Local Services,Direct Services,10525,Catering - Green Lane,Supplies and Services,324117,Provisions,19-Dec-16,5593314307,BRAKE BROS LTD,5811,Catering costs - provisions,82.43,0,82.43
Children and Young Peoples Services,Childrens Services,85352,Tow Law CU,Supplies and Services,324117,Provisions,19-Dec-16,5593314311,TESCO STORES 2371,5411,Catering costs - provisions,204.12,0,204.12
Children and Young Peoples Services,Childrens Services,74000,TTF-Attachment and Results,Supplies and Services,384700,Miscellaneous Expenses,19-Dec-16,5593314323,TESCO STORES 6329,5411,Miscellaneous grants,6.5,0,6.5
Children and Young Peoples Services,Childrens Services,88063,Bishop Auckland 0 - 5,Supplies and Services,384700,Miscellaneous Expenses,19-Dec-16,5593314325,TESCO DIRECT,5999,Miscellaneous grants,86.39,0,86.39
Children and Young Peoples Services,Childrens Services,88063,Bishop Auckland 0 - 5,Supplies and Services,304259,Equipment and Materials,19-Dec-16,5593314331,TESCO DIRECT,5999,Equipment-purchase and rental,32,0,32
Regeneration and Local Services,Direct Services,20073,Bldg Serv - R&M Div 73 - Gas Servicing,Supplies and Services,372009,Subscriptions,19-Dec-16,5593314357,CORGI,7299,Subscriptions,828,138,690
Regeneration and Local Services,Direct Services,20073,Bldg Serv - R&M Div 73 - Gas Servicing,Supplies and Services,372009,Subscriptions,19-Dec-16,5593314361,CORGI,7299,Subscriptions,138,23,115
Children and Young Peoples Services,Childrens Services,88043,Consett 0 - 5,Supplies and Services,312011,Newspapers Books and Periodicals,19-Dec-16,5593314365,Amazon UK Marketplace,5942,Books-school library,15.06,0,15.06
Children and Young Peoples Services,Childrens Services,88043,Consett 0 - 5,Supplies and Services,324117,Provisions,19-Dec-16,5593314369,WM MORRISONS,5411,Catering costs - provisions,14.02,0,14.02
Regeneration and Local Services,Direct Services,10367,C&G - South Grounds Maintenance,Supplies and Services,304221,Equipment and Materials,19-Dec-16,5593314377,R DEFTY,5200,Direct materials,7.6,0,7.6
Regeneration and Local Services,Culture & Sport,11191,Wellbeing4Life,Supplies and Services,324117,Provisions,19-Dec-16,5593314383,TESCO STORES 2916,5411,Catering costs - provisions,10,0,10
Regeneration and Local Services,Economic Development and Housing,30725,Community Economic Development,Supplies and Services,352001,Conference Expenses,19-Dec-16,5593314389,PAYPAL REVIVETHRIV,7392,Conferencesseminars fees etc,286.84,0,286.84
Resources,I.C.T. Services,65303,Design & Print - Design,Supplies and Services,304335,Equipment and Materials,19-Dec-16,5593314395,APPY PIE,5734,ICT supplies etc,48,0,48
Resources,I.C.T. Services,69010,Administration,Supplies and Services,304403,Equipment and Materials,19-Dec-16,5593314401,APPY PIE,5734,Other consumables,300,0,300
Regeneration and Local Services,Transport and Contracted Services,31701,Care Connect All Localities,Supplies and Services,344033,Telephones,19-Dec-16,5593314445,BT BILL PAYMENT 2,4812,Telephones general-all costs,84.72,14.12,70.6
Regeneration and Local Services,Direct Services,21324,Catering - Meadowfield,Supplies and Services,324117,Provisions,19-Dec-16,5593314453,BRAMBLES FOODS LTD,5499,Catering costs - provisions,116.15,0,116.15
Regeneration and Local Services,Direct Services,10301,C&G - North Grounds Maintenance,Supplies and Services,304259,Equipment and Materials,19-Dec-16,5593314469,CURRYS,5732,Equipment-purchase and rental,99,16.5,82.5
Children and Young Peoples Services,Childrens Services,88083,Ferryhill 0 - 5,Supplies and Services,304259,Equipment and Materials,19-Dec-16,5593314501,CURRYS ONLINE,5732,Equipment-purchase and rental,89.99,0,89.99
Regeneration and Local Services,Culture & Sport,11191,Wellbeing4Life,Supplies and Services,324117,Provisions,19-Dec-16,5593314529,CO-OP GROUP 010491,5411,Catering costs - provisions,4.18,0,4.18
Regeneration and Local Services,Culture & Sport,11191,Wellbeing4Life,Supplies and Services,328041,Clothing Uniforms and Laundry,19-Dec-16,5593314533,THE WORKS,5310,Clothing uniforms and laundry,11.05,0,11.05
Regeneration and Local Services,Direct Services,21235,Catering - Wharton Park,Supplies and Services,324117,Provisions,19-Dec-16,5593314557,BRAMBLES FOODS LTD,5499,Catering costs - provisions,417.62,0,417.62
Regeneration and Local Services,Direct Services,21235,Catering - Wharton Park,Supplies and Services,324117,Provisions,19-Dec-16,5593314563,JR HOLLAND FOODSERVICE,5422,Catering costs - provisions,83.73,0,83.73
Regeneration and Local Services,Direct Services,21235,Catering - Wharton Park,Supplies and Services,324117,Provisions,19-Dec-16,5593314571,JR HOLLAND FOODSERVICE,5422,Catering costs - provisions,15.5,0,15.5
Adult and Health Services,Planning & Service Strategy,54630,Comm Marketing and Information,Supplies and Services,304999,Equipment and Materials,19-Dec-16,5593314579,GOOGLE ADWS8172786379,5968,Misc equipment tools and materials,61.89,0,61.89
Regeneration and Local Services,Culture & Sport,10605,Woodhouse Close Leisure Complex,Supplies and Services,324117,Provisions,19-Dec-16,5593314583,JR HOLLAND FOODSERVICE,5422,Catering costs - provisions,18.43,0,18.43
Regeneration and Local Services,Culture & Sport,10605,Woodhouse Close Leisure Complex,Supplies and Services,324117,Provisions,19-Dec-16,5593314591,BRAKE BROS LTD,5811,Catering costs - provisions,55.62,0,55.62
Regeneration and Local Services,Culture & Sport,11225,Locality 2 Team Management,Supplies and Services,304403,Equipment and Materials,19-Dec-16,5593314595,HOMEPLAN DIY LIMITED,5231,Other consumables,8.98,0,8.98
Regeneration and Local Services,Spatial Policy Planning Assets & Environment,31200,North Pennines Core,Supplies and Services,340001,Postages,19-Dec-16,5593314603,THE POST OFFICE,9402,Postages,10.14,0,10.14
Children and Young Peoples Services,Childrens Services,74000,TTF-Attachment and Results,Supplies and Services,308011,Furniture,19-Dec-16,5593314609,EDS BEDS LTD,5712,Furniture repair and replacement,110,0,110
Children and Young Peoples Services,Childrens Services,74000,TTF-Attachment and Results,Supplies and Services,304403,Equipment and Materials,19-Dec-16,5593314617,TESCO - Seller_IST_1_2,5999,Other consumables,149.98,0,149.98
Children and Young Peoples Services,Childrens Services,74000,TTF-Attachment and Results,Supplies and Services,304403,Equipment and Materials,19-Dec-16,5593314621,TESCO DIRECT,5999,Other consumables,20,0,20
Children and Young Peoples Services,Childrens Services,74000,TTF-Attachment and Results,Supplies and Services,384199,Miscellaneous Expenses,19-Dec-16,5593314625,TESCO-Seller_IST_1_240,5999,Other hired and contracted services,11.99,0,11.99
Regeneration and Local Services,Culture & Sport,11225,Locality 2 Team Management,Supplies and Services,304259,Equipment and Materials,19-Dec-16,5596106177,WILKO RETAIL LIMIT,5722,Equipment-purchase and rental,80,0,80
Children and Young Peoples Services,Education,71801,Selby Cottage Childcare Centre,Supplies and Services,324117,Provisions,20-Dec-16,5596105481,TESCO STORES 2278,5411,Catering costs - provisions,13.52,0,13.52
Children and Young Peoples Services,Education,71801,Selby Cottage Childcare Centre,Supplies and Services,324117,Provisions,20-Dec-16,5596105487,TESCO STORES 2278,5411,Catering costs - provisions,7.66,0,7.66
Children and Young Peoples Services,Childrens Services,71449,Ferryhill One Point Hub,Supplies and Services,324117,Provisions,20-Dec-16,5596105507,TESCO STORES 6329,5411,Catering costs - provisions,35.3,0,35.3
Resources,Financial Services,52865,SF-Financial Services Team,Supplies and Services,304403,Equipment and Materials,20-Dec-16,5596105519,TESCO DIRECT,5999,Other consumables,129.5,0,129.5
Regeneration and Local Services,Direct Services,10367,C&G - South Grounds Maintenance,Supplies and Services,304259,Equipment and Materials,20-Dec-16,5596105539,SCREWFIX,5211,Equipment-purchase and rental,19.99,3.33,16.66
Regeneration and Local Services,Direct Services,21242,Catering - County Hall,Supplies and Services,324117,Provisions,20-Dec-16,5596105559,FREEMAN CATERING BUTCH,5422,Catering costs - provisions,222.14,0,222.14
Regeneration and Local Services,Direct Services,21242,Catering - County Hall,Supplies and Services,324117,Provisions,20-Dec-16,5596105561,FREEMAN CATERING BUTCH,5422,Catering costs - provisions,200.54,0,200.54
Regeneration and Local Services,Direct Services,21242,Catering - County Hall,Supplies and Services,324117,Provisions,20-Dec-16,5596105567,FREEMAN CATERING BUTCH,5422,Catering costs - provisions,196.34,0,196.34
Regeneration and Local Services,Direct Services,21242,Catering - County Hall,Supplies and Services,324117,Provisions,20-Dec-16,5596105571,FREEMAN CATERING BUTCH,5422,Catering costs - provisions,124.2,0,124.2
Regeneration and Local Services,Direct Services,21242,Catering - County Hall,Supplies and Services,324117,Provisions,20-Dec-16,5596105575,FREEMAN CATERING BUTCH,5422,Catering costs - provisions,59.01,0,59.01
Regeneration and Local Services,Direct Services,21242,Catering - County Hall,Supplies and Services,324117,Provisions,20-Dec-16,5596105579,JR HOLLAND FOODSERVICE,5422,Catering costs - provisions,40.58,0,40.58
Regeneration and Local Services,Direct Services,21242,Catering - County Hall,Supplies and Services,324117,Provisions,20-Dec-16,5596105585,JR HOLLAND FOODSERVICE,5422,Catering costs - provisions,6.58,0,6.58
Regeneration and Local Services,Direct Services,21242,Catering - County Hall,Supplies and Services,324117,Provisions,20-Dec-16,5596105589,FREEMAN CATERING BUTCH,5422,Catering costs - provisions,-76.95,0,-76.95
Regeneration and Local Services,Culture & Sport,54812,Gala Theatre - Catering etc,Supplies and Services,324117,Provisions,20-Dec-16,5596105597,FREEMAN CATERING BUTCH,5422,Catering costs - provisions,43.51,0,43.51
Regeneration and Local Services,Culture & Sport,54812,Gala Theatre - Catering etc,Supplies and Services,324117,Provisions,20-Dec-16,5596105601,JR HOLLAND FOODSERVICE,5422,Catering costs - provisions,45.4,0,45.4
Regeneration and Local Services,Culture & Sport,54812,Gala Theatre - Catering etc,Supplies and Services,324117,Provisions,20-Dec-16,5596105611,BRAKE BROS LTD,5811,Catering costs - provisions,207.36,34.56,172.8
Regeneration and Local Services,Culture & Sport,54812,Gala Theatre - Catering etc,Supplies and Services,324117,Provisions,20-Dec-16,5596105611 - 1,BRAKE BROS LTD,5811,Catering costs - provisions,71.52,,71.52
Children and Young Peoples Services,Childrens Services,85341,High Etherley Satelite Home,Supplies and Services,324117,Provisions,20-Dec-16,5596105659,ASDA SUPERSTORE,5411,Catering costs - provisions,21.69,0,21.69
Children and Young Peoples Services,Childrens Services,85958,Support Services,Supplies and Services,312011,Newspapers Books and Periodicals,20-Dec-16,5596105673,Amazon UK Marketplace,5942,Books-school library,44.16,0,44.16
Children and Young Peoples Services,Childrens Services,85958,Support Services,Supplies and Services,304259,Equipment and Materials,20-Dec-16,5596105679,M and M Direct Ltd,5941,Equipment-purchase and rental,40.46,0,40.46
Children and Young Peoples Services,Childrens Services,85958,Support Services,Supplies and Services,328041,Clothing Uniforms and Laundry,20-Dec-16,5596105683,SELECT,5691,Clothing uniforms and laundry,51.96,8.66,43.3
Children and Young Peoples Services,Childrens Services,85958,Support Services,Supplies and Services,328041,Clothing Uniforms and Laundry,20-Dec-16,5596105685,WWW.THEWORKS.CO.UK,5310,Clothing uniforms and laundry,87.99,0,87.99
Children and Young Peoples Services,Childrens Services,85958,Support Services,Supplies and Services,304259,Equipment and Materials,20-Dec-16,5596105689,WWW.FOOTASYLUM.COM,5941,Equipment-purchase and rental,59.98,0,59.98
Children and Young Peoples Services,Childrens Services,85958,Support Services,Supplies and Services,324117,Provisions,20-Dec-16,5596105697,TESCO STORES 6329,5411,Catering costs - provisions,317.51,0,317.51
Regeneration and Local Services,Culture & Sport,11060,Hardwick Park Catering,Supplies and Services,324117,Provisions,20-Dec-16,5596105707,FREEMAN CATERING BUTCH,5422,Catering costs - provisions,62.3,0,62.3
Regeneration and Local Services,Culture & Sport,11060,Hardwick Park Catering,Supplies and Services,324117,Provisions,20-Dec-16,5596105713,FREEMAN CATERING BUTCH,5422,Catering costs - provisions,37.62,0,37.62
Regeneration and Local Services,Culture & Sport,11060,Hardwick Park Catering,Supplies and Services,324117,Provisions,20-Dec-16,5596105717,FREEMAN CATERING BUTCH,5422,Catering costs - provisions,28.19,0,28.19
Regeneration and Local Services,Culture & Sport,11060,Hardwick Park Catering,Supplies and Services,324117,Provisions,20-Dec-16,5596105725,FREEMAN CATERING BUTCH,5422,Catering costs - provisions,25.51,0,25.51
Regeneration and Local Services,Culture & Sport,11060,Hardwick Park Catering,Supplies and Services,324117,Provisions,20-Dec-16,5596105727,FREEMAN CATERING BUTCH,5422,Catering costs - provisions,15,0,15
Regeneration and Local Services,Culture & Sport,11060,Hardwick Park Catering,Supplies and Services,324117,Provisions,20-Dec-16,5596105729,JR HOLLAND FOODSERVICE,5422,Catering costs - provisions,60.92,0,60.92
Regeneration and Local Services,Culture & Sport,11060,Hardwick Park Catering,Supplies and Services,324117,Provisions,20-Dec-16,5596105735,JR HOLLAND FOODSERVICE,5422,Catering costs - provisions,20.46,0,20.46
Resources,I.C.T. Services,70204,Operations - System & Repairs Team,Third Party Payments,430100,Rendered by Private Contractors,20-Dec-16,5596105747,HSO IFIXIT GMBH,7399,Payments to sub-contractors,31.03,0,31.03
Regeneration and Local Services,Direct Services,21234,Catering - Locomotion,Supplies and Services,324117,Provisions,20-Dec-16,5596105759,JR HOLLAND FOODSERVICE,5422,Catering costs - provisions,42.41,0,42.41
Regeneration and Local Services,Direct Services,10525,Catering - Green Lane,Supplies and Services,324117,Provisions,20-Dec-16,5596105783,FREEMAN CATERING BUTCH,5422,Catering costs - provisions,124.69,0,124.69
Regeneration and Local Services,Direct Services,10525,Catering - Green Lane,Supplies and Services,324117,Provisions,20-Dec-16,5596105785,FREEMAN CATERING BUTCH,5422,Catering costs - provisions,68.58,0,68.58
Regeneration and Local Services,Direct Services,10525,Catering - Green Lane,Supplies and Services,324117,Provisions,20-Dec-16,5596105791,FREEMAN CATERING BUTCH,5422,Catering costs - provisions,3.03,0,3.03
Regeneration and Local Services,Direct Services,10525,Catering - Green Lane,Supplies and Services,324117,Provisions,20-Dec-16,5596105795,BRAKE BROS LTD,5811,Catering costs - provisions,157.62,26.27,131.35
Regeneration and Local Services,Direct Services,10525,Catering - Green Lane,Supplies and Services,324117,Provisions,20-Dec-16,5596105795 - 1,BRAKE BROS LTD,5811,Catering costs - provisions,66.15,,66.15
Children and Young Peoples Services,Childrens Services,74000,TTF-Attachment and Results,Supplies and Services,384700,Miscellaneous Expenses,20-Dec-16,5596105809,EDS BEDS LTD,5712,Miscellaneous grants,104,0,104
Children and Young Peoples Services,Childrens Services,74000,TTF-Attachment and Results,Supplies and Services,308011,Furniture,20-Dec-16,5596105817,FRANKS THE FLOORING ST,5713,Furniture repair and replacement,150,0,150
Children and Young Peoples Services,Childrens Services,88073,Barnard Castle 0 - 5,Supplies and Services,384999,Miscellaneous Expenses,20-Dec-16,5596105821,WILKO RETAIL LIMIT,5722,Other expenses,53.8,0,53.8
Children and Young Peoples Services,Childrens Services,88063,Bishop Auckland 0 - 5,Supplies and Services,324117,Provisions,20-Dec-16,5596105825,ASDA STORES,5411,Catering costs - provisions,152.42,0,152.42
Children and Young Peoples Services,Childrens Services,88063,Bishop Auckland 0 - 5,Supplies and Services,324117,Provisions,20-Dec-16,5596105831,ASDA STORES,5411,Catering costs - provisions,24.24,0,24.24
Children and Young Peoples Services,Childrens Services,74000,TTF-Attachment and Results,Supplies and Services,384700,Miscellaneous Expenses,20-Dec-16,5596105833,ASDA 4387,5411,Miscellaneous grants,34.91,0,34.91
Children and Young Peoples Services,Childrens Services,88063,Bishop Auckland 0 - 5,Supplies and Services,324117,Provisions,20-Dec-16,5596105839,WM MORRISON 040,5411,Catering costs - provisions,5.05,0,5.05
Children and Young Peoples Services,Childrens Services,85552,Services for Disabled Children,Supplies and Services,384199,Miscellaneous Expenses,20-Dec-16,5596105851,GOWRINGS MOBILITY,5511,Other hired and contracted services,"4,589.40",0,4589.4
Regeneration and Local Services,Direct Services,10367,C&G - South Grounds Maintenance,Supplies and Services,324117,Provisions,20-Dec-16,5596105873,J M RAINE,5399,Catering costs - provisions,67.6,11.27,56.33
Children and Young Peoples Services,Childrens Services,85334,West Rainton Satelite Home,Supplies and Services,324117,Provisions,20-Dec-16,5596105891,TESCO STORES 2371,5411,Catering costs - provisions,142.72,0,142.72
Children and Young Peoples Services,Childrens Services,74000,TTF-Attachment and Results,Supplies and Services,304403,Equipment and Materials,20-Dec-16,5596105907,TESCO - Seller_IST_1_2,5999,Other consumables,134.99,0,134.99
Children and Young Peoples Services,Childrens Services,74000,TTF-Attachment and Results,Supplies and Services,304403,Equipment and Materials,20-Dec-16,5596105913,TESCO DIRECT,5999,Other consumables,141.95,0,141.95
Resources,Legal & Democratic Services,67910,Democratic Representation,Supplies and Services,332047,Printing Stationery and Gen Off Exps,20-Dec-16,5596105919,Amazon UK Marketplace,5942,Stationery,41.76,0,41.76
Transformation and Partnerships,Policy & Communications Division,60270,Corporate News,Supplies and Services,372009,Subscriptions,20-Dec-16,5596105925,HOOTSUITE MEDIA INC.,7399,Subscriptions,5.83,0,5.83
Regeneration and Local Services,Projects and Business services,10832,Business Support,Supplies and Services,340001,Postages,20-Dec-16,5596105929,ROYAL MAIL FEES,9402,Postages,175,0,175
Children and Young Peoples Services,Childrens Services,85100,Child Protection & Disabilty Strategic Manager,Supplies and Services,332047,Printing Stationery and Gen Off Exps,20-Dec-16,5596105935,SUNDERLAND CC,9399,Stationery,-10,0,-10
Regeneration and Local Services,Culture & Sport,54235,Bp Auckland Town Hall Cafe,Supplies and Services,324117,Provisions,20-Dec-16,5596105975,JR HOLLAND FOODSERVICE,5422,Catering costs - provisions,10.17,0,10.17
Regeneration and Local Services,Transport and Contracted Services,31701,Care Connect All Localities,Supplies and Services,344033,Telephones,20-Dec-16,5596105985,BT BILL PAYMENT 2,4812,Telephones general-all costs,84.72,14.12,70.6
Regeneration and Local Services,Transport and Contracted Services,31701,Care Connect All Localities,Supplies and Services,344033,Telephones,20-Dec-16,5596105991,BT BILL PAYMENT 2,4812,Telephones general-all costs,88.47,14.75,73.72
Regeneration and Local Services,Transport and Contracted Services,31701,Care Connect All Localities,Supplies and Services,344033,Telephones,20-Dec-16,5596105995,BT BILL PAYMENT 2,4812,Telephones general-all costs,15.3,2.55,12.75
Regeneration and Local Services,Transport and Contracted Services,31701,Care Connect All Localities,Supplies and Services,344033,Telephones,20-Dec-16,5596105999,BT BILL PAYMENT 2,4812,Telephones general-all costs,67.8,11.3,56.5
Regeneration and Local Services,Transport and Contracted Services,31701,Care Connect All Localities,Supplies and Services,344033,Telephones,20-Dec-16,5596106001,BT BILL PAYMENT 2,4812,Telephones general-all costs,84.72,14.12,70.6
Regeneration and Local Services,Transport and Contracted Services,31701,Care Connect All Localities,Supplies and Services,344033,Telephones,20-Dec-16,5596106005,BT BILL PAYMENT 2,4812,Telephones general-all costs,90.28,15.05,75.23
Regeneration and Local Services,Transport and Contracted Services,31701,Care Connect All Localities,Supplies and Services,344033,Telephones,20-Dec-16,5596106011,BT BILL PAYMENT 2,4812,Telephones general-all costs,20.23,3.37,16.86
Regeneration and Local Services,Transport and Contracted Services,31701,Care Connect All Localities,Supplies and Services,344033,Telephones,20-Dec-16,5596106013,BT BILL PAYMENT 2,4812,Telephones general-all costs,62.97,10.5,52.47
Regeneration and Local Services,Direct Services,21324,Catering - Meadowfield,Supplies and Services,324117,Provisions,20-Dec-16,5596106029,FREEMAN CATERING BUTCH,5422,Catering costs - provisions,66.85,0,66.85
Regeneration and Local Services,Direct Services,21324,Catering - Meadowfield,Supplies and Services,324117,Provisions,20-Dec-16,5596106037,FREEMAN CATERING BUTCH,5422,Catering costs - provisions,65.71,0,65.71
Regeneration and Local Services,Direct Services,21324,Catering - Meadowfield,Supplies and Services,324117,Provisions,20-Dec-16,5596106045,FREEMAN CATERING BUTCH,5422,Catering costs - provisions,65.44,0,65.44
Regeneration and Local Services,Direct Services,21324,Catering - Meadowfield,Supplies and Services,324117,Provisions,20-Dec-16,5596106049,FREEMAN CATERING BUTCH,5422,Catering costs - provisions,64.72,0,64.72
Regeneration and Local Services,Direct Services,21324,Catering - Meadowfield,Supplies and Services,324117,Provisions,20-Dec-16,5596106051,FREEMAN CATERING BUTCH,5422,Catering costs - provisions,52.08,0,52.08
Regeneration and Local Services,Direct Services,21324,Catering - Meadowfield,Supplies and Services,324117,Provisions,20-Dec-16,5596106057,BRAKE BROS LTD,5811,Catering costs - provisions,49.36,0,49.36
Regeneration and Local Services,Direct Services,21324,Catering - Meadowfield,Supplies and Services,324117,Provisions,20-Dec-16,5596106059,FREEMAN CATERING BUTCH,5422,Catering costs - provisions,-65.71,0,-65.71
Regeneration and Local Services,Direct Services,10301,C&G - North Grounds Maintenance,Supplies and Services,304999,Equipment and Materials,20-Dec-16,5596106071,GUSTHARTS CHAINSAW CTR,7699,Misc equipment tools and materials,130.56,21.76,108.8
Children and Young Peoples Services,Childrens Services,85331,New Lea Childrens Home,Supplies and Services,324117,Provisions,20-Dec-16,5596106097,ASDA HOME SHOPPING,5411,Catering costs - provisions,200.6,0,200.6
Children and Young Peoples Services,Childrens Services,85331,New Lea Childrens Home,Supplies and Services,324117,Provisions,20-Dec-16,5596106103,ASDA HOME SHOPPING,5411,Catering costs - provisions,-2.08,0,-2.08
Regeneration and Local Services,Economic Development and Housing,30737,Durham Works Flexible Fund,Supplies and Services,324117,Provisions,20-Dec-16,5596106109,ONE STOP 2969,5411,Catering costs - provisions,27.5,0,27.5
Regeneration and Local Services,Economic Development and Housing,30737,Durham Works Flexible Fund,Supplies and Services,312011,Newspapers Books and Periodicals,20-Dec-16,5596106135,Amazon EU,5969,Books-school library,306.99,0,306.99
Regeneration and Local Services,Economic Development and Housing,30737,Durham Works Flexible Fund,Supplies and Services,304403,Equipment and Materials,20-Dec-16,5596106137,AMAZON UK RETAIL AMAZO,5999,Other consumables,306.99,0,306.99
Adult and Health Services,Head of Adults,51602,OP/PD Derwentside,Supplies and Services,364320,Grants to Voluntary Organisations,20-Dec-16,5596106163,TRAVELODGE,3615,Accommodation assistance,152.35,0,152.35
Regeneration and Local Services,Culture & Sport,10605,Woodhouse Close Leisure Complex,Supplies and Services,324117,Provisions,20-Dec-16,5596106169,FREEMAN CATERING BUTCH,5422,Catering costs - provisions,43.8,0,43.8
Children and Young Peoples Services,Childrens Services,85341,High Etherley Satelite Home,Supplies and Services,348037,Subsistence,20-Dec-16,5599504157,CHIQUITO 2056,5812,Subsistence,30.8,0,30.8
Transformation and Partnerships,Policy & Communications Division,60700,Civil Contingencies Unit,Supplies and Services,304335,Equipment and Materials,20-Dec-16,5599504349,AMAZON UK RETAIL AMAZO,5999,ICT supplies etc,26.7,4.45,22.25
Children and Young Peoples Services,Childrens Services,85331,New Lea Childrens Home,Transport,235057,Public Transport,20-Dec-16,5599504465,WWW.SIMPLYGO.COM,4131,Staff travelling,15.5,0,15.5
Regeneration and Local Services,Direct Services,10367,C&G - South Grounds Maintenance,Transport,215995,Running Costs of Vehicles,20-Dec-16,5602993383,SNOWBALLS (RAILWAY,5533,Vehicle running expenses,20.44,3.41,17.03
Regeneration and Local Services,Direct Services,10301,C&G - North Grounds Maintenance,Supplies and Services,304221,Equipment and Materials,20-Dec-16,5630613095,WWW.ARCO.CO.UK,5085,Direct materials,11.66,1.94,9.72
Resources,I.C.T. Services,70204,Operations - System & Repairs Team,Third Party Payments,430100,Rendered by Private Contractors,21-Dec-16,5596105751,HSO IFIXIT GMBH,7399,Payments to sub-contractors,0.85,0,0.85
Transformation and Partnerships,Policy & Communications Division,60270,Corporate News,Supplies and Services,372009,Subscriptions,21-Dec-16,5596105939,HOOTSUITE MEDIA INC.,7399,Subscriptions,0.16,0,0.16
Children and Young Peoples Services,Education,71801,Selby Cottage Childcare Centre,Supplies and Services,304259,Equipment and Materials,21-Dec-16,5599504015,WILKO RETAIL LIMIT,5722,Equipment-purchase and rental,32.05,0,32.05
Resources,Financial Services,65180,Collections,Income,720130,Fees and Charges,21-Dec-16,5599504019,HMCOURT-SERVICES.G,9222,Fees-legal,110,0,110
Children and Young Peoples Services,Childrens Services,85342,9 Cedar Drive Aycliffe,Supplies and Services,324117,Provisions,21-Dec-16,5599504033,G BOLAM FOODS,5499,Catering costs - provisions,134.95,0,134.95
Regeneration and Local Services,Direct Services,10367,C&G - South Grounds Maintenance,Supplies and Services,304259,Equipment and Materials,21-Dec-16,5599504039,HORNS GARDEN CENTR,5261,Equipment-purchase and rental,22.5,0,22.5
Regeneration and Local Services,Direct Services,10367,C&G - South Grounds Maintenance,Supplies and Services,304259,Equipment and Materials,21-Dec-16,5599504043,SCREWFIX,5211,Equipment-purchase and rental,14.99,2.5,12.49
Regeneration and Local Services,Economic Development and Housing,30737,Durham Works Flexible Fund,Supplies and Services,384999,Miscellaneous Expenses,21-Dec-16,5599504061,GRO HM PASSPORT OFFICE,9399,Other expenses,9.25,0,9.25
Regeneration and Local Services,Direct Services,21242,Catering - County Hall,Supplies and Services,324117,Provisions,21-Dec-16,5599504069,JR HOLLAND FOODSERVICE,5422,Catering costs - provisions,110.44,0,110.44
Regeneration and Local Services,Direct Services,21242,Catering - County Hall,Supplies and Services,324117,Provisions,21-Dec-16,5599504077,JR HOLLAND FOODSERVICE,5422,Catering costs - provisions,31.35,0,31.35
